Service Delivery Area(T),Service Delivery Team(T),ExpenditureGroup(T),Account(T),Supplier Name(T),Trans Date,Amount
Adult Social Care,ASC Directorate,Supplies & Services,Other Grants (Expenses),NEWPORT COTTAGE CARE CENTRE ,04/04/2022,"5,000.00"
Adult Social Care,ASC Directorate,Supplies & Services,Other Grants (Expenses),SUPREME HOME CARE,04/04/2022,"10,000.00"
Adult Social Care,ASC Directorate,Supplies & Services,Other Grants (Expenses),SUPREME HOME CARE,04/04/2022,"6,826.00"
Adult Social Care,ASC Directorate,Supplies & Services,Other Grants (Expenses),Home Instead,04/04/2022,"4,092.64"
Adult Social Care,ASC Directorate,Supplies & Services,Other Grants (Expenses),THE QUIL CARE GROUP,26/04/2022,"2,689.00"
Adult Social Care,ASC Prevention & Enablement,Employees,Agency Supply Costs,PULSE HEALTHCARE LTD,13/04/2022,"1,997.76"
Adult Social Care,ASC Prevention & Enablement,Employees,Agency Supply Costs,PULSE HEALTHCARE LTD,13/04/2022,"1,997.76"
Adult Social Care,ASC Prevention & Enablement,Employees,Agency Supply Costs,PULSE HEALTHCARE LTD,13/04/2022,"1,997.76"
Adult Social Care,ASC Prevention & Enablement,Employees,Agency Supply Costs,Reed Talent Solutions Ltd,13/04/2022,360.00
Adult Social Care,ASC Prevention & Enablement,Employees,Agency Supply Costs,Reed Talent Solutions Ltd,13/04/2022,"1,800.00"
Adult Social Care,ASC Prevention & Enablement,Employees,Agency Supply Costs,Reed Talent Solutions Ltd,13/04/2022,"2,150.00"
Adult Social Care,ASC Prevention & Enablement,Employees,Agency Supply Costs,Reed Talent Solutions Ltd,13/04/2022,"1,800.00"
Adult Social Care,ASC Prevention & Enablement,Employees,Agency Supply Costs,PULSE HEALTHCARE LTD,21/04/2022,"1,997.76"
Adult Social Care,ASC Prevention & Enablement,Employees,Agency Supply Costs,PULSE HEALTHCARE LTD,21/04/2022,"1,997.76"
Adult Social Care,ASC Prevention & Enablement,Employees,Other Employee Costs,Medgen LTD,21/04/2022,"2,971.99"
Adult Social Care,ASC Prevention & Enablement,Employees,Other Employee Costs,Reed Talent Solutions Ltd,22/04/2022,360.00
Adult Social Care,ASC Prevention & Enablement,Employees,Other Employee Costs,Reed Talent Solutions Ltd,22/04/2022,"1,800.00"
Adult Social Care,ASC Prevention & Enablement,Employees,Other Employee Costs,Medgen LTD,29/04/2022,"3,013.79"
Adult Social Care,ASC Prevention & Enablement,Employees,Other Employee Costs,Medgen LTD,29/04/2022,"2,971.99"
Adult Social Care,ASC Prevention & Enablement,Employees,Other Employee Costs,Medgen LTD,29/04/2022,"2,971.99"
Adult Social Care,ASC Prevention & Enablement,Supplies & Services,Aids & Appliances,CLEANIT CLEANING SERVICES,29/04/2022,895.00
Adult Social Care,ASC Prevention & Enablement,Supplies & Services,Aids & Appliances,CLEANIT CLEANING SERVICES,29/04/2022,195.00
Adult Social Care,ASC Prevention & Enablement,Third Party Payments,Nursing Expenditure,"NHS Shropshire, Telford and Wrekin CCG",13/04/2022,"7,440.00"
Adult Social Care,ASC Prevention & Enablement,Transport-Related Expenditure,Taxi Costs,Cartello Ambulance,29/04/2022,156.00
Adult Social Care,ASC Prevention & Enablement,Transport-Related Expenditure,Taxi Costs,Cartello Ambulance,29/04/2022,182.00
Adult Social Care,ASC Prevention & Enablement,Transport-Related Expenditure,Taxi Costs,Cartello Ambulance,29/04/2022,208.00
Adult Social Care,ASC Prevention & Enablement,Transport-Related Expenditure,Taxi Costs,Cartello Ambulance,29/04/2022,156.00
Adult Social Care,ASC Prevention & Enablement,Transport-Related Expenditure,Taxi Costs,Cartello Ambulance,29/04/2022,130.00
Adult Social Care,ASC Prevention & Enablement,Transport-Related Expenditure,Taxi Costs,Cartello Ambulance,29/04/2022,156.00
Adult Social Care,"Commissioning, Procurement & Brokerage",Supplies & Services,Licences,BIP SOLUTIONS LTD,13/04/2022,"9,800.00"
Adult Social Care,"Commissioning, Procurement & Brokerage",Supplies & Services,Other Grants (Expenses),TELFORD & WREKIN CVS,26/04/2022,"-90,000.00"
Adult Social Care,"Commissioning, Procurement & Brokerage",Supplies & Services,Other Grants (Expenses),TELFORD & WREKIN CVS,26/04/2022,"90,000.00"
Adult Social Care,"Commissioning, Procurement & Brokerage",Supplies & Services,Heritage and Culture,AGE UK SHROPSHIRE TELFORD & WREKIN,27/04/2022,"25,000.00"
Adult Social Care,"Commissioning, Procurement & Brokerage",Supplies & Services,Other Grants (Expenses),SHROPSHIRE COMMUNITY HEALTH NHS TRUST,27/04/2022,"46,865.39"
Adult Social Care,"Commissioning, Procurement & Brokerage",Supplies & Services,Other Grants (Expenses),TELFORD & WREKIN CVS,14/04/2022,"18,500.00"
Adult Social Care,"Commissioning, Procurement & Brokerage",Supplies & Services,Other Grants (Expenses),ANCHOR HOUSING TRUST,01/04/2022,133.33
Adult Social Care,"Commissioning, Procurement & Brokerage",Supplies & Services,Other Grants (Expenses),BROMFORD HOUSING ASSOCIATION LIMITED,01/04/2022,"36,666.67"
Adult Social Care,"Commissioning, Procurement & Brokerage",Supplies & Services,Other Grants (Expenses),TELFORD CHRISTIAN COUNCIL SUPPORTED HOUS,01/04/2022,"36,401.83"
Adult Social Care,"Commissioning, Procurement & Brokerage",Supplies & Services,Other Grants (Expenses),SANCTUARY HOUSING ASSOCIATION ,01/04/2022,610.70
Adult Social Care,"Commissioning, Procurement & Brokerage",Supplies & Services,Other Grants (Expenses),HANOVER HOUSING ASSOCIATION,01/04/2022,750.00
Adult Social Care,"Commissioning, Procurement & Brokerage",Supplies & Services,Other Grants (Expenses),OLD B HOMES,01/04/2022,433.33
Adult Social Care,"Commissioning, Procurement & Brokerage",Supplies & Services,Other Grants (Expenses),WREKIN HOUSING TRUST ,01/04/2022,"25,568.33"
Adult Social Care,"Commissioning, Procurement & Brokerage",Third Party Payments,Interpreters Fees,EXPRESS INTERPRETING & TRANSLATION,27/04/2022,"2,918.88"
Adult Social Care,"Commissioning, Procurement & Brokerage",Third Party Payments,Private Contractors,POHWER,13/04/2022,-775.65
Adult Social Care,Community Social Work (Principal Social Worker),Premises-Related Expenditure,General Rents,First Choice Housing Association LTD,26/04/2022,155.54
Adult Social Care,Community Social Work (Principal Social Worker),Premises-Related Expenditure,General Rents,First Choice Housing Association LTD,26/04/2022,"1,555.45"
Adult Social Care,Community Social Work (Principal Social Worker),Premises-Related Expenditure,General Rents,First Choice Housing Association LTD,26/04/2022,155.54
Adult Social Care,Community Social Work (Principal Social Worker),Premises-Related Expenditure,General Rents,First Choice Housing Association LTD,26/04/2022,401.41
Adult Social Care,Community Social Work (Principal Social Worker),Premises-Related Expenditure,General Rents,First Choice Housing Association LTD,26/04/2022,155.54
Adult Social Care,Community Social Work (Principal Social Worker),Premises-Related Expenditure,General Rents,First Choice Housing Association LTD,26/04/2022,"1,555.45"
Adult Social Care,Community Social Work (Principal Social Worker),Premises-Related Expenditure,General Rents,First Choice Housing Association LTD,26/04/2022,"1,103.86"
Adult Social Care,Community Social Work (Principal Social Worker),Supplies & Services,Other Grants (Expenses),TAKING PART,04/04/2022,750.00
Adult Social Care,Community Social Work (Principal Social Worker),Supplies & Services,Other Grants (Expenses),Autism West Midlands,04/04/2022,"4,782.64"
Adult Social Care,Community Social Work (Principal Social Worker),Supplies & Services,Other Grants (Expenses),TELFORD & WREKIN CVS,04/04/2022,"96,000.00"
Adult Social Care,Community Social Work (Principal Social Worker),Supplies & Services,Other Grants (Expenses),"NHS Shropshire, Telford and Wrekin CCG",26/04/2022,"1,123,593.00"
Adult Social Care,My Options,Employees,Staff Training,SHROPSHIRE COUNCIL ,01/04/2022,"4,510.88"
Adult Social Care,My Options,Employees,Agency Supply Costs,Safehands Recruitment,05/04/2022,250.00
Adult Social Care,My Options,Employees,Agency Supply Costs,Nurse Plus and Carer Plus (UK) Limited,05/04/2022,819.90
Adult Social Care,My Options,Employees,Agency Supply Costs,Nurse Plus and Carer Plus (UK) Limited,13/04/2022,485.43
Adult Social Care,My Options,Employees,Agency Supply Costs,Safehands Recruitment,25/04/2022,216.00
Adult Social Care,My Options,Employees,Agency Supply Costs,Nurse Plus and Carer Plus (UK) Limited,25/04/2022,"1,211.65"
Adult Social Care,My Options,Employees,Agency Supply Costs,Nurse Plus and Carer Plus (UK) Limited,25/04/2022,"1,666.05"
Adult Social Care,My Options,Employees,Agency Supply Costs,Nurse Plus and Carer Plus (UK) Limited,25/04/2022,"1,038.00"
Adult Social Care,My Options,Employees,Agency Supply Costs,Safehands Recruitment,27/04/2022,456.00
Adult Social Care,My Options,Employees,Agency Supply Costs,Safehands Recruitment,01/04/2022,502.21
Adult Social Care,My Options,Employees,Agency Supply Costs,Safehands Recruitment,01/04/2022,432.00
Adult Social Care,My Options,Employees,Agency Supply Costs,Safehands Recruitment,01/04/2022,406.00
Adult Social Care,My Options,Employees,Agency Supply Costs,Safehands Recruitment,01/04/2022,238.00
Adult Social Care,My Options,Employees,Agency Supply Costs,N Recruitment,01/04/2022,664.15
Adult Social Care,My Options,Employees,Agency Supply Costs,Nurse Plus and Carer Plus (UK) Limited,05/04/2022,"1,206.32"
Adult Social Care,My Options,Employees,Agency Supply Costs,Nurse Plus and Carer Plus (UK) Limited,05/04/2022,313.55
Adult Social Care,My Options,Employees,Agency Supply Costs,Nurse Plus and Carer Plus (UK) Limited,07/04/2022,"1,021.17"
Adult Social Care,My Options,Employees,Agency Supply Costs,Nurse Plus and Carer Plus (UK) Limited,07/04/2022,376.95
Adult Social Care,My Options,Employees,Agency Supply Costs, JN Recruitment,07/04/2022,701.27
Adult Social Care,My Options,Employees,Agency Supply Costs,Safehands Recruitment,13/04/2022,180.00
Adult Social Care,My Options,Employees,Agency Supply Costs,Safehands Recruitment,13/04/2022,133.00
Adult Social Care,My Options,Employees,Agency Supply Costs,Safehands Recruitment,13/04/2022,"1,426.75"
Adult Social Care,My Options,Employees,Agency Supply Costs,Safehands Recruitment,14/04/2022,"1,502.00"
Adult Social Care,My Options,Employees,Agency Supply Costs,Safehands Recruitment,22/04/2022,"1,111.00"
Adult Social Care,My Options,Employees,Agency Supply Costs,Safehands Recruitment,22/04/2022,200.00
Adult Social Care,My Options,Employees,Agency Supply Costs,Safehands Recruitment,22/04/2022,119.00
Adult Social Care,My Options,Employees,Agency Supply Costs,Safehands Recruitment,22/04/2022,275.50
Adult Social Care,My Options,Employees,Agency Supply Costs,Nurse Plus and Carer Plus (UK) Limited,22/04/2022,"1,279.19"
Adult Social Care,My Options,Employees,Agency Supply Costs, JN Recruitment,22/04/2022,882.78
Adult Social Care,My Options,Employees,Agency Supply Costs, JN Recruitment,22/04/2022,668.28
Adult Social Care,My Options,Employees,Agency Supply Costs,Safehands Recruitment,27/04/2022,"2,272.75"
Adult Social Care,My Options,Employees,Agency Supply Costs,Iconic Care Limited,14/04/2022,"6,278.00"
Adult Social Care,My Options,Employees,Agency Supply Costs,Iconic Care Limited,14/04/2022,"7,306.50"
Adult Social Care,My Options,Employees,Agency Supply Costs,Iconic Care Limited,14/04/2022,336.00
Adult Social Care,My Options,Employees,Agency Supply Costs,Iconic Care Limited,14/04/2022,492.00
Adult Social Care,My Options,Employees,Agency Supply Costs,Iconic Care Limited,14/04/2022,"6,283.75"
Adult Social Care,My Options,Employees,Agency Supply Costs,Iconic Care Limited,14/04/2022,660.00
Adult Social Care,My Options,Employees,Agency Supply Costs,Iconic Care Limited,14/04/2022,"6,451.75"
Adult Social Care,My Options,Employees,Agency Supply Costs,Iconic Care Limited,14/04/2022,996.00
Adult Social Care,My Options,Premises-Related Expenditure,Hire Of Rooms,Brookside Central,01/04/2022,360.00
Adult Social Care,My Options,Premises-Related Expenditure,Hire Of Rooms,Brookside Central,01/04/2022,240.00
Adult Social Care,My Options,Premises-Related Expenditure,Hire Of Rooms,Dawley Baptist Church,05/04/2022,625.00
Adult Social Care,My Options,Premises-Related Expenditure,Hire Of Rooms,DONNINGTON PARTNERSHIP,07/04/2022,240.00
Adult Social Care,My Options,Premises-Related Expenditure,Hire Of Rooms,All Saints Wellington,25/04/2022,300.00
Adult Social Care,My Options,Premises-Related Expenditure,Clean Mats & Toilet Requisites,BERWICK CARE EQUIPMENT LTD,14/04/2022,262.55
Adult Social Care,My Options,Supplies & Services,Equipment - Purchase,ARJO UK LTD,11/04/2022,166.99
Adult Social Care,My Options,Supplies & Services,Laundry & Towel Hire,PHS GROUP,05/04/2022,288.69
Adult Social Care,My Options,Supplies & Services,Equipment - Purchase,GRANVILLE CONSTRUCTION & MAINTENANCE LTD,05/04/2022,"5,150.74"
Adult Social Care,My Options,Supplies & Services,Computer Software (Maint),Access UK Ltd,07/04/2022,644.40
Adult Social Care,My Options,Supplies & Services,Respite Care,REDACTED PERSONAL INFORMATION,11/04/2022,238.27
Adult Social Care,My Options,Supplies & Services,Respite Care,REDACTED PERSONAL INFORMATION,21/04/2022,373.80
Adult Social Care,My Options,Supplies & Services,Respite Care,REDACTED PERSONAL INFORMATION,26/04/2022,792.40
Adult Social Care,My Options,Supplies & Services,Respite Care,REDACTED PERSONAL INFORMATION,26/04/2022,"1,372.40"
Adult Social Care,My Options,Supplies & Services,Respite Care,REDACTED PERSONAL INFORMATION,26/04/2022,943.22
Adult Social Care,My Options,Supplies & Services,Respite Care,REDACTED PERSONAL INFORMATION,26/04/2022,"1,169.36"
Adult Social Care,My Options,Supplies & Services,Respite Care,REDACTED PERSONAL INFORMATION,26/04/2022,"1,583.00"
Adult Social Care,My Options,Supplies & Services,Respite Care,REDACTED PERSONAL INFORMATION,29/04/2022,238.27
Adult Social Care,My Options,Supplies & Services,Adult Flexi / Day Care,REDACTED PERSONAL INFORMATION,29/04/2022,213.60
Adult Social Care,My Options,Supplies & Services,Mobile Phones,EE LTD EQUIPMENT,12/04/2022,288.00
Adult Social Care,Prevention & Independence - Older Adults & Disability,Employees,Agency Supply Costs,Reed Talent Solutions Ltd,13/04/2022,"2,150.00"
Adult Social Care,Prevention & Independence - Older Adults & Disability,Employees,Agency Supply Costs,Reed Talent Solutions Ltd,13/04/2022,"2,150.00"
Adult Social Care,Prevention & Independence - Older Adults & Disability,Employees,Agency Supply Costs,Reed Talent Solutions Ltd,13/04/2022,"2,150.00"
Adult Social Care,Prevention & Independence - Older Adults & Disability,Employees,Agency Supply Costs,Reed Talent Solutions Ltd,13/04/2022,"2,150.00"
Adult Social Care,Prevention & Independence - Older Adults & Disability,Employees,Other Employee Costs,Reed Talent Solutions Ltd,22/04/2022,"1,800.00"
Adult Social Care,Prevention & Independence - Older Adults & Disability,Employees,Other Employee Costs,Reed Talent Solutions Ltd,22/04/2022,"1,800.00"
Adult Social Care,Prevention & Independence - Older Adults & Disability,Supplies & Services,Aids & Appliances,THE WREKIN HOUSING TRUST ,01/04/2022,125.00
Adult Social Care,Prevention & Independence - Older Adults & Disability,Supplies & Services,Aids & Appliances,THE WREKIN HOUSING TRUST ,01/04/2022,125.00
Adult Social Care,Prevention & Independence - Older Adults & Disability,Supplies & Services,Aids & Appliances,THE WREKIN HOUSING TRUST ,01/04/2022,125.00
Adult Social Care,Prevention & Independence - Older Adults & Disability,Supplies & Services,Aids & Appliances,THE WREKIN HOUSING TRUST ,01/04/2022,125.00
Adult Social Care,Prevention & Independence - Older Adults & Disability,Supplies & Services,Aids & Appliances,WREKIN HOUSING TRUST LTD ,01/04/2022,125.00
Adult Social Care,Prevention & Independence - Older Adults & Disability,Supplies & Services,Aids & Appliances,WREKIN HOUSING TRUST LTD ,01/04/2022,125.00
Adult Social Care,Prevention & Independence - Older Adults & Disability,Supplies & Services,Aids & Appliances,WREKIN HOUSING TRUST LTD ,01/04/2022,125.00
Adult Social Care,Prevention & Independence - Older Adults & Disability,Supplies & Services,Aids & Appliances,WREKIN HOUSING TRUST LTD ,01/04/2022,125.00
Adult Social Care,Prevention & Independence - Older Adults & Disability,Supplies & Services,Aids & Appliances,WREKIN HOUSING TRUST LTD ,01/04/2022,125.00
Adult Social Care,Prevention & Independence - Older Adults & Disability,Supplies & Services,Aids & Appliances,Easylink,04/04/2022,"1,208.43"
Adult Social Care,Prevention & Independence - Older Adults & Disability,Supplies & Services,Aids & Appliances,Easylink,05/04/2022,126.00
Adult Social Care,Prevention & Independence - Older Adults & Disability,Supplies & Services,Aids & Appliances,Medequip,05/04/2022,204.75
Adult Social Care,Prevention & Independence - Older Adults & Disability,Supplies & Services,Aids & Appliances,Easylink,08/04/2022,111.60
Adult Social Care,Prevention & Independence - Older Adults & Disability,Supplies & Services,Aids & Appliances,Easylink,08/04/2022,334.80
Adult Social Care,Prevention & Independence - Older Adults & Disability,Supplies & Services,Aids & Appliances,WREKIN HOUSING TRUST (SUBSIDIARY) LTD ,19/04/2022,125.00
Adult Social Care,Prevention & Independence - Older Adults & Disability,Supplies & Services,Aids & Appliances,WREKIN HOUSING TRUST (SUBSIDIARY) LTD ,19/04/2022,125.00
Adult Social Care,Prevention & Independence - Older Adults & Disability,Supplies & Services,Aids & Appliances,Easylink,27/04/2022,141.74
Adult Social Care,Prevention & Independence - Older Adults & Disability,Supplies & Services,Aids & Appliances,Easylink,27/04/2022,141.74
Adult Social Care,Prevention & Independence - Older Adults & Disability,Supplies & Services,Aids & Appliances,BERWICK CARE EQUIPMENT LTD,01/04/2022,"1,689.00"
Adult Social Care,Prevention & Independence - Older Adults & Disability,Supplies & Services,Aids & Appliances,Nottingham Rehab Ltd,04/04/2022,"2,533.00"
Adult Social Care,Prevention & Independence - Older Adults & Disability,Supplies & Services,Aids & Appliances,OSPREY HEALTHCARE LTD,04/04/2022,374.00
Adult Social Care,Prevention & Independence - Older Adults & Disability,Supplies & Services,Aids & Appliances,Accora,06/04/2022,"1,730.00"
Adult Social Care,Prevention & Independence - Older Adults & Disability,Supplies & Services,Carriage/Delivery Charge,Accora,06/04/2022,165.00
Adult Social Care,Prevention & Independence - Older Adults & Disability,Supplies & Services,Aids & Appliances,NOTTINGHAM REHAB LTD,12/04/2022,316.66
Adult Social Care,Prevention & Independence - Older Adults & Disability,Supplies & Services,Aids & Appliances,PRISM MEDICAL WESTHOLME DIVISION,14/04/2022,"-1,678.61"
Adult Social Care,Prevention & Independence - Older Adults & Disability,Supplies & Services,Equipment - Repair,STANNAH LIFT SERVICES LTD,14/04/2022,516.24
Adult Social Care,Prevention & Independence - Older Adults & Disability,Supplies & Services,Equipment - Repair,STANNAH LIFT SERVICES LTD,14/04/2022,473.51
Adult Social Care,Prevention & Independence - Older Adults & Disability,Supplies & Services,Equipment - Repair,STANNAH LIFT SERVICES LTD,14/04/2022,136.25
Adult Social Care,Prevention & Independence - Older Adults & Disability,Supplies & Services,Equipment - Repair,STANNAH LIFT SERVICES LTD,14/04/2022,185.41
Adult Social Care,Prevention & Independence - Older Adults & Disability,Supplies & Services,Aids & Appliances,M A S Associates,14/04/2022,250.00
Adult Social Care,Prevention & Independence - Older Adults & Disability,Supplies & Services,Equipment - Repair,STANNAH LIFT SERVICES LTD,15/04/2022,"1,040.75"
Adult Social Care,Prevention & Independence - Older Adults & Disability,Supplies & Services,Aids & Appliances,SILVALEA LIMITED,19/04/2022,300.00
Adult Social Care,Prevention & Independence - Older Adults & Disability,Supplies & Services,Aids & Appliances,OSPREY HEALTHCARE LTD,26/04/2022,145.00
Adult Social Care,Prevention & Independence - Older Adults & Disability,Supplies & Services,Aids & Appliances,Wealden Rehab,29/04/2022,228.88
Adult Social Care,Prevention & Independence - Older Adults & Disability,Supplies & Services,Aids & Appliances,SHROPSHIRE COMMUNITY HEALTH NHS TRUST,14/04/2022,"6,301.66"
Adult Social Care,Service Improvement & Efficiency,Employees,Agency Supply Costs,CIVICA UK LIMITED ,02/04/2022,"40,000.00"
Adult Social Care,Service Improvement & Efficiency,Supplies & Services,Comp Software (Purch / Hire),ILLY SYSTEMS LTD,19/04/2022,913.00
Adult Social Care,Service Improvement & Efficiency,Supplies & Services,Computer Software (Maint),LIQUIDLOGIC LIMITED,21/04/2022,"78,668.22"
Adult Social Care,Service Improvement & Efficiency,Supplies & Services,Subscriptions,ASSOCIATION OF FINANCIAL ASSESMENT OFFICERS,14/04/2022,200.00
Children�s Safeguarding & Family Support,Child Protection & Family Support,Employees,Agency Supply Costs,Pertemps Recruitment Partnership Limited,25/04/2022,636.38
Children�s Safeguarding & Family Support,Child Protection & Family Support,Employees,Agency Supply Costs,Pertemps Recruitment Partnership Limited,25/04/2022,636.38
Children�s Safeguarding & Family Support,Child Protection & Family Support,Employees,Agency Supply Costs,Pertemps Recruitment Partnership Limited,25/04/2022,636.38
Children�s Safeguarding & Family Support,Child Protection & Family Support,Employees,Agency Supply Costs,Pertemps Recruitment Partnership Limited,25/04/2022,636.38
Children�s Safeguarding & Family Support,Child Protection & Family Support,Employees,Agency Supply Costs,Pertemps Recruitment Partnership Limited,25/04/2022,492.13
Children�s Safeguarding & Family Support,Child Protection & Family Support,Employees,Agency Supply Costs,Pertemps Recruitment Partnership Limited,25/04/2022,610.92
Children�s Safeguarding & Family Support,Child Protection & Family Support,Employees,Agency Supply Costs,Pertemps Recruitment Partnership Limited,25/04/2022,636.38
Children�s Safeguarding & Family Support,Child Protection & Family Support,Employees,Agency Supply Costs,Pertemps Recruitment Partnership Limited,25/04/2022,636.38
Children�s Safeguarding & Family Support,Child Protection & Family Support,Employees,Agency Supply Costs,Xyla Health & Social Services,28/04/2022,"15,593.00"
Children�s Safeguarding & Family Support,Child Protection & Family Support,Employees,Agency Supply Costs,Xyla Health & Social Services,28/04/2022,"15,593.00"
Children�s Safeguarding & Family Support,Child Protection & Family Support,Employees,Agency Supply Costs,Xyla Health & Social Services,28/04/2022,455.99
Children�s Safeguarding & Family Support,Child Protection & Family Support,Employees,Agency Supply Costs,Xyla Health & Social Services,28/04/2022,320.40
Children�s Safeguarding & Family Support,Child Protection & Family Support,Employees,Agency Supply Costs,Xyla Health & Social Services,28/04/2022,"15,593.00"
Children�s Safeguarding & Family Support,Child Protection & Family Support,Employees,Agency Supply Costs,Xyla Health & Social Services,28/04/2022,165.51
Children�s Safeguarding & Family Support,Child Protection & Family Support,Employees,Recruitment Advertising,MA EDUCATION LTD,14/04/2022,"15,000.00"
Children�s Safeguarding & Family Support,Child Protection & Family Support,Employees,Teachers SA Ver Fund,Capita Pension Solutions Limited,14/04/2022,243.88
Children�s Safeguarding & Family Support,Child Protection & Family Support,Employees,Staff Training,A C & Associates Ltd,25/04/2022,"2,400.00"
Children�s Safeguarding & Family Support,Child Protection & Family Support,Employees,Staff Training,A C & Associates Ltd,25/04/2022,650.00
Children�s Safeguarding & Family Support,Child Protection & Family Support,Supplies & Services,Other Grants (Expenses),South Staffordshire and Shropshire Healthcare NHS Foundation Trust,01/04/2022,"10,395.67"
Children�s Safeguarding & Family Support,Child Protection & Family Support,Supplies & Services,Other Grants (Expenses),South Staffordshire and Shropshire Healthcare NHS Foundation Trust,01/04/2022,"10,395.67"
Children�s Safeguarding & Family Support,Child Protection & Family Support,Supplies & Services,Other Grants (Expenses),South Staffordshire and Shropshire Healthcare NHS Foundation Trust,01/04/2022,"10,395.67"
Children�s Safeguarding & Family Support,Child Protection & Family Support,Supplies & Services,Conference Expenses,LOCAL GOVERNMENT ASSOCIATION,13/04/2022,545.00
Children�s Safeguarding & Family Support,Child Protection & Family Support,Supplies & Services,Marketing & Publicity,ALLWAG PROMOTIONS LTD,14/04/2022,248.50
Children�s Safeguarding & Family Support,Child Protection & Family Support,Supplies & Services,Com focused ext sch activities,ALLWAG PROMOTIONS LTD,14/04/2022,149.00
Children�s Safeguarding & Family Support,Child Protection & Family Support,Supplies & Services,Other Services,Signis Limited,19/04/2022,"8,600.00"
Children�s Safeguarding & Family Support,Child Protection & Family Support,Supplies & Services,Printing - Other,Scribble Inc. Limited,19/04/2022,"3,000.00"
Children�s Safeguarding & Family Support,Child Protection & Family Support,Supplies & Services,Other Grants (Expenses),Midlands Partnership NHS Trust,25/04/2022,"33,246.00"
Children�s Safeguarding & Family Support,Family Connect & Childrens Centres,Employees,Childcare Provision,CHILDCARE SOS,05/04/2022,139.50
Children�s Safeguarding & Family Support,Family Connect & Childrens Centres,Premises-Related Expenditure,R&M -Building Other,WREKIN DRAIN SERVICES LTD,12/04/2022,105.00
Children�s Safeguarding & Family Support,Family Connect & Childrens Centres,Premises-Related Expenditure,Hire Of Rooms,Brookside Central,12/04/2022,108.00
Children�s Safeguarding & Family Support,Family Connect & Childrens Centres,Premises-Related Expenditure,Hire Of Rooms,OAKENGATES TOWN COUNCIL,04/04/2022,180.00
Children�s Safeguarding & Family Support,Family Connect & Childrens Centres,Supplies & Services,Other Grants (Expenses),Stage and Studios Services Limited,25/04/2022,"1,000.00"
Children�s Safeguarding & Family Support,Family Connect & Childrens Centres,Supplies & Services,Other Grants (Expenses), AMITY RELATIONSHIP SOLUTIONS,25/04/2022,"7,200.00"
Children�s Safeguarding & Family Support,Family Connect & Childrens Centres,Supplies & Services,Other Grants (Expenses), PsyTavistock Relationships,25/04/2022,"2,000.00"
Children�s Safeguarding & Family Support,Family Connect & Childrens Centres,Supplies & Services,Other Expenses,PPL PRS Ltd,12/04/2022,217.41
Children�s Safeguarding & Family Support,"Family Placements, Children in Care, Leaving Care & Emergency Duty Team",Employees,Staff Training,Leaving Care Training & Consultancy Service,05/04/2022,"2,218.26"
Children�s Safeguarding & Family Support,"Family Placements, Children in Care, Leaving Care & Emergency Duty Team",Employees,Staff Training,Under 17 Drivers Path Finder Ltd,27/04/2022,900.00
Children�s Safeguarding & Family Support,"Family Placements, Children in Care, Leaving Care & Emergency Duty Team",Premises-Related Expenditure,Hire Of Rooms,MEETING POINT TRUST LTD,21/04/2022,375.00
Children�s Safeguarding & Family Support,"Family Placements, Children in Care, Leaving Care & Emergency Duty Team",Premises-Related Expenditure,Hire Of Rooms,THE WREKIN HOUSING TRUST,27/04/2022,152.99
Children�s Safeguarding & Family Support,"Family Placements, Children in Care, Leaving Care & Emergency Duty Team",Premises-Related Expenditure,Hire Of Rooms,MEETING POINT TRUST LTD,07/04/2022,106.33
Children�s Safeguarding & Family Support,"Family Placements, Children in Care, Leaving Care & Emergency Duty Team",Premises-Related Expenditure,Hire Of Rooms,C Cordingley Hall,22/04/2022,208.33
Children�s Safeguarding & Family Support,"Family Placements, Children in Care, Leaving Care & Emergency Duty Team",Supplies & Services,Aids & Appliances,R82 UK LIMITED,04/04/2022,"2,272.00"
Children�s Safeguarding & Family Support,"Family Placements, Children in Care, Leaving Care & Emergency Duty Team",Supplies & Services,Equipment - Repair,STANNAH LIFT SERVICES LTD,15/04/2022,562.50
Children�s Safeguarding & Family Support,"Family Placements, Children in Care, Leaving Care & Emergency Duty Team",Supplies & Services,Aids & Appliances,BES Healthcare Ltd,22/04/2022,704.95
Children�s Safeguarding & Family Support,"Family Placements, Children in Care, Leaving Care & Emergency Duty Team",Supplies & Services,Aids & Appliances,G & S S LTD,22/04/2022,592.00
Children�s Safeguarding & Family Support,"Family Placements, Children in Care, Leaving Care & Emergency Duty Team",Supplies & Services,Aids & Appliances,Tough Furniture Ltd,22/04/2022,785.00
Children�s Safeguarding & Family Support,"Family Placements, Children in Care, Leaving Care & Emergency Duty Team",Supplies & Services,Aids & Appliances,Schuchmann LLP,26/04/2022,"1,206.00"
Children�s Safeguarding & Family Support,"Family Placements, Children in Care, Leaving Care & Emergency Duty Team",Supplies & Services,Aids & Appliances,Schuchmann LLP,27/04/2022,878.00
Children�s Safeguarding & Family Support,"Family Placements, Children in Care, Leaving Care & Emergency Duty Team",Supplies & Services,Supportive Lodgings,NEXT STEP CARE MANAGEMENT LTD,27/04/2022,525.00
Children�s Safeguarding & Family Support,"Family Placements, Children in Care, Leaving Care & Emergency Duty Team",Supplies & Services,Other Services,ARJO UK LTD,07/04/2022,790.00
Children�s Safeguarding & Family Support,"Family Placements, Children in Care, Leaving Care & Emergency Duty Team",Supplies & Services,Doctors Fees,COURT STREET MEDICAL PRACTICE,01/04/2022,168.00
Children�s Safeguarding & Family Support,"Family Placements, Children in Care, Leaving Care & Emergency Duty Team",Supplies & Services,Form F Assessments,EW Assessments ltd,01/04/2022,500.00
Children�s Safeguarding & Family Support,"Family Placements, Children in Care, Leaving Care & Emergency Duty Team",Supplies & Services,Form F Assessments,PC Assessments Ltd,01/04/2022,538.70
Children�s Safeguarding & Family Support,"Family Placements, Children in Care, Leaving Care & Emergency Duty Team",Supplies & Services,Doctors Fees,WOODSIDE MEDICAL PRACTICE,22/04/2022,125.00
Children�s Safeguarding & Family Support,"Family Placements, Children in Care, Leaving Care & Emergency Duty Team",Supplies & Services,Doctors Fees,WOODSIDE MEDICAL PRACTICE,22/04/2022,125.00
Children�s Safeguarding & Family Support,"Family Placements, Children in Care, Leaving Care & Emergency Duty Team",Supplies & Services,Form F Assessments,Social Care Assessment Services Ltd,27/04/2022,775.00
Children�s Safeguarding & Family Support,"Family Placements, Children in Care, Leaving Care & Emergency Duty Team",Supplies & Services,Doctors Fees,COURT STREET MEDICAL PRACTICE,01/04/2022,168.00
Children�s Safeguarding & Family Support,"Family Placements, Children in Care, Leaving Care & Emergency Duty Team",Supplies & Services,Doctors Fees,COURT STREET MEDICAL PRACTICE,01/04/2022,168.00
Children�s Safeguarding & Family Support,"Family Placements, Children in Care, Leaving Care & Emergency Duty Team",Supplies & Services,Form F Assessments,Kite Fostering Consultancy Ltd,01/04/2022,"2,036.00"
Children�s Safeguarding & Family Support,"Family Placements, Children in Care, Leaving Care & Emergency Duty Team",Supplies & Services,Registration / Licence Fees,Coram Academy Limited,04/04/2022,"2,561.30"
Children�s Safeguarding & Family Support,"Family Placements, Children in Care, Leaving Care & Emergency Duty Team",Supplies & Services,Registration / Licence Fees,Coram Academy Limited,04/04/2022,519.75
Children�s Safeguarding & Family Support,"Family Placements, Children in Care, Leaving Care & Emergency Duty Team",Supplies & Services,Subscriptions,FOSTERING NETWORK,19/04/2022,"2,166.00"
Children�s Safeguarding & Family Support,"Family Placements, Children in Care, Leaving Care & Emergency Duty Team",Supplies & Services,Subscriptions,FOSTERING NETWORK,19/04/2022,"7,038.00"
Children�s Safeguarding & Family Support,"Family Placements, Children in Care, Leaving Care & Emergency Duty Team",Supplies & Services,Subscriptions,FOSTERING NETWORK,21/04/2022,909.86
Children�s Safeguarding & Family Support,"Family Placements, Children in Care, Leaving Care & Emergency Duty Team",Supplies & Services,Subscriptions,FOSTERING NETWORK,21/04/2022,740.00
Children�s Safeguarding & Family Support,"Family Placements, Children in Care, Leaving Care & Emergency Duty Team",Supplies & Services,Form F Assessments,Kite Fostering Consultancy Ltd,21/04/2022,"2,037.80"
Children�s Safeguarding & Family Support,"Family Placements, Children in Care, Leaving Care & Emergency Duty Team",Supplies & Services,Other Services,The Child Psychology Service CIC,01/04/2022,378.00
Children�s Safeguarding & Family Support,"Family Placements, Children in Care, Leaving Care & Emergency Duty Team",Supplies & Services,Other Services,The Child Psychology Service CIC,01/04/2022,-378.00
Children�s Safeguarding & Family Support,"Family Placements, Children in Care, Leaving Care & Emergency Duty Team",Supplies & Services,Other Services,The Child Psychology Service CIC,08/04/2022,-756.00
Children�s Safeguarding & Family Support,"Family Placements, Children in Care, Leaving Care & Emergency Duty Team",Third Party Payments,Contractor Recharge,Catch22 Charity Ltd,27/04/2022,"2,995.00"
Children�s Safeguarding & Family Support,"Family Placements, Children in Care, Leaving Care & Emergency Duty Team",Third Party Payments,Childminders,CHILDCARE SOS,19/04/2022,116.25
Children�s Safeguarding & Family Support,"Family Placements, Children in Care, Leaving Care & Emergency Duty Team",Transport-Related Expenditure,Taxi Costs,Go Carz,27/04/2022,"1,021.56"
Children�s Safeguarding & Family Support,Safeguarding Advisory,Premises-Related Expenditure,Hire Of Rooms,Mercure Telford Centre Hotel,21/04/2022,"1,220.00"
Children's Safeguarding,Child Protection & Family Support,contribution to provision,legal,HM Courts and Tribunal service,19/04/2022,16522
"Communities, Customer & Commercial Services","Communities, Customer & Commercial Services",Employees,Other Employee Costs,T SOLICITORS,04/04/2022,350.00
"Communities, Customer & Commercial Services",Community Services,Capital Expenditure,Other Capital Expenditure,Minibus Options Limited,20/04/2022,"7,000.00"
"Communities, Customer & Commercial Services",Community Services,Capital Expenditure,Other Capital Expenditure,Minibus Options Limited,21/04/2022,"7,000.00"
"Communities, Customer & Commercial Services",Community Services,Employees,Training Exp�s (Facilitators),SHROPSHIRE PARTNERS IN CARE LTD,04/04/2022,120.00
"Communities, Customer & Commercial Services",Community Services,Income - Contributions from reserves,Contribution from Reserves,Birks Geothermal Ltd,27/04/2022,"3,900.00"
"Communities, Customer & Commercial Services",Community Services,Premises-Related Expenditure,Electricity,West Mercia Energy (WME),21/04/2022,139.27
"Communities, Customer & Commercial Services",Community Services,Supplies & Services,Grants To Voluntary Organis,Telford Crisis Support,22/04/2022,"70,913.00"
"Communities, Customer & Commercial Services",Community Services,Supplies & Services,Consultancy,E4 Enviroment Ltd,07/04/2022,"9,800.00"
"Communities, Customer & Commercial Services",Community Services,Supplies & Services,Grants To Voluntary Organis,Donnington Wood School Fund,04/04/2022,500.00
"Communities, Customer & Commercial Services",Community Services,Supplies & Services,Grants To Voluntary Organis,Great Dawley Town Council,13/04/2022,"1,000.00"
"Communities, Customer & Commercial Services",Community Services,Supplies & Services,Grants To Voluntary Organis,OAKENGATES TOWN COUNCIL,01/04/2022,"2,000.00"
"Communities, Customer & Commercial Services",Community Services,Supplies & Services,Grants To Voluntary Organis,WROCKWARDINE WOOD & TRENCH PC,01/04/2022,"1,550.00"
"Communities, Customer & Commercial Services",Community Services,Supplies & Services,Historic Building Grant,Rodington Village Hall Management Committee,01/04/2022,"1,540.00"
"Communities, Customer & Commercial Services",Community Services,Supplies & Services,Grants To Voluntary Organis,NEWPORT TOWN COUNCIL ,08/04/2022,"1,500.00"
"Communities, Customer & Commercial Services",Community Services,Supplies & Services,Grants To Voluntary Organis,THE SILVER THREADS HALL,27/04/2022,400.00
"Communities, Customer & Commercial Services",Community Services,Supplies & Services,Grants To Voluntary Organis,STIRCHLEY & BROOKSIDE PARISH COUNCIL ,28/04/2022,"2,000.00"
"Communities, Customer & Commercial Services",Community Services,Supplies & Services,Grants To Voluntary Organis,STIRCHLEY & BROOKSIDE PARISH COUNCIL ,28/04/2022,"2,000.00"
"Communities, Customer & Commercial Services",Community Services,Supplies & Services,Grants To Voluntary Organis,DONNINGTON PARTNERSHIP,28/04/2022,"1,675.00"
"Communities, Customer & Commercial Services",Culture & Events,Supplies & Services,Marketing & Publicity, The Curiuous Way,01/04/2022,825.00
"Communities, Customer & Commercial Services",Culture & Events,Supplies & Services,Promotion Expenses,Kitform Promotional Products Ltd,05/04/2022,210.00
"Communities, Customer & Commercial Services",Culture & Events,Supplies & Services,Equipment - Hire,CWASTE DISPOSAL SERV LTD,06/04/2022,142.80
"Communities, Customer & Commercial Services",Culture & Events,Supplies & Services,Service Contracts,FREELANCE BUSINESS ASSOCIATES,06/04/2022,616.00
"Communities, Customer & Commercial Services",Culture & Events,Supplies & Services,Promotion Expenses,Spektrix Limited,14/04/2022,"3,436.63"
"Communities, Customer & Commercial Services",Culture & Events,Supplies & Services,Artistes Fees,C Cordingley Hall,04/04/2022,169.58
"Communities, Customer & Commercial Services",Culture & Events,Supplies & Services,Artistes Fees,Chambers Management Touring Ltd,04/04/2022,"8,856.30"
"Communities, Customer & Commercial Services",Culture & Events,Supplies & Services,Artistes Fees,Telford Tigers Limited,04/04/2022,738.61
"Communities, Customer & Commercial Services",Culture & Events,Supplies & Services,Artistes Fees,Kennedy Street,04/04/2022,"7,718.83"
"Communities, Customer & Commercial Services",Culture & Events,Supplies & Services,Artistes Fees,Strictly Theatre Co Limited,04/04/2022,"12,843.72"
"Communities, Customer & Commercial Services",Culture & Events,Supplies & Services,Artistes Fees,Ellis Live Ltd,04/04/2022,"6,764.33"
"Communities, Customer & Commercial Services",Culture & Events,Supplies & Services,Artistes Fees,The Play People,04/04/2022,550.00
"Communities, Customer & Commercial Services",Culture & Events,Supplies & Services,Artistes Fees,Little Wander Ltd,08/04/2022,"8,133.33"
"Communities, Customer & Commercial Services",Culture & Events,Supplies & Services,Artistes Fees,E B Productions Ltd,11/04/2022,"2,586.17"
"Communities, Customer & Commercial Services",Culture & Events,Supplies & Services,Advertising,WHATS ON MAGAZINES LTD,12/04/2022,275.00
"Communities, Customer & Commercial Services",Culture & Events,Supplies & Services,Promotion Expenses,crowdEngage Limited,12/04/2022,343.85
"Communities, Customer & Commercial Services",Culture & Events,Supplies & Services,Artistes Fees,A C CONCERTS LTD,14/04/2022,"5,214.22"
"Communities, Customer & Commercial Services",Culture & Events,Supplies & Services,Artistes Fees,Prestige Productions,14/04/2022,"3,362.67"
"Communities, Customer & Commercial Services",Culture & Events,Supplies & Services,Artistes Fees,Ticketplan Limited,14/04/2022,665.92
"Communities, Customer & Commercial Services",Culture & Events,Supplies & Services,Artistes Fees,Orchard Live Limited,26/04/2022,"5,062.50"
"Communities, Customer & Commercial Services",Culture & Events,Supplies & Services,Artistes Fees,Orchard Live Limited,26/04/2022,"4,972.50"
"Communities, Customer & Commercial Services",Culture & Events,Supplies & Services,Artistes Fees,Orchard Live Limited,26/04/2022,"14,625.00"
"Communities, Customer & Commercial Services",Culture & Events,Supplies & Services,Artistes Fees,Orchard Live Limited,26/04/2022,"3,690.00"
"Communities, Customer & Commercial Services",Culture & Events,Supplies & Services,Artistes Fees,Orchard Live Limited,26/04/2022,"1,440.00"
"Communities, Customer & Commercial Services",Culture & Events,Supplies & Services,Artistes Fees,Orchard Live Limited,26/04/2022,"4,950.00"
"Communities, Customer & Commercial Services",Culture & Events,Supplies & Services,Artistes Fees,Orchard Live Limited,26/04/2022,"19,825.00"
"Communities, Customer & Commercial Services",Culture & Events,Supplies & Services,Artistes Fees,OFF THE KERB PRODUCTIONS,27/04/2022,"7,675.73"
"Communities, Customer & Commercial Services",Culture & Events,Supplies & Services,Artistes Fees,Exchange Events Limited,27/04/2022,"3,713.70"
"Communities, Customer & Commercial Services",Culture & Events,Supplies & Services,Equipment - Purchase,E N CATERING EQUIPMENT AND SERVICES  LTD,19/04/2022,"2,800.64"
"Communities, Customer & Commercial Services",Culture & Events,Supplies & Services,Wet Resale Provision,MOLSON COORS BREWING COMPANY UK LTD,22/04/2022,127.05
"Communities, Customer & Commercial Services",Culture & Events,Supplies & Services,Wet Resale Provision,MOLSON COORS BREWING COMPANY UK LTD,22/04/2022,314.73
"Communities, Customer & Commercial Services",Culture & Events,Supplies & Services,Wet Resale Provision,MOLSON COORS BREWING COMPANY UK LTD,22/04/2022,251.34
"Communities, Customer & Commercial Services",Culture & Events,Supplies & Services,Wet Resale Provision,MOLSON COORS BREWING COMPANY UK LTD,22/04/2022,171.40
"Communities, Customer & Commercial Services",Culture & Events,Supplies & Services,Wet Resale Provision,MOLSON COORS BREWING COMPANY UK LTD,22/04/2022,264.72
"Communities, Customer & Commercial Services",Culture & Events,Supplies & Services,Equipment - Purchase,E N CATERING EQUIPMENT AND SERVICES  LTD,26/04/2022,105.00
"Communities, Customer & Commercial Services",Culture & Events,Supplies & Services,Wet Resale Provision,MOLSON COORS BREWING COMPANY UK LTD,27/04/2022,209.82
"Communities, Customer & Commercial Services",Culture & Events,Supplies & Services,Wet Resale Provision,MOLSON COORS BREWING COMPANY UK LTD,27/04/2022,176.48
"Communities, Customer & Commercial Services",Culture & Events,Supplies & Services,Wet Resale Provision,MOLSON COORS BREWING COMPANY UK LTD,22/04/2022,127.05
"Communities, Customer & Commercial Services",Culture & Events,Supplies & Services,Wet Resale Provision,MOLSON COORS BREWING COMPANY UK LTD,22/04/2022,124.95
"Communities, Customer & Commercial Services",Culture & Events,Supplies & Services,Wet Resale Provision,MOLSON COORS BREWING COMPANY UK LTD,22/04/2022,209.82
"Communities, Customer & Commercial Services",Culture & Events,Supplies & Services,Wet Resale Provision,MOLSON COORS BREWING COMPANY UK LTD,22/04/2022,213.70
"Communities, Customer & Commercial Services",Culture & Events,Supplies & Services,Wet Resale Provision,MOLSON COORS BREWING COMPANY UK LTD,22/04/2022,176.48
"Communities, Customer & Commercial Services",Culture & Events,Supplies & Services,Wet Resale Provision,MOLSON COORS BREWING COMPANY UK LTD,22/04/2022,125.67
"Communities, Customer & Commercial Services",Culture & Events,Supplies & Services,Wet Resale Provision,MOLSON COORS BREWING COMPANY UK LTD,28/04/2022,433.54
"Communities, Customer & Commercial Services",Culture & Events,Supplies & Services,Wet Resale Provision,MOLSON COORS BREWING COMPANY UK LTD,22/04/2022,125.67
"Communities, Customer & Commercial Services",Culture & Events,Supplies & Services,Wet Resale Provision,MOLSON COORS BREWING COMPANY UK LTD,22/04/2022,114.76
"Communities, Customer & Commercial Services",Culture & Events,Supplies & Services,Wet Resale Provision,MOLSON COORS BREWING COMPANY UK LTD,22/04/2022,419.64
"Communities, Customer & Commercial Services",Culture & Events,Supplies & Services,Wet Resale Provision,MOLSON COORS BREWING COMPANY UK LTD,22/04/2022,195.34
"Communities, Customer & Commercial Services",Culture & Events,Supplies & Services,Wet Resale Provision,MOLSON COORS BREWING COMPANY UK LTD,22/04/2022,502.68
"Communities, Customer & Commercial Services",Culture & Events,Supplies & Services,Wet Resale Provision,MOLSON COORS BREWING COMPANY UK LTD,22/04/2022,130.20
"Communities, Customer & Commercial Services",Culture & Events,Supplies & Services,Wet Resale Provision,MOLSON COORS BREWING COMPANY UK LTD,22/04/2022,199.92
"Communities, Customer & Commercial Services",Culture & Events,Supplies & Services,Wet Resale Provision,MOLSON COORS BREWING COMPANY UK LTD,22/04/2022,209.82
"Communities, Customer & Commercial Services",Culture & Events,Supplies & Services,Wet Resale Provision,MOLSON COORS BREWING COMPANY UK LTD,22/04/2022,326.70
"Communities, Customer & Commercial Services",Culture & Events,Supplies & Services,Wet Resale Provision,MOLSON COORS BREWING COMPANY UK LTD,22/04/2022,111.43
"Communities, Customer & Commercial Services",Culture & Events,Supplies & Services,Crockery/Hardware/Light Equip,M&M Gasses,22/04/2022,130.34
"Communities, Customer & Commercial Services",Culture & Events,Supplies & Services,Wet Resale Provision,MOLSON COORS BREWING COMPANY UK LTD,27/04/2022,209.82
"Communities, Customer & Commercial Services",Culture & Events,Supplies & Services,Wet Resale Provision,MOLSON COORS BREWING COMPANY UK LTD,27/04/2022,125.67
"Communities, Customer & Commercial Services",Culture & Events,Supplies & Services,Artistes Fees,Sofia Steeldrum Entertainment,01/04/2022,"1,100.00"
"Communities, Customer & Commercial Services",Culture & Events,Supplies & Services,Artistes Fees,YARRINGTON LIMITED,01/04/2022,"16,912.00"
"Communities, Customer & Commercial Services",Culture & Events,Supplies & Services,Artistes Fees,S & D Simulations Ltd,06/04/2022,"3,250.00"
"Communities, Customer & Commercial Services",Culture & Events,Supplies & Services,Artistes Fees,PS PROMOTIONS LTD,07/04/2022,425.00
"Communities, Customer & Commercial Services",Culture & Events,Supplies & Services,Artistes Fees,The Past Presents,07/04/2022,420.00
"Communities, Customer & Commercial Services",Culture & Events,Supplies & Services,First Aid,Point to Point Services Ltd,07/04/2022,120.00
"Communities, Customer & Commercial Services",Culture & Events,Supplies & Services,First Aid,Point to Point Services Ltd,08/04/2022,"1,600.00"
"Communities, Customer & Commercial Services",Culture & Events,Supplies & Services,Equipment - Hire,TELFORD TOILET HIRE,14/04/2022,"1,500.00"
"Communities, Customer & Commercial Services",Culture & Events,Supplies & Services,Equipment - Hire,Event Cup Solutions Ltd,19/04/2022,"2,080.75"
"Communities, Customer & Commercial Services",Culture & Events,Supplies & Services,Artistes Fees,EMERGE DESIGN LTD,27/04/2022,858.00
"Communities, Customer & Commercial Services",Culture & Events,Supplies & Services,Artistes Fees,Dragonfire Ltd,27/04/2022,600.00
"Communities, Customer & Commercial Services",Culture & Events,Supplies & Services,Equipment - Hire,Illuminate Audio Visual Effects,28/04/2022,"2,487.50"
"Communities, Customer & Commercial Services",Culture & Events,Supplies & Services,Equipment - Hire, British Bike Hire,29/04/2022,680.00
"Communities, Customer & Commercial Services",Customer Relationships & Welfare Services,Employees,Staff Training,The Active Bystander Training Company,05/04/2022,300.00
"Communities, Customer & Commercial Services",Customer Relationships & Welfare Services,Employees,Staff Training,The Active Bystander Training Company,05/04/2022,300.00
"Communities, Customer & Commercial Services",Customer Relationships & Welfare Services,Supplies & Services,Consultancy,Airey Consultancy Services Ltd.,04/04/2022,475.00
"Communities, Customer & Commercial Services",Customer Relationships & Welfare Services,Supplies & Services,Printing - Other,Financial Data Management plc,08/04/2022,130.41
"Communities, Customer & Commercial Services",Customer Relationships & Welfare Services,Supplies & Services,Postages,Financial Data Management plc,12/04/2022,"3,089.90"
"Communities, Customer & Commercial Services",Customer Relationships & Welfare Services,Supplies & Services,Printing - Other,Financial Data Management plc,12/04/2022,161.59
"Communities, Customer & Commercial Services",Customer Relationships & Welfare Services,Supplies & Services,Printing - Other,Financial Data Management plc,12/04/2022,195.00
"Communities, Customer & Commercial Services",Customer Relationships & Welfare Services,Supplies & Services,Permit Production - Blue Badge,APS Group,01/04/2022,"1,128.01"
"Communities, Customer & Commercial Services",Customer Relationships & Welfare Services,Supplies & Services,Permit Production - Blue Badge,Valtech Limited,01/04/2022,594.50
"Communities, Customer & Commercial Services",Customer Relationships & Welfare Services,Supplies & Services,Bus Pass Production,Euclid Limited,04/04/2022,774.36
"Communities, Customer & Commercial Services",Customer Relationships & Welfare Services,Supplies & Services,Computer Software (Maint),Zipporah Ltd.,11/04/2022,"16,800.00"
"Communities, Customer & Commercial Services",Customer Relationships & Welfare Services,Supplies & Services,Computer Software (Maint),Zipporah Ltd.,11/04/2022,"16,800.00"
"Communities, Customer & Commercial Services",Customer Relationships & Welfare Services,Supplies & Services,Computer Software (Maint),Zipporah Ltd.,11/04/2022,"16,800.00"
"Communities, Customer & Commercial Services",Customer Relationships & Welfare Services,Transfer Payments,Crisis Assistance Awards,PayPoint Network Limited,01/04/2022,686.00
"Communities, Customer & Commercial Services",Customer Relationships & Welfare Services,Transfer Payments,Crisis Assistance Awards,PayPoint Network Limited,01/04/2022,490.00
"Communities, Customer & Commercial Services",Customer Relationships & Welfare Services,Transfer Payments,Crisis Assistance Awards,PayPoint Network Limited,21/04/2022,687.00
"Communities, Customer & Commercial Services",Customer Relationships & Welfare Services,Transfer Payments,Crisis Assistance Awards,PayPoint Network Limited,29/04/2022,147.00
"Communities, Customer & Commercial Services",Customer Relationships & Welfare Services,Transfer Payments,Crisis Assistance Awards,PayPoint Network Limited,01/04/2022,418.00
"Communities, Customer & Commercial Services",Customer Relationships & Welfare Services,Transfer Payments,Crisis Assistance Awards,PayPoint Network Limited,01/04/2022,350.00
"Communities, Customer & Commercial Services",Customer Relationships & Welfare Services,Transfer Payments,Crisis Assistance Awards,Kings of the Road,01/04/2022,325.00
"Communities, Customer & Commercial Services",Customer Relationships & Welfare Services,Transfer Payments,Crisis Assistance Awards,A W HOLDINGS,04/04/2022,239.00
"Communities, Customer & Commercial Services",Customer Relationships & Welfare Services,Transfer Payments,Crisis Assistance Awards,PayPoint Network Limited,12/04/2022,855.00
"Communities, Customer & Commercial Services",Customer Relationships & Welfare Services,Transfer Payments,Crisis Assistance Awards,Kings of the Road,12/04/2022,375.00
"Communities, Customer & Commercial Services",Customer Relationships & Welfare Services,Transfer Payments,Crisis Assistance Awards,Kings of the Road,13/04/2022,425.00
"Communities, Customer & Commercial Services",Customer Relationships & Welfare Services,Transfer Payments,Crisis Assistance Awards,Kings of the Road,20/04/2022,195.00
"Communities, Customer & Commercial Services",Customer Relationships & Welfare Services,Transfer Payments,Crisis Assistance Awards,Kings of the Road,20/04/2022,325.00
"Communities, Customer & Commercial Services",Customer Relationships & Welfare Services,Transfer Payments,Crisis Assistance Awards,PayPoint Network Limited,21/04/2022,805.00
"Communities, Customer & Commercial Services",Customer Relationships & Welfare Services,Transfer Payments,Crisis Assistance Awards,PayPoint Network Limited,21/04/2022,670.00
"Communities, Customer & Commercial Services",Customer Relationships & Welfare Services,Transfer Payments,Crisis Assistance Awards,Kings of the Road,21/04/2022,325.00
"Communities, Customer & Commercial Services",Customer Relationships & Welfare Services,Transfer Payments,Crisis Assistance Awards,Kings of the Road,26/04/2022,225.00
"Communities, Customer & Commercial Services",Customer Relationships & Welfare Services,Transfer Payments,Crisis Assistance Awards,Kings of the Road,27/04/2022,345.00
"Communities, Customer & Commercial Services",Customer Relationships & Welfare Services,Transfer Payments,Crisis Assistance Awards,Kings of the Road,27/04/2022,375.00
"Communities, Customer & Commercial Services",Customer Relationships & Welfare Services,Transfer Payments,Crisis Assistance Awards,Kings of the Road,27/04/2022,345.00
"Communities, Customer & Commercial Services",Customer Relationships & Welfare Services,Transfer Payments,Crisis Assistance Awards,Kings of the Road,28/04/2022,325.00
"Communities, Customer & Commercial Services",Customer Relationships & Welfare Services,Transfer Payments,Crisis Assistance Awards,PayPoint Network Limited,29/04/2022,780.00
"Communities, Customer & Commercial Services",ICT,Capital Expenditure,Computer Hardware,CCS MEDIA LIMITED,04/04/2022,"3,471.90"
"Communities, Customer & Commercial Services",ICT,Capital Expenditure,Computer Hardware,CCS MEDIA LIMITED,04/04/2022,"1,009.38"
"Communities, Customer & Commercial Services",ICT,Capital Expenditure,Payments to Contractor,METS Ltd,05/04/2022,"6,085.98"
"Communities, Customer & Commercial Services",ICT,Capital Expenditure,Computer Hardware,CCS MEDIA LIMITED,07/04/2022,"2,723.16"
"Communities, Customer & Commercial Services",ICT,Capital Expenditure,Computer Hardware,CCS MEDIA LIMITED,07/04/2022,113.79
"Communities, Customer & Commercial Services",ICT,Capital Expenditure,Computer Hardware,CCS MEDIA LIMITED,21/04/2022,550.00
"Communities, Customer & Commercial Services",ICT,Capital Expenditure,Computer Hardware,CCS MEDIA LIMITED,22/04/2022,"1,100.00"
"Communities, Customer & Commercial Services",ICT,Capital Expenditure,Payments to Contractor,ICS.Al Ltd,11/04/2022,"2,949.25"
"Communities, Customer & Commercial Services",ICT,Premises-Related Expenditure,R&M -Building Other,COOL SERVICES LTD,20/04/2022,430.00
"Communities, Customer & Commercial Services",ICT,Supplies & Services,Comp Hardware (Purch / Hire),CCS MEDIA LIMITED,07/04/2022,"6,620.80"
"Communities, Customer & Commercial Services",ICT,Supplies & Services,Comp Hardware (Purch / Hire),CCS MEDIA LIMITED,12/04/2022,365.00
"Communities, Customer & Commercial Services",ICT,Supplies & Services,Comp Hardware (Purch / Hire),CCS MEDIA LIMITED,12/04/2022,"25,878.54"
"Communities, Customer & Commercial Services",ICT,Supplies & Services,Comp Hardware (Purch / Hire),CCS MEDIA LIMITED,12/04/2022,996.80
"Communities, Customer & Commercial Services",ICT,Supplies & Services,Comp Hardware (Purch / Hire),CCS MEDIA LIMITED,12/04/2022,"3,520.72"
"Communities, Customer & Commercial Services",ICT,Supplies & Services,Comp Hardware (Purch / Hire),Hutchinson 3G UK Ltd,27/04/2022,"8,999.95"
"Communities, Customer & Commercial Services",ICT,Supplies & Services,Telecomms,Airband Community Internet,04/04/2022,299.99
"Communities, Customer & Commercial Services",ICT,Supplies & Services,Telecomms,Airband Community Internet,04/04/2022,294.99
"Communities, Customer & Commercial Services",ICT,Supplies & Services,Telecomms,Airband Community Internet,04/04/2022,294.99
"Communities, Customer & Commercial Services",ICT,Supplies & Services,Telecomms,Airband Community Internet,04/04/2022,299.99
"Communities, Customer & Commercial Services",ICT,Supplies & Services,Comp Software (Purch / Hire),PHOENIX SOFTWARE LTD,08/04/2022,"2,502.56"
"Communities, Customer & Commercial Services",ICT,Supplies & Services,Text Messages,PROCESS FLOWS UK LTD,04/04/2022,281.34
"Communities, Customer & Commercial Services",ICT,Supplies & Services,Mobile Phones,EE LTD AIRTIME ,05/04/2022,"11,810.67"
"Communities, Customer & Commercial Services",ICT,Supplies & Services,Mobile Phones,EE LTD AIRTIME ,05/04/2022,140.00
"Communities, Customer & Commercial Services",ICT,Supplies & Services,Mobile Phones,EE LTD EQUIPMENT,12/04/2022,135.00
"Communities, Customer & Commercial Services",ICT,Supplies & Services,Telephones,BRITISH TELECOMMUNICATIONS PLC ,14/04/2022,"7,175.53"
"Communities, Customer & Commercial Services",ICT,Supplies & Services,Text Messages,PROCESS FLOWS UK LTD,14/04/2022,"1,580.11"
"Communities, Customer & Commercial Services",ICT,Supplies & Services,Mobile Phones,EE LTD EQUIPMENT ,19/04/2022,141.00
"Communities, Customer & Commercial Services",ICT,Supplies & Services,Mobile Phones,EE LTD EQUIPMENT,26/04/2022,141.00
"Communities, Customer & Commercial Services",ICT,Supplies & Services,Comp Software (Purch / Hire),PLANET DV,25/04/2022,"2,890.65"
"Communities, Customer & Commercial Services",ICT,Supplies & Services,Comp Software (Purch / Hire),PLANET DV,25/04/2022,"1,466.40"
"Communities, Customer & Commercial Services",ICT,Supplies & Services,Comp Software (Purch / Hire),PLANET DV,25/04/2022,"1,785.00"
"Communities, Customer & Commercial Services",ICT,Supplies & Services,Comp Software (Purch / Hire),PLANET DV,27/04/2022,-441.00
"Communities, Customer & Commercial Services",ICT,Supplies & Services,Comp Software (Purch / Hire),Dotted Eyes,01/04/2022,500.00
"Communities, Customer & Commercial Services",ICT,Supplies & Services,Comp Software (Purch / Hire),Safe Apps Limited,01/04/2022,900.00
"Communities, Customer & Commercial Services",ICT,Supplies & Services,Comp Software (Purch / Hire),PHOENIX SOFTWARE LTD,08/04/2022,"148,243.00"
"Communities, Customer & Commercial Services",ICT,Supplies & Services,Comp Software (Purch / Hire),PHOENIX SOFTWARE LTD,08/04/2022,"7,231.00"
"Communities, Customer & Commercial Services",ICT,Supplies & Services,Telecomms,VODAFONE LTD,11/04/2022,"1,694.00"
"Communities, Customer & Commercial Services",ICT,Supplies & Services,Comp Software (Purch / Hire),PILLAR SOFTWARE LIMITED,19/04/2022,"1,370.00"
"Communities, Customer & Commercial Services",ICT,Supplies & Services,Comp Software (Purch / Hire),PHOENIX SOFTWARE LTD,25/04/2022,"3,569.96"
"Communities, Customer & Commercial Services",ICT,Supplies & Services,Comp Software (Purch / Hire),PHOENIX SOFTWARE LTD,25/04/2022,"1,806.67"
"Communities, Customer & Commercial Services",ICT,Supplies & Services,Comp Software (Purch / Hire),PHOENIX SOFTWARE LTD,26/04/2022,373.47
"Communities, Customer & Commercial Services",ICT,Supplies & Services,Comp Software (Purch / Hire),PHOENIX SOFTWARE LTD,26/04/2022,"4,180.71"
"Communities, Customer & Commercial Services",ICT,Supplies & Services,Stationery,PREMIER PAPER GROUP LTD,07/04/2022,114.25
"Communities, Customer & Commercial Services",ICT,Supplies & Services,Equipment - Hire,RICOH UK LIMITED,13/04/2022,"3,317.73"
"Communities, Customer & Commercial Services",ICT,Supplies & Services,Equipment - Hire,RICOH UK LIMITED,13/04/2022,"-3,873.51"
"Communities, Customer & Commercial Services",ICT,Supplies & Services,Comp Hardware (Purch / Hire),CCS MEDIA LIMITED,19/04/2022,705.00
"Communities, Customer & Commercial Services",ICT,Supplies & Services,Comp Hardware (Purch / Hire),CCS MEDIA LIMITED,04/04/2022,170.00
"Communities, Customer & Commercial Services",ICT,Supplies & Services,Comp Hardware (Purch / Hire),INFORMATION DATA NETWORK SUPPLIES LTD,07/04/2022,"1,550.00"
"Communities, Customer & Commercial Services",ICT,Supplies & Services,Telephones,Ghekko LTD,14/04/2022,180.00
"Communities, Customer & Commercial Services",ICT,Supplies & Services,Comp Hardware (Purch / Hire),ICTn Limited,19/04/2022,135.00
"Communities, Customer & Commercial Services",ICT,Supplies & Services,Comp Hardware (Purch / Hire),ICTn Limited,19/04/2022,329.60
"Communities, Customer & Commercial Services",ICT,Supplies & Services,Comp Hardware (Purch / Hire),ICTn Limited,19/04/2022,110.00
"Communities, Customer & Commercial Services",ICT,Supplies & Services,Comp Hardware (Purch / Hire),ICTn Limited,19/04/2022,250.00
"Communities, Customer & Commercial Services",ICT,Supplies & Services,Comp Hardware (Purch / Hire),ICTn Limited,19/04/2022,480.00
"Communities, Customer & Commercial Services",ICT,Supplies & Services,Comp Hardware (Purch / Hire),ICTn Limited,19/04/2022,189.00
"Communities, Customer & Commercial Services",ICT,Supplies & Services,Comp Hardware (Purch / Hire),ICTn Limited,19/04/2022,350.00
"Communities, Customer & Commercial Services",ICT,Supplies & Services,Comp Hardware (Purch / Hire),ICTn Limited,19/04/2022,275.00
"Communities, Customer & Commercial Services",ICT,Supplies & Services,Comp Hardware (Purch / Hire),ICTn Limited,19/04/2022,245.00
"Communities, Customer & Commercial Services",ICT,Supplies & Services,Comp Hardware (Purch / Hire),ICTn Limited,19/04/2022,250.00
"Communities, Customer & Commercial Services",ICT,Supplies & Services,Comp Software (Purch / Hire),ScholarPack,20/04/2022,434.00
"Communities, Customer & Commercial Services",Sport & Leisure,Capital Expenditure,Other Capital Expenditure, THE BEE LADY,04/04/2022,140.00
"Communities, Customer & Commercial Services",Sport & Leisure,Employees,Agency Supply Costs,TOTAL CATERING SOLUTONS RECRUITMENT LTD,19/04/2022,303.60
"Communities, Customer & Commercial Services",Sport & Leisure,Employees,Staff Training,INSTITUTE OF SWIMMING ,19/04/2022,163.50
"Communities, Customer & Commercial Services",Sport & Leisure,Employees,Staff Training,APSE (MANCHESTER),01/04/2022,175.00
"Communities, Customer & Commercial Services",Sport & Leisure,Premises-Related Expenditure,Clean Mats & Toilet Requisites,Border Janitorial Supplies Limited,01/04/2022,129.30
"Communities, Customer & Commercial Services",Sport & Leisure,Premises-Related Expenditure,Clean Mats & Toilet Requisites,Border Janitorial Supplies Limited,04/04/2022,204.72
"Communities, Customer & Commercial Services",Sport & Leisure,Premises-Related Expenditure,Clean Mats & Toilet Requisites,Border Janitorial Supplies Limited,04/04/2022,142.08
"Communities, Customer & Commercial Services",Sport & Leisure,Premises-Related Expenditure,Clean Mats & Toilet Requisites,Border Janitorial Supplies Limited,04/04/2022,137.00
"Communities, Customer & Commercial Services",Sport & Leisure,Premises-Related Expenditure,Clean Mats & Toilet Requisites,Border Janitorial Supplies Limited,11/04/2022,114.24
"Communities, Customer & Commercial Services",Sport & Leisure,Premises-Related Expenditure,Clean Mats & Toilet Requisites,Border Janitorial Supplies Limited,12/04/2022,147.48
"Communities, Customer & Commercial Services",Sport & Leisure,Premises-Related Expenditure,Clean Mats & Toilet Requisites,Border Janitorial Supplies Limited,29/04/2022,400.72
"Communities, Customer & Commercial Services",Sport & Leisure,Premises-Related Expenditure,Clean Mats & Toilet Requisites,Border Janitorial Supplies Limited,12/04/2022,325.75
"Communities, Customer & Commercial Services",Sport & Leisure,Premises-Related Expenditure,Clean Mats & Toilet Requisites,Border Janitorial Supplies Limited,12/04/2022,165.87
"Communities, Customer & Commercial Services",Sport & Leisure,Premises-Related Expenditure,Clean Mats & Toilet Requisites,Border Janitorial Supplies Limited,12/04/2022,127.23
"Communities, Customer & Commercial Services",Sport & Leisure,Premises-Related Expenditure,Clean Mats & Toilet Requisites,Border Janitorial Supplies Limited,20/04/2022,104.35
"Communities, Customer & Commercial Services",Sport & Leisure,Premises-Related Expenditure,Clean Mats & Toilet Requisites,Border Janitorial Supplies Limited,20/04/2022,192.91
"Communities, Customer & Commercial Services",Sport & Leisure,Premises-Related Expenditure,Clean Mats & Toilet Requisites,Border Janitorial Supplies Limited,20/04/2022,103.24
"Communities, Customer & Commercial Services",Sport & Leisure,Premises-Related Expenditure,Clean Mats & Toilet Requisites,Border Janitorial Supplies Limited,20/04/2022,107.74
"Communities, Customer & Commercial Services",Sport & Leisure,Premises-Related Expenditure,Clean Mats & Toilet Requisites,Border Janitorial Supplies Limited,20/04/2022,105.56
"Communities, Customer & Commercial Services",Sport & Leisure,Premises-Related Expenditure,Clean Mats & Toilet Requisites,Border Janitorial Supplies Limited,20/04/2022,116.54
"Communities, Customer & Commercial Services",Sport & Leisure,Premises-Related Expenditure,Clean Mats & Toilet Requisites,Border Janitorial Supplies Limited,20/04/2022,294.12
"Communities, Customer & Commercial Services",Sport & Leisure,Premises-Related Expenditure,Clean Mats & Toilet Requisites,Border Janitorial Supplies Limited,25/04/2022,265.54
"Communities, Customer & Commercial Services",Sport & Leisure,Premises-Related Expenditure,Clean Mats & Toilet Requisites,Border Janitorial Supplies Limited,25/04/2022,215.99
"Communities, Customer & Commercial Services",Sport & Leisure,Premises-Related Expenditure,Clean Mats & Toilet Requisites,Border Janitorial Supplies Limited,12/04/2022,152.09
"Communities, Customer & Commercial Services",Sport & Leisure,Premises-Related Expenditure,Clean Mats & Toilet Requisites,Border Janitorial Supplies Limited,12/04/2022,245.87
"Communities, Customer & Commercial Services",Sport & Leisure,Premises-Related Expenditure,Clean Mats & Toilet Requisites,Border Janitorial Supplies Limited,12/04/2022,275.84
"Communities, Customer & Commercial Services",Sport & Leisure,Premises-Related Expenditure,Clean Mats & Toilet Requisites,Border Janitorial Supplies Limited,12/04/2022,173.75
"Communities, Customer & Commercial Services",Sport & Leisure,Premises-Related Expenditure,Clean Mats & Toilet Requisites,Border Janitorial Supplies Limited,12/04/2022,132.42
"Communities, Customer & Commercial Services",Sport & Leisure,Premises-Related Expenditure,Clean Mats & Toilet Requisites,Border Janitorial Supplies Limited,12/04/2022,344.22
"Communities, Customer & Commercial Services",Sport & Leisure,Premises-Related Expenditure,Clean Mats & Toilet Requisites,Border Janitorial Supplies Limited,12/04/2022,289.74
"Communities, Customer & Commercial Services",Sport & Leisure,Premises-Related Expenditure,Clean Mats & Toilet Requisites,Border Janitorial Supplies Limited,20/04/2022,122.09
"Communities, Customer & Commercial Services",Sport & Leisure,Premises-Related Expenditure,Clean Mats & Toilet Requisites,Border Janitorial Supplies Limited,20/04/2022,228.57
"Communities, Customer & Commercial Services",Sport & Leisure,Premises-Related Expenditure,Clean Mats & Toilet Requisites,Border Janitorial Supplies Limited,20/04/2022,350.44
"Communities, Customer & Commercial Services",Sport & Leisure,Premises-Related Expenditure,Clean Mats & Toilet Requisites,Border Janitorial Supplies Limited,12/04/2022,279.14
"Communities, Customer & Commercial Services",Sport & Leisure,Premises-Related Expenditure,Clean Mats & Toilet Requisites,Border Janitorial Supplies Limited,12/04/2022,102.00
"Communities, Customer & Commercial Services",Sport & Leisure,Premises-Related Expenditure,R&M -Building Other,COOL SERVICES LTD,08/04/2022,230.00
"Communities, Customer & Commercial Services",Sport & Leisure,Premises-Related Expenditure,R&M -Building Other,BRADLEY INDUSTRIAL SERVICES,08/04/2022,249.75
"Communities, Customer & Commercial Services",Sport & Leisure,Premises-Related Expenditure,R&M WC Planned,Agrovista UK LTD,04/04/2022,154.00
"Communities, Customer & Commercial Services",Sport & Leisure,Premises-Related Expenditure,R&M WC Planned,Agrovista UK LTD,07/04/2022,105.20
"Communities, Customer & Commercial Services",Sport & Leisure,Supplies & Services,Crockery/Hardware/Light Equip,CIVICA UK LIMITED ,06/04/2022,"1,149.00"
"Communities, Customer & Commercial Services",Sport & Leisure,Supplies & Services,Publications,ROYAL MAIL GROUP PLC,11/04/2022,100.32
"Communities, Customer & Commercial Services",Sport & Leisure,Supplies & Services,EEC Whole Milk,J DAIRIES,08/04/2022,"1,317.69"
"Communities, Customer & Commercial Services",Sport & Leisure,Supplies & Services,EEC Whole Milk,J DAIRIES,08/04/2022,726.69
"Communities, Customer & Commercial Services",Sport & Leisure,Supplies & Services,EEC Whole Milk,J DAIRIES,19/04/2022,"1,279.88"
"Communities, Customer & Commercial Services",Sport & Leisure,Supplies & Services,EEC Whole Milk,J DAIRIES,19/04/2022,702.81
"Communities, Customer & Commercial Services",Sport & Leisure,Supplies & Services,EEC Whole Milk,J DAIRIES,29/04/2022,726.69
"Communities, Customer & Commercial Services",Sport & Leisure,Supplies & Services,Legal Expenses,J DAIRIES,29/04/2022,730.29
"Communities, Customer & Commercial Services",Sport & Leisure,Supplies & Services,Provisions,BIKOLD,07/04/2022,103.77
"Communities, Customer & Commercial Services",Sport & Leisure,Supplies & Services,Provisions,BIKOLD,28/04/2022,130.09
"Communities, Customer & Commercial Services",Sport & Leisure,Supplies & Services,Provisions,BIKOLD,01/04/2022,191.49
"Communities, Customer & Commercial Services",Sport & Leisure,Supplies & Services,Provisions,BIKOLD,01/04/2022,214.29
"Communities, Customer & Commercial Services",Sport & Leisure,Supplies & Services,Provisions,BIKOLD,01/04/2022,123.22
"Communities, Customer & Commercial Services",Sport & Leisure,Supplies & Services,Provisions,BIKOLD,01/04/2022,121.58
"Communities, Customer & Commercial Services",Sport & Leisure,Supplies & Services,Provisions,BIKOLD,01/04/2022,137.98
"Communities, Customer & Commercial Services",Sport & Leisure,Supplies & Services,Provisions,BIKOLD,01/04/2022,172.92
"Communities, Customer & Commercial Services",Sport & Leisure,Supplies & Services,Provisions,BIKOLD,01/04/2022,258.59
"Communities, Customer & Commercial Services",Sport & Leisure,Supplies & Services,Provisions,BIKOLD,01/04/2022,284.47
"Communities, Customer & Commercial Services",Sport & Leisure,Supplies & Services,Provisions,BIKOLD,01/04/2022,185.62
"Communities, Customer & Commercial Services",Sport & Leisure,Supplies & Services,Provisions,BIKOLD,01/04/2022,290.78
"Communities, Customer & Commercial Services",Sport & Leisure,Supplies & Services,Provisions,BIKOLD,01/04/2022,196.17
"Communities, Customer & Commercial Services",Sport & Leisure,Supplies & Services,Provisions,BIKOLD,01/04/2022,130.80
"Communities, Customer & Commercial Services",Sport & Leisure,Supplies & Services,Provisions,BIKOLD,01/04/2022,189.76
"Communities, Customer & Commercial Services",Sport & Leisure,Supplies & Services,Provisions,BIKOLD,01/04/2022,149.50
"Communities, Customer & Commercial Services",Sport & Leisure,Supplies & Services,Provisions,BIKOLD,01/04/2022,125.60
"Communities, Customer & Commercial Services",Sport & Leisure,Supplies & Services,Provisions,BIKOLD,01/04/2022,183.27
"Communities, Customer & Commercial Services",Sport & Leisure,Supplies & Services,Provisions,BIKOLD,01/04/2022,317.47
"Communities, Customer & Commercial Services",Sport & Leisure,Supplies & Services,Provisions,BIKOLD,01/04/2022,106.34
"Communities, Customer & Commercial Services",Sport & Leisure,Supplies & Services,Provisions,BIKOLD,01/04/2022,105.83
"Communities, Customer & Commercial Services",Sport & Leisure,Supplies & Services,Provisions,BIKOLD,01/04/2022,524.52
"Communities, Customer & Commercial Services",Sport & Leisure,Supplies & Services,Provisions,BIKOLD,01/04/2022,122.87
"Communities, Customer & Commercial Services",Sport & Leisure,Supplies & Services,Provisions,BIKOLD,01/04/2022,167.44
"Communities, Customer & Commercial Services",Sport & Leisure,Supplies & Services,Provisions,BIKOLD,01/04/2022,268.90
"Communities, Customer & Commercial Services",Sport & Leisure,Supplies & Services,Provisions,BIKOLD,01/04/2022,161.86
"Communities, Customer & Commercial Services",Sport & Leisure,Supplies & Services,Provisions,BIKOLD,01/04/2022,152.78
"Communities, Customer & Commercial Services",Sport & Leisure,Supplies & Services,Provisions,BIKOLD,01/04/2022,201.91
"Communities, Customer & Commercial Services",Sport & Leisure,Supplies & Services,Provisions,BIKOLD,01/04/2022,525.80
"Communities, Customer & Commercial Services",Sport & Leisure,Supplies & Services,Provisions,BIKOLD,01/04/2022,106.39
"Communities, Customer & Commercial Services",Sport & Leisure,Supplies & Services,Provisions,BIKOLD,01/04/2022,124.67
"Communities, Customer & Commercial Services",Sport & Leisure,Supplies & Services,Provisions,BIKOLD,01/04/2022,198.76
"Communities, Customer & Commercial Services",Sport & Leisure,Supplies & Services,Provisions,BIKOLD,01/04/2022,252.62
"Communities, Customer & Commercial Services",Sport & Leisure,Supplies & Services,Provisions,BIKOLD,01/04/2022,135.16
"Communities, Customer & Commercial Services",Sport & Leisure,Supplies & Services,Provisions,BIKOLD,01/04/2022,107.28
"Communities, Customer & Commercial Services",Sport & Leisure,Supplies & Services,Provisions,BIKOLD,01/04/2022,157.11
"Communities, Customer & Commercial Services",Sport & Leisure,Supplies & Services,Provisions,BIKOLD,01/04/2022,130.95
"Communities, Customer & Commercial Services",Sport & Leisure,Supplies & Services,Provisions,BIKOLD,01/04/2022,202.55
"Communities, Customer & Commercial Services",Sport & Leisure,Supplies & Services,Provisions,BIKOLD,01/04/2022,202.01
"Communities, Customer & Commercial Services",Sport & Leisure,Supplies & Services,Provisions,BIKOLD,01/04/2022,293.64
"Communities, Customer & Commercial Services",Sport & Leisure,Supplies & Services,Provisions,BIKOLD,01/04/2022,161.14
"Communities, Customer & Commercial Services",Sport & Leisure,Supplies & Services,Provisions,BIKOLD,01/04/2022,140.16
"Communities, Customer & Commercial Services",Sport & Leisure,Supplies & Services,Provisions,BIKOLD,01/04/2022,115.64
"Communities, Customer & Commercial Services",Sport & Leisure,Supplies & Services,Provisions,BIKOLD,01/04/2022,129.18
"Communities, Customer & Commercial Services",Sport & Leisure,Supplies & Services,Provisions,BIKOLD,01/04/2022,-173.12
"Communities, Customer & Commercial Services",Sport & Leisure,Supplies & Services,Provisions,BIKOLD,01/04/2022,283.04
"Communities, Customer & Commercial Services",Sport & Leisure,Supplies & Services,Provisions,BIKOLD,01/04/2022,342.56
"Communities, Customer & Commercial Services",Sport & Leisure,Supplies & Services,Provisions,BIKOLD,01/04/2022,128.82
"Communities, Customer & Commercial Services",Sport & Leisure,Supplies & Services,Provisions,BIKOLD,01/04/2022,206.35
"Communities, Customer & Commercial Services",Sport & Leisure,Supplies & Services,Provisions,BIKOLD,01/04/2022,245.02
"Communities, Customer & Commercial Services",Sport & Leisure,Supplies & Services,Provisions,BIKOLD,01/04/2022,222.73
"Communities, Customer & Commercial Services",Sport & Leisure,Supplies & Services,Provisions,BIKOLD,01/04/2022,186.32
"Communities, Customer & Commercial Services",Sport & Leisure,Supplies & Services,Provisions,BIKOLD,01/04/2022,146.12
"Communities, Customer & Commercial Services",Sport & Leisure,Supplies & Services,Provisions,BIKOLD,01/04/2022,227.09
"Communities, Customer & Commercial Services",Sport & Leisure,Supplies & Services,Provisions,BIKOLD,01/04/2022,347.80
"Communities, Customer & Commercial Services",Sport & Leisure,Supplies & Services,Provisions,BIKOLD,01/04/2022,668.83
"Communities, Customer & Commercial Services",Sport & Leisure,Supplies & Services,Provisions,BIKOLD,01/04/2022,105.37
"Communities, Customer & Commercial Services",Sport & Leisure,Supplies & Services,Provisions,BIKOLD,01/04/2022,451.50
"Communities, Customer & Commercial Services",Sport & Leisure,Supplies & Services,Provisions,BIKOLD,01/04/2022,263.79
"Communities, Customer & Commercial Services",Sport & Leisure,Supplies & Services,Provisions,BIKOLD,01/04/2022,233.24
"Communities, Customer & Commercial Services",Sport & Leisure,Supplies & Services,Provisions,BIKOLD,01/04/2022,264.00
"Communities, Customer & Commercial Services",Sport & Leisure,Supplies & Services,Provisions,BIKOLD,01/04/2022,110.10
"Communities, Customer & Commercial Services",Sport & Leisure,Supplies & Services,Provisions,BIKOLD,01/04/2022,225.27
"Communities, Customer & Commercial Services",Sport & Leisure,Supplies & Services,Provisions,BIKOLD,01/04/2022,384.76
"Communities, Customer & Commercial Services",Sport & Leisure,Supplies & Services,Provisions,BIKOLD,01/04/2022,324.08
"Communities, Customer & Commercial Services",Sport & Leisure,Supplies & Services,Provisions,BIKOLD,01/04/2022,234.95
"Communities, Customer & Commercial Services",Sport & Leisure,Supplies & Services,Provisions,BIKOLD,01/04/2022,203.04
"Communities, Customer & Commercial Services",Sport & Leisure,Supplies & Services,Provisions,BIKOLD,01/04/2022,207.14
"Communities, Customer & Commercial Services",Sport & Leisure,Supplies & Services,Provisions,BIKOLD,01/04/2022,322.70
"Communities, Customer & Commercial Services",Sport & Leisure,Supplies & Services,Provisions,BIKOLD,01/04/2022,152.13
"Communities, Customer & Commercial Services",Sport & Leisure,Supplies & Services,Provisions,BIKOLD,01/04/2022,207.28
"Communities, Customer & Commercial Services",Sport & Leisure,Supplies & Services,Provisions,BIKOLD,01/04/2022,353.46
"Communities, Customer & Commercial Services",Sport & Leisure,Supplies & Services,Provisions,BIKOLD,01/04/2022,140.47
"Communities, Customer & Commercial Services",Sport & Leisure,Supplies & Services,Provisions,BIKOLD,01/04/2022,186.29
"Communities, Customer & Commercial Services",Sport & Leisure,Supplies & Services,Provisions,BIKOLD,01/04/2022,263.04
"Communities, Customer & Commercial Services",Sport & Leisure,Supplies & Services,Provisions,BIKOLD,01/04/2022,303.65
"Communities, Customer & Commercial Services",Sport & Leisure,Supplies & Services,Provisions,BIKOLD,01/04/2022,488.96
"Communities, Customer & Commercial Services",Sport & Leisure,Supplies & Services,Provisions,BIKOLD,01/04/2022,158.00
"Communities, Customer & Commercial Services",Sport & Leisure,Supplies & Services,Provisions,BIKOLD,01/04/2022,246.89
"Communities, Customer & Commercial Services",Sport & Leisure,Supplies & Services,Provisions,BIKOLD,01/04/2022,125.22
"Communities, Customer & Commercial Services",Sport & Leisure,Supplies & Services,Provisions,BIKOLD,01/04/2022,154.94
"Communities, Customer & Commercial Services",Sport & Leisure,Supplies & Services,Provisions,BIKOLD,01/04/2022,110.62
"Communities, Customer & Commercial Services",Sport & Leisure,Supplies & Services,Provisions,BIKOLD,01/04/2022,281.95
"Communities, Customer & Commercial Services",Sport & Leisure,Supplies & Services,Provisions,BIKOLD,01/04/2022,116.62
"Communities, Customer & Commercial Services",Sport & Leisure,Supplies & Services,Provisions,BIKOLD,01/04/2022,454.94
"Communities, Customer & Commercial Services",Sport & Leisure,Supplies & Services,Provisions,BIKOLD,01/04/2022,127.18
"Communities, Customer & Commercial Services",Sport & Leisure,Supplies & Services,Provisions,BIKOLD,01/04/2022,325.32
"Communities, Customer & Commercial Services",Sport & Leisure,Supplies & Services,Provisions,BIKOLD,01/04/2022,101.67
"Communities, Customer & Commercial Services",Sport & Leisure,Supplies & Services,Provisions,BIKOLD,01/04/2022,159.05
"Communities, Customer & Commercial Services",Sport & Leisure,Supplies & Services,Provisions,BIKOLD,01/04/2022,316.83
"Communities, Customer & Commercial Services",Sport & Leisure,Supplies & Services,Provisions,BIKOLD,01/04/2022,195.51
"Communities, Customer & Commercial Services",Sport & Leisure,Supplies & Services,Provisions,BIKOLD,01/04/2022,452.94
"Communities, Customer & Commercial Services",Sport & Leisure,Supplies & Services,Provisions,BIKOLD,01/04/2022,102.86
"Communities, Customer & Commercial Services",Sport & Leisure,Supplies & Services,Provisions,BIKOLD,01/04/2022,245.17
"Communities, Customer & Commercial Services",Sport & Leisure,Supplies & Services,Provisions,BIKOLD,01/04/2022,234.20
"Communities, Customer & Commercial Services",Sport & Leisure,Supplies & Services,Provisions,BIKOLD,01/04/2022,491.75
"Communities, Customer & Commercial Services",Sport & Leisure,Supplies & Services,Provisions,BIKOLD,01/04/2022,230.03
"Communities, Customer & Commercial Services",Sport & Leisure,Supplies & Services,Crockery/Hardware/Light Equip,E NCATERING EQUIPMENT AND SERVICES  LTD,01/04/2022,752.77
"Communities, Customer & Commercial Services",Sport & Leisure,Supplies & Services,Crockery/Hardware/Light Equip,PLANGLOW LTD,01/04/2022,432.82
"Communities, Customer & Commercial Services",Sport & Leisure,Supplies & Services,Crockery/Hardware/Light Equip,E N CATERING EQUIPMENT AND SERVICES  LTD,04/04/2022,279.92
"Communities, Customer & Commercial Services",Sport & Leisure,Supplies & Services,Provisions,J S Catering Butchers,04/04/2022,144.00
"Communities, Customer & Commercial Services",Sport & Leisure,Supplies & Services,Provisions,J S Catering Butchers,04/04/2022,182.52
"Communities, Customer & Commercial Services",Sport & Leisure,Supplies & Services,Provisions,J S Catering Butchers,04/04/2022,111.30
"Communities, Customer & Commercial Services",Sport & Leisure,Supplies & Services,Provisions,J S Catering Butchers,04/04/2022,357.51
"Communities, Customer & Commercial Services",Sport & Leisure,Supplies & Services,Provisions,J S Catering Butchers,04/04/2022,323.52
"Communities, Customer & Commercial Services",Sport & Leisure,Supplies & Services,Provisions,J S Catering Butchers,04/04/2022,168.00
"Communities, Customer & Commercial Services",Sport & Leisure,Supplies & Services,Provisions,J S Catering Butchers,04/04/2022,205.30
"Communities, Customer & Commercial Services",Sport & Leisure,Supplies & Services,Provisions,J S Catering Butchers,04/04/2022,110.40
"Communities, Customer & Commercial Services",Sport & Leisure,Supplies & Services,Provisions,J S Catering Butchers,04/04/2022,125.04
"Communities, Customer & Commercial Services",Sport & Leisure,Supplies & Services,Provisions,J S Catering Butchers,05/04/2022,108.61
"Communities, Customer & Commercial Services",Sport & Leisure,Supplies & Services,Provisions,J S Catering Butchers,05/04/2022,287.01
"Communities, Customer & Commercial Services",Sport & Leisure,Supplies & Services,Provisions,J S Catering Butchers,05/04/2022,174.15
"Communities, Customer & Commercial Services",Sport & Leisure,Supplies & Services,Provisions,J S Catering Butchers,05/04/2022,163.14
"Communities, Customer & Commercial Services",Sport & Leisure,Supplies & Services,Provisions,J S Catering Butchers,05/04/2022,148.08
"Communities, Customer & Commercial Services",Sport & Leisure,Supplies & Services,Provisions,J S Catering Butchers,05/04/2022,128.00
"Communities, Customer & Commercial Services",Sport & Leisure,Supplies & Services,Provisions,J S Catering Butchers,05/04/2022,111.36
"Communities, Customer & Commercial Services",Sport & Leisure,Supplies & Services,Provisions,J S Catering Butchers,05/04/2022,168.00
"Communities, Customer & Commercial Services",Sport & Leisure,Supplies & Services,Provisions,J S Catering Butchers,05/04/2022,182.52
"Communities, Customer & Commercial Services",Sport & Leisure,Supplies & Services,Provisions,J S Catering Butchers,05/04/2022,256.69
"Communities, Customer & Commercial Services",Sport & Leisure,Supplies & Services,Provisions,J S Catering Butchers,05/04/2022,252.44
"Communities, Customer & Commercial Services",Sport & Leisure,Supplies & Services,Provisions,Delice de France,06/04/2022,109.89
"Communities, Customer & Commercial Services",Sport & Leisure,Supplies & Services,Provisions,R & COMPANY,06/04/2022,195.57
"Communities, Customer & Commercial Services",Sport & Leisure,Supplies & Services,Provisions,R & COMPANY,06/04/2022,113.71
"Communities, Customer & Commercial Services",Sport & Leisure,Supplies & Services,Provisions,R & COMPANY,06/04/2022,139.16
"Communities, Customer & Commercial Services",Sport & Leisure,Supplies & Services,Provisions,R & COMPANY,06/04/2022,112.61
"Communities, Customer & Commercial Services",Sport & Leisure,Supplies & Services,Provisions,R & COMPANY,06/04/2022,179.64
"Communities, Customer & Commercial Services",Sport & Leisure,Supplies & Services,Provisions,R & COMPANY,06/04/2022,114.24
"Communities, Customer & Commercial Services",Sport & Leisure,Supplies & Services,Provisions,R & COMPANY,06/04/2022,117.06
"Communities, Customer & Commercial Services",Sport & Leisure,Supplies & Services,Provisions,R & COMPANY,06/04/2022,309.63
"Communities, Customer & Commercial Services",Sport & Leisure,Supplies & Services,Provisions,R & COMPANY,06/04/2022,114.69
"Communities, Customer & Commercial Services",Sport & Leisure,Supplies & Services,Provisions,R & COMPANY,06/04/2022,130.11
"Communities, Customer & Commercial Services",Sport & Leisure,Supplies & Services,Provisions,R & COMPANY,06/04/2022,124.97
"Communities, Customer & Commercial Services",Sport & Leisure,Supplies & Services,Provisions,R & COMPANY,06/04/2022,100.10
"Communities, Customer & Commercial Services",Sport & Leisure,Supplies & Services,Provisions,BIKOLD,07/04/2022,163.67
"Communities, Customer & Commercial Services",Sport & Leisure,Supplies & Services,Provisions,BIKOLD,07/04/2022,279.76
"Communities, Customer & Commercial Services",Sport & Leisure,Supplies & Services,Provisions,BIKOLD,07/04/2022,371.70
"Communities, Customer & Commercial Services",Sport & Leisure,Supplies & Services,Provisions,BIKOLD,07/04/2022,327.02
"Communities, Customer & Commercial Services",Sport & Leisure,Supplies & Services,Provisions,BIKOLD,07/04/2022,184.54
"Communities, Customer & Commercial Services",Sport & Leisure,Supplies & Services,Provisions,BIKOLD,07/04/2022,502.01
"Communities, Customer & Commercial Services",Sport & Leisure,Supplies & Services,Provisions,BIKOLD,07/04/2022,202.21
"Communities, Customer & Commercial Services",Sport & Leisure,Supplies & Services,Provisions,BIKOLD,07/04/2022,397.04
"Communities, Customer & Commercial Services",Sport & Leisure,Supplies & Services,Provisions,BIKOLD,07/04/2022,134.29
"Communities, Customer & Commercial Services",Sport & Leisure,Supplies & Services,Provisions,BIKOLD,07/04/2022,119.54
"Communities, Customer & Commercial Services",Sport & Leisure,Supplies & Services,Provisions,BIKOLD,07/04/2022,226.15
"Communities, Customer & Commercial Services",Sport & Leisure,Supplies & Services,Provisions,BIKOLD,07/04/2022,171.67
"Communities, Customer & Commercial Services",Sport & Leisure,Supplies & Services,Provisions,BIKOLD,07/04/2022,229.99
"Communities, Customer & Commercial Services",Sport & Leisure,Supplies & Services,Provisions,BIKOLD,07/04/2022,163.63
"Communities, Customer & Commercial Services",Sport & Leisure,Supplies & Services,Provisions,BIKOLD,07/04/2022,178.06
"Communities, Customer & Commercial Services",Sport & Leisure,Supplies & Services,Provisions,BIKOLD,07/04/2022,204.48
"Communities, Customer & Commercial Services",Sport & Leisure,Supplies & Services,Provisions,BIKOLD,07/04/2022,243.16
"Communities, Customer & Commercial Services",Sport & Leisure,Supplies & Services,Provisions,BIKOLD,07/04/2022,271.66
"Communities, Customer & Commercial Services",Sport & Leisure,Supplies & Services,Provisions,BIKOLD,07/04/2022,129.04
"Communities, Customer & Commercial Services",Sport & Leisure,Supplies & Services,Provisions,BIKOLD,07/04/2022,158.47
"Communities, Customer & Commercial Services",Sport & Leisure,Supplies & Services,Provisions,BIKOLD,07/04/2022,227.66
"Communities, Customer & Commercial Services",Sport & Leisure,Supplies & Services,Provisions,BIKOLD,07/04/2022,124.76
"Communities, Customer & Commercial Services",Sport & Leisure,Supplies & Services,Provisions,BIKOLD,07/04/2022,144.09
"Communities, Customer & Commercial Services",Sport & Leisure,Supplies & Services,Provisions,BIKOLD,07/04/2022,146.23
"Communities, Customer & Commercial Services",Sport & Leisure,Supplies & Services,Provisions,BIKOLD,07/04/2022,198.60
"Communities, Customer & Commercial Services",Sport & Leisure,Supplies & Services,Provisions,BIKOLD,07/04/2022,119.84
"Communities, Customer & Commercial Services",Sport & Leisure,Supplies & Services,Provisions,BIKOLD,07/04/2022,101.26
"Communities, Customer & Commercial Services",Sport & Leisure,Supplies & Services,Provisions,BIKOLD,07/04/2022,190.87
"Communities, Customer & Commercial Services",Sport & Leisure,Supplies & Services,Provisions,BIKOLD,07/04/2022,124.72
"Communities, Customer & Commercial Services",Sport & Leisure,Supplies & Services,Provisions,BIKOLD,07/04/2022,150.15
"Communities, Customer & Commercial Services",Sport & Leisure,Supplies & Services,Provisions,BIKOLD,07/04/2022,106.11
"Communities, Customer & Commercial Services",Sport & Leisure,Supplies & Services,Provisions,BIKOLD,07/04/2022,172.86
"Communities, Customer & Commercial Services",Sport & Leisure,Supplies & Services,Provisions,BIKOLD,07/04/2022,204.64
"Communities, Customer & Commercial Services",Sport & Leisure,Supplies & Services,Provisions,BIKOLD,07/04/2022,240.07
"Communities, Customer & Commercial Services",Sport & Leisure,Supplies & Services,Provisions,BIKOLD,07/04/2022,185.18
"Communities, Customer & Commercial Services",Sport & Leisure,Supplies & Services,Provisions,BIKOLD,07/04/2022,211.71
"Communities, Customer & Commercial Services",Sport & Leisure,Supplies & Services,Provisions,BIKOLD,07/04/2022,123.92
"Communities, Customer & Commercial Services",Sport & Leisure,Supplies & Services,Provisions,BIKOLD,07/04/2022,483.56
"Communities, Customer & Commercial Services",Sport & Leisure,Supplies & Services,Provisions,BIKOLD,07/04/2022,-186.29
"Communities, Customer & Commercial Services",Sport & Leisure,Supplies & Services,Provisions,BIKOLD,07/04/2022,189.81
"Communities, Customer & Commercial Services",Sport & Leisure,Supplies & Services,Provisions,BIKOLD,07/04/2022,106.56
"Communities, Customer & Commercial Services",Sport & Leisure,Supplies & Services,Provisions,BIKOLD,07/04/2022,129.59
"Communities, Customer & Commercial Services",Sport & Leisure,Supplies & Services,Provisions,BIKOLD,07/04/2022,101.71
"Communities, Customer & Commercial Services",Sport & Leisure,Supplies & Services,Provisions,BIKOLD,07/04/2022,270.80
"Communities, Customer & Commercial Services",Sport & Leisure,Supplies & Services,Provisions,BIKOLD,07/04/2022,148.13
"Communities, Customer & Commercial Services",Sport & Leisure,Supplies & Services,Provisions,BIKOLD,07/04/2022,196.04
"Communities, Customer & Commercial Services",Sport & Leisure,Supplies & Services,Provisions,BIKOLD,07/04/2022,146.88
"Communities, Customer & Commercial Services",Sport & Leisure,Supplies & Services,Provisions,BIKOLD,07/04/2022,219.48
"Communities, Customer & Commercial Services",Sport & Leisure,Supplies & Services,Provisions,BIKOLD,07/04/2022,186.29
"Communities, Customer & Commercial Services",Sport & Leisure,Supplies & Services,Provisions,BIKOLD,07/04/2022,230.20
"Communities, Customer & Commercial Services",Sport & Leisure,Supplies & Services,Provisions,BIKOLD,07/04/2022,174.14
"Communities, Customer & Commercial Services",Sport & Leisure,Supplies & Services,Provisions,BIKOLD,07/04/2022,132.64
"Communities, Customer & Commercial Services",Sport & Leisure,Supplies & Services,Provisions,BIKOLD,07/04/2022,182.35
"Communities, Customer & Commercial Services",Sport & Leisure,Supplies & Services,Provisions,BIKOLD,07/04/2022,181.26
"Communities, Customer & Commercial Services",Sport & Leisure,Supplies & Services,Provisions,BIKOLD,07/04/2022,416.13
"Communities, Customer & Commercial Services",Sport & Leisure,Supplies & Services,Provisions,BIKOLD,07/04/2022,196.58
"Communities, Customer & Commercial Services",Sport & Leisure,Supplies & Services,Provisions,BIKOLD,07/04/2022,247.17
"Communities, Customer & Commercial Services",Sport & Leisure,Supplies & Services,Provisions,BIKOLD,07/04/2022,127.73
"Communities, Customer & Commercial Services",Sport & Leisure,Supplies & Services,Provisions,BIKOLD,07/04/2022,109.29
"Communities, Customer & Commercial Services",Sport & Leisure,Supplies & Services,Provisions,BIKOLD,07/04/2022,245.52
"Communities, Customer & Commercial Services",Sport & Leisure,Supplies & Services,Provisions,BIKOLD,07/04/2022,186.85
"Communities, Customer & Commercial Services",Sport & Leisure,Supplies & Services,Provisions,BIKOLD,07/04/2022,-123.60
"Communities, Customer & Commercial Services",Sport & Leisure,Supplies & Services,Provisions,BIKOLD,07/04/2022,248.49
"Communities, Customer & Commercial Services",Sport & Leisure,Supplies & Services,Provisions,BIKOLD,07/04/2022,315.33
"Communities, Customer & Commercial Services",Sport & Leisure,Supplies & Services,Provisions,BIKOLD,07/04/2022,324.97
"Communities, Customer & Commercial Services",Sport & Leisure,Supplies & Services,Provisions,BIKOLD,07/04/2022,129.84
"Communities, Customer & Commercial Services",Sport & Leisure,Supplies & Services,Provisions,BIKOLD,07/04/2022,282.15
"Communities, Customer & Commercial Services",Sport & Leisure,Supplies & Services,Provisions,BIKOLD,07/04/2022,376.67
"Communities, Customer & Commercial Services",Sport & Leisure,Supplies & Services,Provisions,BIKOLD,07/04/2022,130.57
"Communities, Customer & Commercial Services",Sport & Leisure,Supplies & Services,Provisions,BIKOLD,07/04/2022,249.49
"Communities, Customer & Commercial Services",Sport & Leisure,Supplies & Services,Provisions,BIKOLD,07/04/2022,192.34
"Communities, Customer & Commercial Services",Sport & Leisure,Supplies & Services,Provisions,BIKOLD,07/04/2022,191.02
"Communities, Customer & Commercial Services",Sport & Leisure,Supplies & Services,Provisions,BIKOLD,07/04/2022,161.79
"Communities, Customer & Commercial Services",Sport & Leisure,Supplies & Services,Provisions,BIKOLD,07/04/2022,170.84
"Communities, Customer & Commercial Services",Sport & Leisure,Supplies & Services,Provisions,BIKOLD,07/04/2022,112.47
"Communities, Customer & Commercial Services",Sport & Leisure,Supplies & Services,Provisions,BIKOLD,07/04/2022,123.85
"Communities, Customer & Commercial Services",Sport & Leisure,Supplies & Services,Provisions,BIKOLD,07/04/2022,261.77
"Communities, Customer & Commercial Services",Sport & Leisure,Supplies & Services,Provisions,BIKOLD,07/04/2022,229.89
"Communities, Customer & Commercial Services",Sport & Leisure,Supplies & Services,Provisions,BIKOLD,07/04/2022,366.93
"Communities, Customer & Commercial Services",Sport & Leisure,Supplies & Services,Provisions,BIKOLD,07/04/2022,137.60
"Communities, Customer & Commercial Services",Sport & Leisure,Supplies & Services,Provisions,BIKOLD,07/04/2022,144.25
"Communities, Customer & Commercial Services",Sport & Leisure,Supplies & Services,Provisions,BIKOLD,07/04/2022,110.69
"Communities, Customer & Commercial Services",Sport & Leisure,Supplies & Services,Provisions,BIKOLD,07/04/2022,201.29
"Communities, Customer & Commercial Services",Sport & Leisure,Supplies & Services,Provisions,BIKOLD,07/04/2022,348.43
"Communities, Customer & Commercial Services",Sport & Leisure,Supplies & Services,Provisions,BIKOLD,07/04/2022,236.05
"Communities, Customer & Commercial Services",Sport & Leisure,Supplies & Services,Provisions,BIKOLD,07/04/2022,169.63
"Communities, Customer & Commercial Services",Sport & Leisure,Supplies & Services,Provisions,BIKOLD,07/04/2022,190.72
"Communities, Customer & Commercial Services",Sport & Leisure,Supplies & Services,Provisions,BIKOLD,07/04/2022,111.54
"Communities, Customer & Commercial Services",Sport & Leisure,Supplies & Services,Provisions,BIKOLD,07/04/2022,200.30
"Communities, Customer & Commercial Services",Sport & Leisure,Supplies & Services,Provisions,BIKOLD,07/04/2022,103.71
"Communities, Customer & Commercial Services",Sport & Leisure,Supplies & Services,Provisions,BIKOLD,07/04/2022,126.84
"Communities, Customer & Commercial Services",Sport & Leisure,Supplies & Services,Provisions,BIKOLD,07/04/2022,286.02
"Communities, Customer & Commercial Services",Sport & Leisure,Supplies & Services,Provisions,BIKOLD,07/04/2022,117.96
"Communities, Customer & Commercial Services",Sport & Leisure,Supplies & Services,Provisions,BIKOLD,07/04/2022,172.81
"Communities, Customer & Commercial Services",Sport & Leisure,Supplies & Services,Provisions,BIKOLD,07/04/2022,382.21
"Communities, Customer & Commercial Services",Sport & Leisure,Supplies & Services,Provisions,BIKOLD,07/04/2022,177.57
"Communities, Customer & Commercial Services",Sport & Leisure,Supplies & Services,Provisions,BIKOLD,07/04/2022,102.98
"Communities, Customer & Commercial Services",Sport & Leisure,Supplies & Services,Provisions,R & COMPANY,13/04/2022,102.08
"Communities, Customer & Commercial Services",Sport & Leisure,Supplies & Services,Provisions,R & COMPANY,13/04/2022,165.27
"Communities, Customer & Commercial Services",Sport & Leisure,Supplies & Services,Provisions,R & COMPANY,13/04/2022,106.64
"Communities, Customer & Commercial Services",Sport & Leisure,Supplies & Services,Provisions,R & COMPANY,13/04/2022,292.00
"Communities, Customer & Commercial Services",Sport & Leisure,Supplies & Services,Provisions,R & COMPANY,13/04/2022,138.05
"Communities, Customer & Commercial Services",Sport & Leisure,Supplies & Services,Provisions,R & COMPANY,13/04/2022,108.08
"Communities, Customer & Commercial Services",Sport & Leisure,Supplies & Services,Provisions,R & COMPANY,13/04/2022,110.68
"Communities, Customer & Commercial Services",Sport & Leisure,Supplies & Services,Provisions,R & COMPANY,13/04/2022,221.88
"Communities, Customer & Commercial Services",Sport & Leisure,Supplies & Services,Provisions,R & COMPANY,13/04/2022,103.46
"Communities, Customer & Commercial Services",Sport & Leisure,Supplies & Services,Provisions,R & COMPANY,13/04/2022,173.75
"Communities, Customer & Commercial Services",Sport & Leisure,Supplies & Services,Provisions,R & COMPANY,13/04/2022,115.26
"Communities, Customer & Commercial Services",Sport & Leisure,Supplies & Services,Provisions,R & COMPANY,13/04/2022,108.09
"Communities, Customer & Commercial Services",Sport & Leisure,Supplies & Services,Provisions,J S Catering Butchers,13/04/2022,168.00
"Communities, Customer & Commercial Services",Sport & Leisure,Supplies & Services,Provisions,J S Catering Butchers,13/04/2022,160.75
"Communities, Customer & Commercial Services",Sport & Leisure,Supplies & Services,Provisions,J S Catering Butchers,13/04/2022,339.46
"Communities, Customer & Commercial Services",Sport & Leisure,Supplies & Services,Provisions,J S Catering Butchers,13/04/2022,107.87
"Communities, Customer & Commercial Services",Sport & Leisure,Supplies & Services,Provisions,J S Catering Butchers,13/04/2022,124.16
"Communities, Customer & Commercial Services",Sport & Leisure,Supplies & Services,Provisions,J S Catering Butchers,13/04/2022,133.96
"Communities, Customer & Commercial Services",Sport & Leisure,Supplies & Services,Provisions,J S Catering Butchers,13/04/2022,168.74
"Communities, Customer & Commercial Services",Sport & Leisure,Supplies & Services,Provisions,J S Catering Butchers,13/04/2022,167.86
"Communities, Customer & Commercial Services",Sport & Leisure,Supplies & Services,Provisions,J S Catering Butchers,13/04/2022,130.28
"Communities, Customer & Commercial Services",Sport & Leisure,Supplies & Services,Provisions,BIKOLD,14/04/2022,128.95
"Communities, Customer & Commercial Services",Sport & Leisure,Supplies & Services,Provisions,BIKOLD,14/04/2022,349.90
"Communities, Customer & Commercial Services",Sport & Leisure,Supplies & Services,Provisions,BIKOLD,14/04/2022,517.41
"Communities, Customer & Commercial Services",Sport & Leisure,Supplies & Services,Provisions,BIKOLD,14/04/2022,114.00
"Communities, Customer & Commercial Services",Sport & Leisure,Supplies & Services,Provisions,BIKOLD,14/04/2022,212.81
"Communities, Customer & Commercial Services",Sport & Leisure,Supplies & Services,Holidays & Outings,E N CATERING EQUIPMENT AND SERVICES  LTD,19/04/2022,115.60
"Communities, Customer & Commercial Services",Sport & Leisure,Supplies & Services,Crockery/Hardware/Light Equip,Elygra Limited,19/04/2022,465.00
"Communities, Customer & Commercial Services",Sport & Leisure,Supplies & Services,Crockery/Hardware/Light Equip,Elygra Limited,19/04/2022,651.00
"Communities, Customer & Commercial Services",Sport & Leisure,Supplies & Services,Provisions,BIKOLD,28/04/2022,529.52
"Communities, Customer & Commercial Services",Sport & Leisure,Supplies & Services,Provisions,BIKOLD,28/04/2022,160.20
"Communities, Customer & Commercial Services",Sport & Leisure,Supplies & Services,Provisions,BIKOLD,28/04/2022,102.51
"Communities, Customer & Commercial Services",Sport & Leisure,Supplies & Services,Provisions,BIKOLD,28/04/2022,350.75
"Communities, Customer & Commercial Services",Sport & Leisure,Supplies & Services,Provisions,BIKOLD,28/04/2022,138.22
"Communities, Customer & Commercial Services",Sport & Leisure,Supplies & Services,Provisions,BIKOLD,28/04/2022,123.76
"Communities, Customer & Commercial Services",Sport & Leisure,Supplies & Services,Provisions,BIKOLD,28/04/2022,129.90
"Communities, Customer & Commercial Services",Sport & Leisure,Supplies & Services,Provisions,BIKOLD,28/04/2022,180.57
"Communities, Customer & Commercial Services",Sport & Leisure,Supplies & Services,Provisions,BIKOLD,28/04/2022,496.85
"Communities, Customer & Commercial Services",Sport & Leisure,Supplies & Services,Provisions,BIKOLD,28/04/2022,252.57
"Communities, Customer & Commercial Services",Sport & Leisure,Supplies & Services,Provisions,BIKOLD,28/04/2022,356.99
"Communities, Customer & Commercial Services",Sport & Leisure,Supplies & Services,Provisions,BIKOLD,28/04/2022,487.59
"Communities, Customer & Commercial Services",Sport & Leisure,Supplies & Services,Provisions,BIKOLD,28/04/2022,402.44
"Communities, Customer & Commercial Services",Sport & Leisure,Supplies & Services,Provisions,BIKOLD,28/04/2022,233.15
"Communities, Customer & Commercial Services",Sport & Leisure,Supplies & Services,Provisions,BIKOLD,28/04/2022,257.86
"Communities, Customer & Commercial Services",Sport & Leisure,Supplies & Services,Provisions,BIKOLD,28/04/2022,164.63
"Communities, Customer & Commercial Services",Sport & Leisure,Supplies & Services,Provisions,BIKOLD,28/04/2022,199.87
"Communities, Customer & Commercial Services",Sport & Leisure,Supplies & Services,Provisions,BIKOLD,28/04/2022,117.42
"Communities, Customer & Commercial Services",Sport & Leisure,Supplies & Services,Provisions,BIKOLD,28/04/2022,459.96
"Communities, Customer & Commercial Services",Sport & Leisure,Supplies & Services,Provisions,BIKOLD,28/04/2022,150.29
"Communities, Customer & Commercial Services",Sport & Leisure,Supplies & Services,Provisions,BIKOLD,28/04/2022,199.16
"Communities, Customer & Commercial Services",Sport & Leisure,Supplies & Services,Provisions,BIKOLD,28/04/2022,251.44
"Communities, Customer & Commercial Services",Sport & Leisure,Supplies & Services,Provisions,BIKOLD,28/04/2022,490.47
"Communities, Customer & Commercial Services",Sport & Leisure,Supplies & Services,Provisions,BIKOLD,28/04/2022,357.16
"Communities, Customer & Commercial Services",Sport & Leisure,Supplies & Services,Provisions,BIKOLD,28/04/2022,152.32
"Communities, Customer & Commercial Services",Sport & Leisure,Supplies & Services,Provisions,BIKOLD,28/04/2022,182.11
"Communities, Customer & Commercial Services",Sport & Leisure,Supplies & Services,Provisions,BIKOLD,28/04/2022,133.32
"Communities, Customer & Commercial Services",Sport & Leisure,Supplies & Services,Provisions,BIKOLD,28/04/2022,132.52
"Communities, Customer & Commercial Services",Sport & Leisure,Supplies & Services,Provisions,BIKOLD,28/04/2022,333.95
"Communities, Customer & Commercial Services",Sport & Leisure,Supplies & Services,Provisions,BIKOLD,28/04/2022,298.88
"Communities, Customer & Commercial Services",Sport & Leisure,Supplies & Services,Provisions,BIKOLD,28/04/2022,217.88
"Communities, Customer & Commercial Services",Sport & Leisure,Supplies & Services,Provisions,BIKOLD,28/04/2022,111.24
"Communities, Customer & Commercial Services",Sport & Leisure,Supplies & Services,Provisions,BIKOLD,28/04/2022,128.37
"Communities, Customer & Commercial Services",Sport & Leisure,Supplies & Services,Provisions,BIKOLD,28/04/2022,298.05
"Communities, Customer & Commercial Services",Sport & Leisure,Supplies & Services,Provisions,BIKOLD,28/04/2022,354.19
"Communities, Customer & Commercial Services",Sport & Leisure,Supplies & Services,Provisions,BIKOLD,28/04/2022,156.02
"Communities, Customer & Commercial Services",Sport & Leisure,Supplies & Services,Provisions,BIKOLD,28/04/2022,147.15
"Communities, Customer & Commercial Services",Sport & Leisure,Supplies & Services,Provisions,BIKOLD,28/04/2022,308.78
"Communities, Customer & Commercial Services",Sport & Leisure,Supplies & Services,Provisions,BIKOLD,28/04/2022,167.46
"Communities, Customer & Commercial Services",Sport & Leisure,Supplies & Services,Provisions,BIKOLD,28/04/2022,132.69
"Communities, Customer & Commercial Services",Sport & Leisure,Supplies & Services,Provisions,BIKOLD,28/04/2022,123.80
"Communities, Customer & Commercial Services",Sport & Leisure,Supplies & Services,Provisions,BIKOLD,28/04/2022,101.49
"Communities, Customer & Commercial Services",Sport & Leisure,Supplies & Services,Provisions,BIKOLD,28/04/2022,172.23
"Communities, Customer & Commercial Services",Sport & Leisure,Supplies & Services,Provisions,BIKOLD,28/04/2022,224.21
"Communities, Customer & Commercial Services",Sport & Leisure,Supplies & Services,Provisions,BIKOLD,28/04/2022,178.00
"Communities, Customer & Commercial Services",Sport & Leisure,Supplies & Services,Provisions,BIKOLD,28/04/2022,202.63
"Communities, Customer & Commercial Services",Sport & Leisure,Supplies & Services,Provisions,BIKOLD,28/04/2022,313.77
"Communities, Customer & Commercial Services",Sport & Leisure,Supplies & Services,Provisions,BIKOLD,28/04/2022,264.35
"Communities, Customer & Commercial Services",Sport & Leisure,Supplies & Services,Provisions,BIKOLD,28/04/2022,649.38
"Communities, Customer & Commercial Services",Sport & Leisure,Supplies & Services,Provisions,BIKOLD,28/04/2022,321.99
"Communities, Customer & Commercial Services",Sport & Leisure,Supplies & Services,Provisions,BIKOLD,28/04/2022,816.37
"Communities, Customer & Commercial Services",Sport & Leisure,Supplies & Services,Provisions,BIKOLD,28/04/2022,145.28
"Communities, Customer & Commercial Services",Sport & Leisure,Supplies & Services,Provisions,BIKOLD,28/04/2022,156.17
"Communities, Customer & Commercial Services",Sport & Leisure,Supplies & Services,Provisions,BIKOLD,28/04/2022,490.78
"Communities, Customer & Commercial Services",Sport & Leisure,Supplies & Services,Provisions,BIKOLD,28/04/2022,273.79
"Communities, Customer & Commercial Services",Sport & Leisure,Supplies & Services,Provisions,BIKOLD,28/04/2022,144.99
"Communities, Customer & Commercial Services",Sport & Leisure,Supplies & Services,Provisions,BIKOLD,28/04/2022,240.67
"Communities, Customer & Commercial Services",Sport & Leisure,Supplies & Services,Provisions,BIKOLD,28/04/2022,155.45
"Communities, Customer & Commercial Services",Sport & Leisure,Supplies & Services,Provisions,BIKOLD,28/04/2022,555.95
"Communities, Customer & Commercial Services",Sport & Leisure,Supplies & Services,Provisions,BIKOLD,28/04/2022,179.55
"Communities, Customer & Commercial Services",Sport & Leisure,Supplies & Services,Provisions,BIKOLD,28/04/2022,102.37
"Communities, Customer & Commercial Services",Sport & Leisure,Supplies & Services,Provisions,BIKOLD,28/04/2022,106.44
"Communities, Customer & Commercial Services",Sport & Leisure,Supplies & Services,Provisions,BIKOLD,28/04/2022,325.27
"Communities, Customer & Commercial Services",Sport & Leisure,Supplies & Services,Provisions,BIKOLD,28/04/2022,127.81
"Communities, Customer & Commercial Services",Sport & Leisure,Supplies & Services,Provisions,BIKOLD,28/04/2022,166.05
"Communities, Customer & Commercial Services",Sport & Leisure,Supplies & Services,Provisions,BIKOLD,28/04/2022,153.06
"Communities, Customer & Commercial Services",Sport & Leisure,Supplies & Services,Provisions,BIKOLD,28/04/2022,221.47
"Communities, Customer & Commercial Services",Sport & Leisure,Supplies & Services,Provisions,BIKOLD,28/04/2022,132.77
"Communities, Customer & Commercial Services",Sport & Leisure,Supplies & Services,Provisions,BIKOLD,28/04/2022,117.35
"Communities, Customer & Commercial Services",Sport & Leisure,Supplies & Services,Provisions,BIKOLD,28/04/2022,306.55
"Communities, Customer & Commercial Services",Sport & Leisure,Supplies & Services,Provisions,BIKOLD,28/04/2022,116.96
"Communities, Customer & Commercial Services",Sport & Leisure,Supplies & Services,Provisions,BIKOLD,28/04/2022,"1,117.38"
"Communities, Customer & Commercial Services",Sport & Leisure,Supplies & Services,Provisions,BIKOLD,28/04/2022,375.11
"Communities, Customer & Commercial Services",Sport & Leisure,Supplies & Services,Provisions,BIKOLD,28/04/2022,520.11
"Communities, Customer & Commercial Services",Sport & Leisure,Supplies & Services,Provisions,BIKOLD,28/04/2022,456.84
"Communities, Customer & Commercial Services",Sport & Leisure,Supplies & Services,Provisions,BIKOLD,28/04/2022,223.80
"Communities, Customer & Commercial Services",Sport & Leisure,Supplies & Services,Provisions,BIKOLD,28/04/2022,492.82
"Communities, Customer & Commercial Services",Sport & Leisure,Supplies & Services,Provisions,BIKOLD,28/04/2022,208.95
"Communities, Customer & Commercial Services",Sport & Leisure,Supplies & Services,Provisions,BIKOLD,28/04/2022,127.64
"Communities, Customer & Commercial Services",Sport & Leisure,Supplies & Services,Provisions,BIKOLD,28/04/2022,892.44
"Communities, Customer & Commercial Services",Sport & Leisure,Supplies & Services,Provisions,BIKOLD,28/04/2022,252.05
"Communities, Customer & Commercial Services",Sport & Leisure,Supplies & Services,Provisions,BIKOLD,28/04/2022,181.69
"Communities, Customer & Commercial Services",Sport & Leisure,Supplies & Services,Provisions,BIKOLD,28/04/2022,283.78
"Communities, Customer & Commercial Services",Sport & Leisure,Supplies & Services,Provisions,BIKOLD,28/04/2022,210.00
"Communities, Customer & Commercial Services",Sport & Leisure,Supplies & Services,Provisions,BIKOLD,28/04/2022,235.03
"Communities, Customer & Commercial Services",Sport & Leisure,Supplies & Services,Provisions,BIKOLD,28/04/2022,219.37
"Communities, Customer & Commercial Services",Sport & Leisure,Supplies & Services,Provisions,BIKOLD,28/04/2022,112.31
"Communities, Customer & Commercial Services",Sport & Leisure,Supplies & Services,Provisions,BIKOLD,28/04/2022,224.35
"Communities, Customer & Commercial Services",Sport & Leisure,Supplies & Services,Provisions,BIKOLD,28/04/2022,104.92
"Communities, Customer & Commercial Services",Sport & Leisure,Supplies & Services,Provisions,BIKOLD,28/04/2022,303.90
"Communities, Customer & Commercial Services",Sport & Leisure,Supplies & Services,Provisions,BIKOLD,28/04/2022,232.57
"Communities, Customer & Commercial Services",Sport & Leisure,Supplies & Services,Provisions,BIKOLD,28/04/2022,213.26
"Communities, Customer & Commercial Services",Sport & Leisure,Supplies & Services,Provisions,BIKOLD,28/04/2022,482.82
"Communities, Customer & Commercial Services",Sport & Leisure,Supplies & Services,Provisions,BIKOLD,28/04/2022,179.70
"Communities, Customer & Commercial Services",Sport & Leisure,Supplies & Services,Provisions,BIKOLD,28/04/2022,241.64
"Communities, Customer & Commercial Services",Sport & Leisure,Supplies & Services,Provisions,BIKOLD,28/04/2022,175.37
"Communities, Customer & Commercial Services",Sport & Leisure,Supplies & Services,Provisions,BIKOLD,28/04/2022,360.47
"Communities, Customer & Commercial Services",Sport & Leisure,Supplies & Services,Provisions,BIKOLD,28/04/2022,397.06
"Communities, Customer & Commercial Services",Sport & Leisure,Supplies & Services,Provisions,BIKOLD,28/04/2022,747.34
"Communities, Customer & Commercial Services",Sport & Leisure,Supplies & Services,Provisions,BIKOLD,28/04/2022,217.92
"Communities, Customer & Commercial Services",Sport & Leisure,Supplies & Services,Provisions,BIKOLD,28/04/2022,305.08
"Communities, Customer & Commercial Services",Sport & Leisure,Supplies & Services,Provisions,BIKOLD,28/04/2022,291.86
"Communities, Customer & Commercial Services",Sport & Leisure,Supplies & Services,Provisions,BIKOLD,28/04/2022,158.05
"Communities, Customer & Commercial Services",Sport & Leisure,Supplies & Services,Provisions,BIKOLD,28/04/2022,214.25
"Communities, Customer & Commercial Services",Sport & Leisure,Supplies & Services,Provisions,BIKOLD,28/04/2022,150.30
"Communities, Customer & Commercial Services",Sport & Leisure,Supplies & Services,Provisions,BIKOLD,28/04/2022,266.60
"Communities, Customer & Commercial Services",Sport & Leisure,Supplies & Services,Provisions,BIKOLD,28/04/2022,120.64
"Communities, Customer & Commercial Services",Sport & Leisure,Supplies & Services,Provisions,BIKOLD,28/04/2022,164.06
"Communities, Customer & Commercial Services",Sport & Leisure,Supplies & Services,Provisions,BIKOLD,28/04/2022,184.61
"Communities, Customer & Commercial Services",Sport & Leisure,Supplies & Services,Provisions,BIKOLD,28/04/2022,290.57
"Communities, Customer & Commercial Services",Sport & Leisure,Supplies & Services,Provisions,BIKOLD,28/04/2022,175.99
"Communities, Customer & Commercial Services",Sport & Leisure,Supplies & Services,Provisions,BIKOLD,28/04/2022,871.89
"Communities, Customer & Commercial Services",Sport & Leisure,Supplies & Services,Provisions,BIKOLD,28/04/2022,152.80
"Communities, Customer & Commercial Services",Sport & Leisure,Supplies & Services,Provisions,BIKOLD,28/04/2022,438.39
"Communities, Customer & Commercial Services",Sport & Leisure,Supplies & Services,Provisions,BIKOLD,28/04/2022,294.21
"Communities, Customer & Commercial Services",Sport & Leisure,Supplies & Services,Provisions,BIKOLD,28/04/2022,321.45
"Communities, Customer & Commercial Services",Sport & Leisure,Supplies & Services,Provisions,BIKOLD,28/04/2022,152.80
"Communities, Customer & Commercial Services",Sport & Leisure,Supplies & Services,Provisions,BIKOLD,28/04/2022,177.03
"Communities, Customer & Commercial Services",Sport & Leisure,Supplies & Services,Provisions,BIKOLD,28/04/2022,393.90
"Communities, Customer & Commercial Services",Sport & Leisure,Supplies & Services,Provisions,BIKOLD,28/04/2022,116.43
"Communities, Customer & Commercial Services",Sport & Leisure,Supplies & Services,Provisions,BIKOLD,28/04/2022,276.92
"Communities, Customer & Commercial Services",Sport & Leisure,Supplies & Services,Provisions,BIKOLD,28/04/2022,228.69
"Communities, Customer & Commercial Services",Sport & Leisure,Supplies & Services,Provisions,BIKOLD,28/04/2022,205.81
"Communities, Customer & Commercial Services",Sport & Leisure,Supplies & Services,Provisions,BIKOLD,28/04/2022,119.04
"Communities, Customer & Commercial Services",Sport & Leisure,Supplies & Services,Crockery/Hardware/Light Equip,NORSEMAN DIRECT,29/04/2022,280.00
"Communities, Customer & Commercial Services",Sport & Leisure,Supplies & Services,Provisions,BIKOLD,01/04/2022,605.43
"Communities, Customer & Commercial Services",Sport & Leisure,Supplies & Services,Provisions,BIKOLD,01/04/2022,180.20
"Communities, Customer & Commercial Services",Sport & Leisure,Supplies & Services,Provisions,BIKOLD,01/04/2022,297.44
"Communities, Customer & Commercial Services",Sport & Leisure,Supplies & Services,Provisions,BIKOLD,01/04/2022,313.08
"Communities, Customer & Commercial Services",Sport & Leisure,Supplies & Services,Provisions,BIKOLD,01/04/2022,514.92
"Communities, Customer & Commercial Services",Sport & Leisure,Supplies & Services,Provisions,BIKOLD,01/04/2022,146.69
"Communities, Customer & Commercial Services",Sport & Leisure,Supplies & Services,Provisions,BIKOLD,01/04/2022,203.90
"Communities, Customer & Commercial Services",Sport & Leisure,Supplies & Services,Provisions,BIKOLD,01/04/2022,180.94
"Communities, Customer & Commercial Services",Sport & Leisure,Supplies & Services,Provisions,BIKOLD,01/04/2022,348.51
"Communities, Customer & Commercial Services",Sport & Leisure,Supplies & Services,Provisions,BIKOLD,01/04/2022,322.79
"Communities, Customer & Commercial Services",Sport & Leisure,Supplies & Services,Provisions,BIKOLD,01/04/2022,183.34
"Communities, Customer & Commercial Services",Sport & Leisure,Supplies & Services,Provisions,BIKOLD,01/04/2022,215.39
"Communities, Customer & Commercial Services",Sport & Leisure,Supplies & Services,Provisions,BIKOLD,01/04/2022,306.07
"Communities, Customer & Commercial Services",Sport & Leisure,Supplies & Services,Provisions,BIKOLD,01/04/2022,525.84
"Communities, Customer & Commercial Services",Sport & Leisure,Supplies & Services,Provisions,BIKOLD,01/04/2022,326.59
"Communities, Customer & Commercial Services",Sport & Leisure,Supplies & Services,Provisions,BIKOLD,01/04/2022,715.51
"Communities, Customer & Commercial Services",Sport & Leisure,Supplies & Services,Provisions,BIKOLD,01/04/2022,449.34
"Communities, Customer & Commercial Services",Sport & Leisure,Supplies & Services,Provisions,BIKOLD,01/04/2022,634.87
"Communities, Customer & Commercial Services",Sport & Leisure,Supplies & Services,Provisions,BIKOLD,01/04/2022,106.86
"Communities, Customer & Commercial Services",Sport & Leisure,Supplies & Services,Provisions,BIKOLD,01/04/2022,179.72
"Communities, Customer & Commercial Services",Sport & Leisure,Supplies & Services,Provisions,BIKOLD,01/04/2022,218.90
"Communities, Customer & Commercial Services",Sport & Leisure,Supplies & Services,Provisions,BIKOLD,01/04/2022,"1,121.68"
"Communities, Customer & Commercial Services",Sport & Leisure,Supplies & Services,Provisions,BIKOLD,01/04/2022,780.35
"Communities, Customer & Commercial Services",Sport & Leisure,Supplies & Services,Provisions,BIKOLD,01/04/2022,730.84
"Communities, Customer & Commercial Services",Sport & Leisure,Supplies & Services,Provisions,BIKOLD,01/04/2022,238.06
"Communities, Customer & Commercial Services",Sport & Leisure,Supplies & Services,Provisions,BIKOLD,01/04/2022,368.28
"Communities, Customer & Commercial Services",Sport & Leisure,Supplies & Services,Crockery/Hardware/Light Equip,PLANGLOW LTD,01/04/2022,844.80
"Communities, Customer & Commercial Services",Sport & Leisure,Supplies & Services,Provisions,T FOOD SERVICE LTD,01/04/2022,113.10
"Communities, Customer & Commercial Services",Sport & Leisure,Supplies & Services,Provisions,T FOOD SERVICE LTD,01/04/2022,734.00
"Communities, Customer & Commercial Services",Sport & Leisure,Supplies & Services,Provisions,T FOOD SERVICE LTD,01/04/2022,267.86
"Communities, Customer & Commercial Services",Sport & Leisure,Supplies & Services,Provisions,T FOOD SERVICE LTD,01/04/2022,102.75
"Communities, Customer & Commercial Services",Sport & Leisure,Supplies & Services,Provisions,SPICE TIME,01/04/2022,125.10
"Communities, Customer & Commercial Services",Sport & Leisure,Supplies & Services,Provisions,On A Roll,01/04/2022,157.11
"Communities, Customer & Commercial Services",Sport & Leisure,Supplies & Services,Provisions,On A Roll,01/04/2022,282.51
"Communities, Customer & Commercial Services",Sport & Leisure,Supplies & Services,Provisions,On A Roll,01/04/2022,197.88
"Communities, Customer & Commercial Services",Sport & Leisure,Supplies & Services,Provisions,On A Roll,01/04/2022,822.89
"Communities, Customer & Commercial Services",Sport & Leisure,Supplies & Services,Crockery/Hardware/Light Equip,PLANGLOW LTD,04/04/2022,670.98
"Communities, Customer & Commercial Services",Sport & Leisure,Supplies & Services,Provisions,PASTA KING (UK) LIMITED,04/04/2022,164.80
"Communities, Customer & Commercial Services",Sport & Leisure,Supplies & Services,Crockery/Hardware/Light Equip,Vegware,04/04/2022,309.13
"Communities, Customer & Commercial Services",Sport & Leisure,Supplies & Services,Provisions,J S Catering Butchers,04/04/2022,143.35
"Communities, Customer & Commercial Services",Sport & Leisure,Supplies & Services,Provisions,J S Catering Butchers,04/04/2022,178.50
"Communities, Customer & Commercial Services",Sport & Leisure,Supplies & Services,Provisions,J S Catering Butchers,04/04/2022,162.17
"Communities, Customer & Commercial Services",Sport & Leisure,Supplies & Services,Provisions,Handmade Speciality Products Ltd,04/04/2022,315.60
"Communities, Customer & Commercial Services",Sport & Leisure,Supplies & Services,Provisions,J S Catering Butchers,05/04/2022,136.16
"Communities, Customer & Commercial Services",Sport & Leisure,Supplies & Services,Provisions,J S Catering Butchers,05/04/2022,143.66
"Communities, Customer & Commercial Services",Sport & Leisure,Supplies & Services,Provisions,R & COMPANY,06/04/2022,108.67
"Communities, Customer & Commercial Services",Sport & Leisure,Supplies & Services,Provisions,R & COMPANY,06/04/2022,150.08
"Communities, Customer & Commercial Services",Sport & Leisure,Supplies & Services,Provisions,TROPICAL ICE,06/04/2022,199.50
"Communities, Customer & Commercial Services",Sport & Leisure,Supplies & Services,Provisions,TROPICAL ICE,06/04/2022,577.50
"Communities, Customer & Commercial Services",Sport & Leisure,Supplies & Services,Provisions,TROPICAL ICE,06/04/2022,155.00
"Communities, Customer & Commercial Services",Sport & Leisure,Supplies & Services,Provisions,TROPICAL ICE,06/04/2022,192.50
"Communities, Customer & Commercial Services",Sport & Leisure,Supplies & Services,Provisions,TROPICAL ICE,06/04/2022,332.50
"Communities, Customer & Commercial Services",Sport & Leisure,Supplies & Services,Provisions,T FOOD SERVICE LTD,06/04/2022,881.70
"Communities, Customer & Commercial Services",Sport & Leisure,Supplies & Services,Provisions,T FOOD SERVICE LTD,06/04/2022,113.10
"Communities, Customer & Commercial Services",Sport & Leisure,Supplies & Services,Provisions,T FOOD SERVICE LTD,06/04/2022,243.86
"Communities, Customer & Commercial Services",Sport & Leisure,Supplies & Services,Provisions,On A Roll,06/04/2022,492.86
"Communities, Customer & Commercial Services",Sport & Leisure,Supplies & Services,Provisions,BIKOLD,07/04/2022,459.42
"Communities, Customer & Commercial Services",Sport & Leisure,Supplies & Services,Provisions,BIKOLD,07/04/2022,112.39
"Communities, Customer & Commercial Services",Sport & Leisure,Supplies & Services,Provisions,BIKOLD,07/04/2022,384.15
"Communities, Customer & Commercial Services",Sport & Leisure,Supplies & Services,Provisions,BIKOLD,07/04/2022,145.20
"Communities, Customer & Commercial Services",Sport & Leisure,Supplies & Services,Provisions,BIKOLD,07/04/2022,109.26
"Communities, Customer & Commercial Services",Sport & Leisure,Supplies & Services,Provisions,BIKOLD,07/04/2022,203.99
"Communities, Customer & Commercial Services",Sport & Leisure,Supplies & Services,Provisions,BIKOLD,07/04/2022,172.16
"Communities, Customer & Commercial Services",Sport & Leisure,Supplies & Services,Provisions,BIKOLD,07/04/2022,290.04
"Communities, Customer & Commercial Services",Sport & Leisure,Supplies & Services,Provisions,BIKOLD,07/04/2022,109.75
"Communities, Customer & Commercial Services",Sport & Leisure,Supplies & Services,Provisions,BIKOLD,07/04/2022,218.13
"Communities, Customer & Commercial Services",Sport & Leisure,Supplies & Services,Provisions,BIKOLD,07/04/2022,178.04
"Communities, Customer & Commercial Services",Sport & Leisure,Supplies & Services,Provisions,BIKOLD,07/04/2022,419.37
"Communities, Customer & Commercial Services",Sport & Leisure,Supplies & Services,Provisions,BIKOLD,07/04/2022,907.02
"Communities, Customer & Commercial Services",Sport & Leisure,Supplies & Services,Provisions,BIKOLD,07/04/2022,270.10
"Communities, Customer & Commercial Services",Sport & Leisure,Supplies & Services,Provisions,BIKOLD,07/04/2022,157.34
"Communities, Customer & Commercial Services",Sport & Leisure,Supplies & Services,Provisions,BIKOLD,07/04/2022,244.42
"Communities, Customer & Commercial Services",Sport & Leisure,Supplies & Services,Provisions,BIKOLD,07/04/2022,507.56
"Communities, Customer & Commercial Services",Sport & Leisure,Supplies & Services,Provisions,BIKOLD,07/04/2022,509.73
"Communities, Customer & Commercial Services",Sport & Leisure,Supplies & Services,Provisions,BIKOLD,07/04/2022,279.90
"Communities, Customer & Commercial Services",Sport & Leisure,Supplies & Services,Provisions,BIKOLD,07/04/2022,110.54
"Communities, Customer & Commercial Services",Sport & Leisure,Supplies & Services,Provisions,BIKOLD,07/04/2022,562.84
"Communities, Customer & Commercial Services",Sport & Leisure,Supplies & Services,Provisions,BIKOLD,07/04/2022,104.42
"Communities, Customer & Commercial Services",Sport & Leisure,Supplies & Services,Provisions,On A Roll,08/04/2022,157.11
"Communities, Customer & Commercial Services",Sport & Leisure,Supplies & Services,Provisions,On A Roll,08/04/2022,193.99
"Communities, Customer & Commercial Services",Sport & Leisure,Supplies & Services,Provisions,On A Roll,08/04/2022,196.85
"Communities, Customer & Commercial Services",Sport & Leisure,Supplies & Services,Provisions,On A Roll,08/04/2022,833.19
"Communities, Customer & Commercial Services",Sport & Leisure,Supplies & Services,Crockery/Hardware/Light Equip,Vegware,11/04/2022,640.35
"Communities, Customer & Commercial Services",Sport & Leisure,Supplies & Services,Provisions,R & COMPANY,13/04/2022,122.09
"Communities, Customer & Commercial Services",Sport & Leisure,Supplies & Services,Provisions,J S Catering Butchers,13/04/2022,128.72
"Communities, Customer & Commercial Services",Sport & Leisure,Supplies & Services,Provisions,BIKOLD,14/04/2022,138.87
"Communities, Customer & Commercial Services",Sport & Leisure,Supplies & Services,Provisions,BIKOLD,14/04/2022,969.85
"Communities, Customer & Commercial Services",Sport & Leisure,Supplies & Services,Provisions,BIKOLD,14/04/2022,156.01
"Communities, Customer & Commercial Services",Sport & Leisure,Supplies & Services,Provisions,BIKOLD,14/04/2022,245.12
"Communities, Customer & Commercial Services",Sport & Leisure,Supplies & Services,Provisions,BIKOLD,14/04/2022,935.38
"Communities, Customer & Commercial Services",Sport & Leisure,Supplies & Services,Provisions,T FOOD SERVICE LTD,19/04/2022,113.10
"Communities, Customer & Commercial Services",Sport & Leisure,Supplies & Services,Provisions,T FOOD SERVICE LTD,19/04/2022,243.86
"Communities, Customer & Commercial Services",Sport & Leisure,Supplies & Services,Provisions,T FOOD SERVICE LTD,19/04/2022,755.20
"Communities, Customer & Commercial Services",Sport & Leisure,Supplies & Services,Provisions,SPICE TIME,19/04/2022,102.68
"Communities, Customer & Commercial Services",Sport & Leisure,Supplies & Services,Provisions,On A Roll,19/04/2022,577.23
"Communities, Customer & Commercial Services",Sport & Leisure,Supplies & Services,Provisions,On A Roll,19/04/2022,118.53
"Communities, Customer & Commercial Services",Sport & Leisure,Supplies & Services,Provisions,PASTA KING (UK) LIMITED,25/04/2022,197.76
"Communities, Customer & Commercial Services",Sport & Leisure,Supplies & Services,Provisions,PASTA KING (UK) LIMITED,25/04/2022,296.64
"Communities, Customer & Commercial Services",Sport & Leisure,Supplies & Services,Provisions,PASTA KING (UK) LIMITED,25/04/2022,230.72
"Communities, Customer & Commercial Services",Sport & Leisure,Supplies & Services,Provisions,On A Roll,25/04/2022,145.90
"Communities, Customer & Commercial Services",Sport & Leisure,Supplies & Services,Provisions,TROPICAL ICE,27/04/2022,360.00
"Communities, Customer & Commercial Services",Sport & Leisure,Supplies & Services,Provisions,BIKOLD,28/04/2022,623.76
"Communities, Customer & Commercial Services",Sport & Leisure,Supplies & Services,Provisions,BIKOLD,28/04/2022,272.49
"Communities, Customer & Commercial Services",Sport & Leisure,Supplies & Services,Provisions,BIKOLD,28/04/2022,111.97
"Communities, Customer & Commercial Services",Sport & Leisure,Supplies & Services,Provisions,BIKOLD,28/04/2022,314.16
"Communities, Customer & Commercial Services",Sport & Leisure,Supplies & Services,Provisions,BIKOLD,28/04/2022,234.06
"Communities, Customer & Commercial Services",Sport & Leisure,Supplies & Services,Provisions,BIKOLD,28/04/2022,188.99
"Communities, Customer & Commercial Services",Sport & Leisure,Supplies & Services,Provisions,BIKOLD,28/04/2022,660.18
"Communities, Customer & Commercial Services",Sport & Leisure,Supplies & Services,Provisions,BIKOLD,28/04/2022,514.93
"Communities, Customer & Commercial Services",Sport & Leisure,Supplies & Services,Provisions,BIKOLD,28/04/2022,361.49
"Communities, Customer & Commercial Services",Sport & Leisure,Supplies & Services,Provisions,BIKOLD,28/04/2022,747.48
"Communities, Customer & Commercial Services",Sport & Leisure,Supplies & Services,Provisions,BIKOLD,28/04/2022,221.55
"Communities, Customer & Commercial Services",Sport & Leisure,Supplies & Services,Provisions,BIKOLD,28/04/2022,604.53
"Communities, Customer & Commercial Services",Sport & Leisure,Supplies & Services,Provisions,BIKOLD,28/04/2022,698.02
"Communities, Customer & Commercial Services",Sport & Leisure,Supplies & Services,Provisions,BIKOLD,28/04/2022,650.86
"Communities, Customer & Commercial Services",Sport & Leisure,Supplies & Services,Provisions,BIKOLD,28/04/2022,158.12
"Communities, Customer & Commercial Services",Sport & Leisure,Supplies & Services,Provisions,BIKOLD,28/04/2022,560.44
"Communities, Customer & Commercial Services",Sport & Leisure,Supplies & Services,Provisions,BIKOLD,28/04/2022,188.45
"Communities, Customer & Commercial Services",Sport & Leisure,Supplies & Services,Provisions,BIKOLD,28/04/2022,114.67
"Communities, Customer & Commercial Services",Sport & Leisure,Supplies & Services,Provisions,BIKOLD,28/04/2022,662.53
"Communities, Customer & Commercial Services",Sport & Leisure,Supplies & Services,Provisions,BIKOLD,28/04/2022,144.55
"Communities, Customer & Commercial Services",Sport & Leisure,Supplies & Services,Provisions,BIKOLD,28/04/2022,167.58
"Communities, Customer & Commercial Services",Sport & Leisure,Supplies & Services,Provisions,BIKOLD,28/04/2022,586.98
"Communities, Customer & Commercial Services",Sport & Leisure,Supplies & Services,Provisions,BIKOLD,28/04/2022,131.40
"Communities, Customer & Commercial Services",Sport & Leisure,Supplies & Services,Provisions,BIKOLD,28/04/2022,170.69
"Communities, Customer & Commercial Services",Sport & Leisure,Supplies & Services,Provisions,BIKOLD,28/04/2022,139.32
"Communities, Customer & Commercial Services",Sport & Leisure,Supplies & Services,Provisions,BIKOLD,28/04/2022,287.74
"Communities, Customer & Commercial Services",Sport & Leisure,Supplies & Services,Provisions,BIKOLD,28/04/2022,126.60
"Communities, Customer & Commercial Services",Sport & Leisure,Supplies & Services,Provisions,PASTA KING (UK) LIMITED,29/04/2022,119.90
"Communities, Customer & Commercial Services",Sport & Leisure,Supplies & Services,Crockery/Hardware/Light Equip,Vegware,29/04/2022,354.65
"Communities, Customer & Commercial Services",Sport & Leisure,Supplies & Services,Provisions,BIKOLD,07/04/2022,108.26
"Communities, Customer & Commercial Services",Sport & Leisure,Supplies & Services,Provisions,J S Catering Butchers,13/04/2022,108.00
"Communities, Customer & Commercial Services",Sport & Leisure,Supplies & Services,Provisions,BIKOLD,28/04/2022,103.30
"Communities, Customer & Commercial Services",Sport & Leisure,Supplies & Services,Provisions,BIKOLD,28/04/2022,132.11
"Communities, Customer & Commercial Services",Sport & Leisure,Supplies & Services,Sub Contractors,JCE & SONS LTD,04/04/2022,556.00
"Communities, Customer & Commercial Services",Sport & Leisure,Supplies & Services,Sub Contractors,Waterplay Solutions Limited,04/04/2022,"2,950.00"
"Communities, Customer & Commercial Services",Sport & Leisure,Supplies & Services,Sub Contractors,PUMP & PLANT SERVICES LTD,25/04/2022,210.00
"Communities, Customer & Commercial Services",Sport & Leisure,Supplies & Services,Other Materials,PROVAC CLEANING SUPPLIES LTD,25/04/2022,281.50
"Communities, Customer & Commercial Services",Sport & Leisure,Supplies & Services,Sub Contractors,Waterplay Solutions Limited,29/04/2022,485.00
"Communities, Customer & Commercial Services",Sport & Leisure,Supplies & Services,Chemicals/Cleaning Products,Border Janitorial Supplies Limited,07/04/2022,107.88
"Communities, Customer & Commercial Services",Sport & Leisure,Supplies & Services,Chemicals/Cleaning Products,BRENNTAG UK LIMITED,07/04/2022,"1,025.00"
"Communities, Customer & Commercial Services",Sport & Leisure,Supplies & Services,Financial Services,DEBIT FINANCE COLLECTIONS ,12/04/2022,140.30
"Communities, Customer & Commercial Services",Sport & Leisure,Supplies & Services,Financial Services,DEBIT FINANCE COLLECTIONS ,12/04/2022,278.44
"Communities, Customer & Commercial Services",Sport & Leisure,Supplies & Services,Licences,L M Fitness UK Ltd,20/04/2022,789.17
"Communities, Customer & Commercial Services",Sport & Leisure,Supplies & Services,Payment Of Income Collected,Grange Park Primary School - Community Academies Trust,05/04/2022,"3,782.80"
"Communities, Customer & Commercial Services",Sport & Leisure,Supplies & Services,Protective Clothing,CORPORATE TOGS LTD,05/04/2022,126.75
"Communities, Customer & Commercial Services",Sport & Leisure,Supplies & Services,Equipment - Purchase,J P L LTD,13/04/2022,132.24
"Communities, Customer & Commercial Services",Sport & Leisure,Supplies & Services,Financial Services,DEBIT FINANCE COLLECTIONS ,12/04/2022,317.16
"Communities, Customer & Commercial Services",Sport & Leisure,Supplies & Services,Licences,L M Fitness UK Ltd,29/04/2022,565.18
"Communities, Customer & Commercial Services",Sport & Leisure,Supplies & Services,Financial Services,DEBIT FINANCE COLLECTIONS ,12/04/2022,116.38
"Communities, Customer & Commercial Services",Sport & Leisure,Supplies & Services,Equipment - Purchase,EB Sports Ltd,05/04/2022,"1,200.00"
"Communities, Customer & Commercial Services",Sport & Leisure,Supplies & Services,Flex Charges,GB GROUP PLC,14/04/2022,250.00
"Communities, Customer & Commercial Services",Sport & Leisure,Supplies & Services,Flex Charges,Verifone UK Limited,25/04/2022,"-1,338.75"
"Communities, Customer & Commercial Services",Sport & Leisure,Supplies & Services,Flex Charges,OMNICO GROUP UK LTD,27/04/2022,"8,154.11"
"Communities, Customer & Commercial Services",Sport & Leisure,Supplies & Services,Equipment - Hire,CORPORATE TOGS LTD,04/04/2022,160.50
"Communities, Customer & Commercial Services",Sport & Leisure,Supplies & Services,Financial Services,DEBIT FINANCE COLLECTIONS ,12/04/2022,190.54
"Communities, Customer & Commercial Services",Sport & Leisure,Supplies & Services,Protective Clothing,CORPORATE TOGS LTD,26/04/2022,121.95
"Communities, Customer & Commercial Services",Sport & Leisure,Supplies & Services,Equipment - Purchase,Rangeball UK LTD,26/04/2022,"1,308.50"
"Communities, Customer & Commercial Services",Sport & Leisure,Supplies & Services,Equipment - Purchase,CMW Equipment Holdings Limited,07/04/2022,491.95
"Communities, Customer & Commercial Services",Sport & Leisure,Supplies & Services,Provisions,BIKOLD,01/04/2022,361.05
"Communities, Customer & Commercial Services",Sport & Leisure,Supplies & Services,Provisions,BIKOLD,01/04/2022,287.31
"Communities, Customer & Commercial Services",Sport & Leisure,Supplies & Services,Provisions,TROPICAL ICE,06/04/2022,577.50
"Communities, Customer & Commercial Services",Sport & Leisure,Supplies & Services,Provisions,TROPICAL ICE,06/04/2022,253.88
"Communities, Customer & Commercial Services",Sport & Leisure,Supplies & Services,Provisions,TROPICAL ICE,06/04/2022,556.00
"Communities, Customer & Commercial Services",Sport & Leisure,Supplies & Services,Provisions,TROPICAL ICE,06/04/2022,745.00
"Communities, Customer & Commercial Services",Sport & Leisure,Supplies & Services,Provisions,BIKOLD,07/04/2022,174.69
"Communities, Customer & Commercial Services",Sport & Leisure,Supplies & Services,Provisions,BIKOLD,07/04/2022,300.00
"Communities, Customer & Commercial Services",Sport & Leisure,Supplies & Services,Provisions,BIKOLD,14/04/2022,527.61
"Communities, Customer & Commercial Services",Sport & Leisure,Supplies & Services,Provisions,BIKOLD,14/04/2022,283.54
"Communities, Customer & Commercial Services",Sport & Leisure,Supplies & Services,Provisions,BIKOLD,14/04/2022,613.79
"Communities, Customer & Commercial Services",Sport & Leisure,Supplies & Services,Provisions,BIKOLD,14/04/2022,760.30
"Communities, Customer & Commercial Services",Sport & Leisure,Supplies & Services,Provisions,Handmade Speciality Products Ltd,25/04/2022,130.86
"Communities, Customer & Commercial Services",Sport & Leisure,Supplies & Services,Provisions,TROPICAL ICE,27/04/2022,"1,208.00"
"Communities, Customer & Commercial Services",Sport & Leisure,Supplies & Services,Provisions,TROPICAL ICE,27/04/2022,"1,178.25"
"Communities, Customer & Commercial Services",Sport & Leisure,Supplies & Services,Provisions,BIKOLD,28/04/2022,448.47
"Communities, Customer & Commercial Services",Sport & Leisure,Supplies & Services,Provisions,BIKOLD,28/04/2022,188.74
"Communities, Customer & Commercial Services",Sport & Leisure,Supplies & Services,Provisions,BIKOLD,28/04/2022,109.01
"Communities, Customer & Commercial Services",Sport & Leisure,Supplies & Services,Provisions,BIKOLD,28/04/2022,491.16
"Communities, Customer & Commercial Services",Sport & Leisure,Supplies & Services,Provisions,BIKOLD,28/04/2022,477.75
"Communities, Customer & Commercial Services",Sport & Leisure,Supplies & Services,Payment Of Income Collected,Telford Tigers Limited,04/04/2022,"6,645.96"
"Communities, Customer & Commercial Services",Sport & Leisure,Supplies & Services,Payment Of Income Collected,Telford Tigers Limited,04/04/2022,"8,051.48"
"Communities, Customer & Commercial Services",Sport & Leisure,Supplies & Services,Payment Of Income Collected,Telford Tigers Limited,12/04/2022,"3,262.66"
"Communities, Customer & Commercial Services",Sport & Leisure,Supplies & Services,Payment Of Income Collected,Telford Tigers Limited,21/04/2022,"4,904.13"
"Communities, Customer & Commercial Services",Sport & Leisure,Supplies & Services,Payment Of Income Collected,Telford Tigers Limited,25/04/2022,"5,095.68"
"Communities, Customer & Commercial Services",Sport & Leisure,Supplies & Services,Equipment - Hire,SLIDERS SKATE SHOP,01/04/2022,300.00
"Communities, Customer & Commercial Services",Sport & Leisure,Supplies & Services,Equipment - Purchase,CCS MEDIA LIMITED,13/04/2022,"3,068.96"
"Communities, Customer & Commercial Services",Sport & Leisure,Supplies & Services,Equipment - Purchase,RLSS UK Shop,21/04/2022,162.00
"Communities, Customer & Commercial Services",Sport & Leisure,Supplies & Services,Licences,L M Fitness UK Ltd,06/04/2022,"1,145.37"
"Communities, Customer & Commercial Services",Sport & Leisure,Supplies & Services,Financial Services,DEBIT FINANCE COLLECTIONS ,12/04/2022,494.66
"Communities, Customer & Commercial Services",Sport & Leisure,Supplies & Services,Financial Services,DEBIT FINANCE COLLECTIONS ,12/04/2022,202.22
"Communities, Customer & Commercial Services",Sport & Leisure,Supplies & Services,Chemicals/Cleaning Products,BRENNTAG UK LIMITED,07/04/2022,106.80
"Communities, Customer & Commercial Services",Sport & Leisure,Supplies & Services,Chemicals/Cleaning Products,BRENNTAG UK LIMITED,08/04/2022,410.00
"Communities, Customer & Commercial Services",Sport & Leisure,Supplies & Services,Chemicals/Cleaning Products,SP SERVICES (UK) LTD,12/04/2022,178.50
"Communities, Customer & Commercial Services",Sport & Leisure,Supplies & Services,Payment Of Income Collected,WELLINGTON TOWN COUNCIL,14/04/2022,"7,021.72"
"Communities, Customer & Commercial Services",Sport & Leisure,Supplies & Services,Chemicals/Cleaning Products,JAK WATER SYSTEMS LTD,24/04/2022,188.46
"Communities, Customer & Commercial Services",Sport & Leisure,Supplies & Services,Stationery,THE TILL ROLL CO LTD,25/04/2022,132.50
"Communities, Customer & Commercial Services",Sport & Leisure,Supplies & Services,Fees,Austin Mix Ltd,12/04/2022,-340.00
"Communities, Customer & Commercial Services",Sport & Leisure,Supplies & Services,Fees,Austin Mix Ltd,27/04/2022,710.00
"Communities, Customer & Commercial Services",Sport & Leisure,Transport-Related Expenditure,Servicing & Repairs V&P,THE LODGE TYRE CO LTD,26/04/2022,134.30
"Communities, Customer & Commercial Services",Sport & Leisure,Transport-Related Expenditure,Servicing & Repairs V&P,THE LODGE TYRE CO LTD,26/04/2022,127.15
"Communities, Customer & Commercial Services",Sport & Leisure,Transport-Related Expenditure,Servicing & Repairs V&P,CSTORES LTD,04/04/2022,263.98
Corporate Communications,Communications & Marketing,Employees,Agency Supply Costs,M P international Recruitment Limited,04/04/2022,"1,065.23"
Corporate Communications,Communications & Marketing,Employees,Agency Supply Costs,M P international Recruitment Limited,22/04/2022,"1,073.37"
Corporate Communications,Communications & Marketing,Supplies & Services,Marketing & Publicity,EMERGE DESIGN LTD,22/04/2022,433.50
Corporate Communications,Communications & Marketing,Third Party Payments,Private Contractors,EMERGE DESIGN LTD,28/04/2022,123.75
Corporate Items,Corporate Codes,Capital Financing Costs,Unitary Charge,PYRAMID SCHOOLS (HADLEY) LTD,08/04/2022,"931,720.82"
Corporate Items,Corporate Codes,Capital Financing Costs,Penalty Deductions,PYRAMID SCHOOLS (HADLEY) LTD,08/04/2022,"-1,373.41"
Corporate Items,Corporate Codes,Employees,Agency Supply Costs,Matrix SCM,05/04/2022,"44,823.40"
Corporate Items,Corporate Codes,Employees,Agency Supply Costs,Matrix SCM,07/04/2022,"42,889.74"
Corporate Items,Corporate Codes,Employees,Agency Supply Costs,Matrix SCM,22/04/2022,"47,201.48"
Corporate Items,Corporate Codes,Employees,Agency Supply Costs,Matrix SCM,22/04/2022,"30,804.69"
Corporate Items,Corporate Codes,Supplies & Services,Other Grants (Expenses),The Leegate Centre CIC,06/04/2022,"20,000.00"
Education & Skills,Consultancy & Advisory Services,Employees,Training Exp�s (Facilitators),D U Consultancy LTD,13/04/2022,350.00
Education & Skills,Consultancy & Advisory Services,Premises-Related Expenditure,Hire Of Rooms,Mercure Telford Centre Hotel,04/04/2022,112.50
Education & Skills,Consultancy & Advisory Services,Premises-Related Expenditure,Hire Of Rooms,Mercure Telford Centre Hotel,04/04/2022,112.50
Education & Skills,Consultancy & Advisory Services,Premises-Related Expenditure,Hire Of Rooms,Mercure Telford Centre Hotel,04/04/2022,112.50
Education & Skills,Consultancy & Advisory Services,Premises-Related Expenditure,Hire Of Rooms,Mercure Telford Centre Hotel,04/04/2022,112.50
Education & Skills,Consultancy & Advisory Services,Premises-Related Expenditure,Hire Of Rooms,Mercure Telford Centre Hotel,04/04/2022,112.50
Education & Skills,Consultancy & Advisory Services,Supplies & Services,Training Costs - Participants Recharged,Mercure Telford Centre Hotel,04/04/2022,183.11
Education & Skills,Consultancy & Advisory Services,Supplies & Services,Training Costs - Participants Recharged,Mercure Telford Centre Hotel,04/04/2022,209.96
Education & Skills,Consultancy & Advisory Services,Supplies & Services,Training Costs - Participants Recharged,Mercure Telford Centre Hotel,04/04/2022,155.64
Education & Skills,Consultancy & Advisory Services,Supplies & Services,Training Costs - Participants Recharged,Mercure Telford Centre Hotel,04/04/2022,201.42
Education & Skills,Consultancy & Advisory Services,Supplies & Services,Training Costs - Participants Recharged,Mercure Telford Centre Hotel,04/04/2022,173.96
Education & Skills,Consultancy & Advisory Services,Supplies & Services,Furniture - Purchase,BACK CARE SOLUTIONS LTD,13/04/2022,"1,897.53"
Education & Skills,Consultancy & Advisory Services,Supplies & Services,Other Grants (Expenses),ABC DAY NURSERY HOLLINSWOOD ,04/04/2022,260.00
Education & Skills,Education & Skills,Capital Expenditure,Payments to Contractor,JCE & SONS LTD,05/04/2022,193.59
Education & Skills,Education & Skills,Capital Expenditure,Payments to Contractor,JCE & SONS LTD,07/04/2022,222.27
Education & Skills,Education & Skills,Capital Expenditure,Payments to Contractor,REDACTED PERSONAL INFORMATION,07/04/2022,900.00
Education & Skills,Education & Skills,Capital Expenditure,Payments to Contractor,AMP CLEAN ENERGY,14/04/2022,"1,650.00"
Education & Skills,Education & Skills,Capital Expenditure,Payments to Contractor,R Control Systems Ltd,22/04/2022,196.00
Education & Skills,Education & Skills,Capital Expenditure,Payments to Contractor,MERCIAN MASTERPLAN LTD,07/04/2022,124.20
Education & Skills,Education & Skills,Capital Expenditure,Payments to Contractor,A B ASSOCIATES,07/04/2022,"2,225.00"
Education & Skills,Education & Skills,Capital Expenditure,Payments to Contractor,W H SOLICITORS,11/04/2022,912.00
Education & Skills,Education & Skills,Capital Expenditure,Payments to Contractor,W D Construction Ltd,27/04/2022,"2,123,367.39"
Education & Skills,Education & Skills,Capital Expenditure,Payments to Contractor,RConstruction Holdings Ltd,04/04/2022,"171,258.24"
Education & Skills,Education & Skills,Capital Expenditure,Payments to Contractor,SGS United Kingdom Limited,05/04/2022,"1,300.00"
Education & Skills,Education & Skills,Capital Expenditure,Payments to Contractor,SHROPSHIRE BLINDS & AWNINGS LIMITED,05/04/2022,"1,879.00"
Education & Skills,Education & Skills,Capital Expenditure,Payments to Contractor,SHROPSHIRE BLINDS & AWNINGS LIMITED,05/04/2022,330.00
Education & Skills,Education & Skills,Capital Expenditure,Payments to Contractor,WREKIN REMOVALS,22/04/2022,880.00
Education & Skills,Education & Skills,Capital Expenditure,Payments to Contractor,Red Kite Network Limited,27/04/2022,"3,426.60"
Education & Skills,Education & Skills,Capital Expenditure,Payments to Contractor,WREKIN SELF STORAGE LTD,27/04/2022,200.00
Education & Skills,Education & Skills,Capital Expenditure,Payments to Contractor,LINK LOCKERS,29/04/2022,"3,411.30"
Education & Skills,Education & Skills,Capital Expenditure,Payments to Contractor,LINK LOCKERS,29/04/2022,"3,955.20"
Education & Skills,Pupil Support Services,Supplies & Services,Subscriptions,THE UK ASSOCIATION  FOR MUSIC EDUCATION - MUSIC MARK,25/04/2022,800.00
Education & Skills,Pupil Support Services,Supplies & Services,Educational Visits,CITY OF STOKE ON TRENT,27/04/2022,"1,920.00"
Education & Skills,Pupil Support Services,Third Party Payments,DSG - High Needs Block,THE EDUCATION DEVELOPMENT SERVICE LTD,08/04/2022,"5,000.00"
Education & Skills,Pupil Support Services,Third Party Payments,DSG - High Needs Block,St Dominic�s Grammar School,27/04/2022,"1,539.12"
Education & Skills,Pupil Support Services,Third Party Payments,DSG - High Needs Block,St Dominic�s Grammar School,27/04/2022,"1,539.12"
Education & Skills,SEND (0-25),Employees,Course Fees,MEETING POINT TRUST LTD,21/04/2022,180.00
Education & Skills,SEND (0-25),Employees,Teachers SA Ver Fund,Capita Pension Solutions Limited,14/04/2022,243.88
Education & Skills,SEND (0-25),Employees,Staff Training,Nottingham University Hospitals,21/04/2022,315.00
Education & Skills,SEND (0-25),Employees,Agency Supply Costs,Guide Dogs for the Blind,21/04/2022,"2,198.35"
Education & Skills,SEND (0-25),Supplies & Services,Materials,I CAN CHARITY,05/04/2022,"23,100.00"
Education & Skills,SEND (0-25),Supplies & Services,Other Services,Permanent Futures Ltd,21/04/2022,"1,100.00"
Education & Skills,SEND (0-25),Supplies & Services,Translation Services,VISS Sign Language Interpreting Service,01/04/2022,115.00
Education & Skills,SEND (0-25),Supplies & Services,Equipment - Purchase,OTICON LIMITED,21/04/2022,259.00
Education & Skills,SEND (0-25),Supplies & Services,Translation Services,VISS Sign Language Interpreting Service,07/04/2022,115.00
Education & Skills,SEND (0-25),Supplies & Services,Health & Safety Expenses,Jiraffe,11/04/2022,"1,745.00"
Education & Skills,SEND (0-25),Supplies & Services,Health & Safety Expenses,R82 UK LIMITED,12/04/2022,"2,531.00"
Education & Skills,SEND (0-25),Third Party Payments,DSG - High Needs Block,HALESFIELD DAY NURSERY CENTRE ,11/04/2022,208.22
Education & Skills,SEND (0-25),Third Party Payments,DSG - High Needs Block,HONEYBUNS NURSERIES,11/04/2022,208.22
Education & Skills,SEND (0-25),Third Party Payments,DSG - High Needs Block,LITTLE DRAGONS PRE-SCHOOL,11/04/2022,263.01
Education & Skills,SEND (0-25),Third Party Payments,DSG - High Needs Block,TORTOISE NURSERY SCHOOL ,11/04/2022,208.22
Education & Skills,SEND (0-25),Third Party Payments,DSG - High Needs Block,WOODEN TOPS DAY NURSERY ,11/04/2022,104.11
Education & Skills,SEND (0-25),Third Party Payments,DSG - High Needs Block,Church Street Day Nursery,11/04/2022,263.01
Education & Skills,SEND (0-25),Third Party Payments,Health Funded Services,SHROPSHIRE COMMUNITY HEALTH NHS TRUST,11/04/2022,"4,069.49"
Education & Skills,SEND (0-25),Third Party Payments,DSG - High Needs Block,Bridge Therapy,11/04/2022,390.00
Education & Skills,SEND (0-25),Third Party Payments,DSG - High Needs Block,Bridge Therapy,11/04/2022,186.00
Education & Skills,SEND (0-25),Third Party Payments,DSG - High Needs Block,PRIORSLEE ACADEMY,21/04/2022,"1,915.56"
Education & Skills,SEND (0-25),Third Party Payments,DSG - High Needs Block,Redhill Primary Academy,21/04/2022,"4,614.76"
Education & Skills,SEND (0-25),Third Party Payments,DSG - High Needs Block,Lawley Village Academy,21/04/2022,"1,480.20"
Education & Skills,SEND (0-25),Third Party Payments,DSG - High Needs Block,Grange Park Primary School - Community Academies Trust,21/04/2022,"3,744.05"
Education & Skills,SEND (0-25),Third Party Payments,DSG - High Needs Block,Dawley C of E Primary Academy,21/04/2022,348.28
Education & Skills,SEND (0-25),Third Party Payments,DSG - High Needs Block,Crudgington Primary School,21/04/2022,348.28
Education & Skills,SEND (0-25),Third Party Payments,DSG - High Needs Block,Hadley Learning Community Academy,21/04/2022,"2,089.70"
Education & Skills,SEND (0-25),Third Party Payments,DSG - High Needs Block,Hadley Learning Community Academy,21/04/2022,"14,714.99"
Education & Skills,SEND (0-25),Third Party Payments,DSG - High Needs Block,Ercall Wood Academy,21/04/2022,"9,751.94"
Education & Skills,SEND (0-25),Third Party Payments,DSG - High Needs Block,ABRAHAM DARBY ACADEMY ,21/04/2022,"6,443.24"
Education & Skills,SEND (0-25),Third Party Payments,DSG - High Needs Block,MADELEY ACADEMY TRUST LTD,21/04/2022,"6,094.96"
Education & Skills,SEND (0-25),Third Party Payments,DSG - High Needs Block,Queensway HLC,05/04/2022,"12,087.83"
Education & Skills,SEND (0-25),Third Party Payments,DSG - High Needs Block,Queensway HLC,05/04/2022,"22,547.97"
Education & Skills,SEND (0-25),Third Party Payments,DSG - High Needs Block,Queensway HLC,25/04/2022,"58,742.00"
Education & Skills,SEND (0-25),Third Party Payments,DSG - High Needs Block,Queensway HLC,25/04/2022,"62,111.58"
Education & Skills,SEND (0-25),Third Party Payments,DSG - High Needs Block,Kickstart Academy,25/04/2022,"70,221.00"
Education & Skills,SEND (0-25),Third Party Payments,DSG - High Needs Block,THE EDUCATION DEVELOPMENT SERVICE LTD,05/04/2022,"25,510.00"
Education & Skills,SEND (0-25),Third Party Payments,DSG - High Needs Block,Shrewsbury High School,11/04/2022,155.50
Education & Skills,SEND (0-25),Third Party Payments,DSG - High Needs Block,Acorn Care & Education Ltd,11/04/2022,"4,976.65"
Education & Skills,SEND (0-25),Third Party Payments,DSG - High Needs Block,Acorn Care & Education Ltd,11/04/2022,"4,495.04"
Education & Skills,SEND (0-25),Third Party Payments,DSG - High Needs Block,Keys PCE Limited,11/04/2022,"4,140.00"
Education & Skills,SEND (0-25),Third Party Payments,DSG - High Needs Block,Keys PCE Limited,11/04/2022,"3,910.00"
Education & Skills,SEND (0-25),Third Party Payments,DSG - High Needs Block,The Priory Group (Priory Telford School Priory),11/04/2022,539.59
Education & Skills,SEND (0-25),Third Party Payments,DSG - High Needs Block,The Priory Group (Priory Telford School Priory),11/04/2022,539.59
Education & Skills,SEND (0-25),Third Party Payments,DSG - High Needs Block,The Girls� Day School Trust,11/04/2022,"4,715.80"
Education & Skills,SEND (0-25),Third Party Payments,DSG - High Needs Block,Options Higford (Options Autism (5) Limited,21/04/2022,"36,405.64"
Education & Skills,SEND (0-25),Third Party Payments,DSG - High Needs Block,Options Higford (Options Autism (5) Limited,21/04/2022,"34,170.41"
Education & Skills,SEND (0-25),Third Party Payments,DSG - High Needs Block,HIGHLAND COUNCIL,25/04/2022,"5,421.95"
Education & Skills,SEND (0-25),Third Party Payments,DSG - High Needs Block,CITY OF WOLVERHAMPTON COUNCIL,11/04/2022,"2,856.86"
Education & Skills,SEND (0-25),Third Party Payments,DSG - High Needs Block,CITY OF WOLVERHAMPTON COUNCIL,11/04/2022,"7,757.42"
Education & Skills,SEND (0-25),Third Party Payments,DSG - High Needs Block,CITY OF WOLVERHAMPTON COUNCIL,11/04/2022,"2,277.77"
Education & Skills,SEND (0-25),Third Party Payments,DSG - High Needs Block,CITY OF WOLVERHAMPTON COUNCIL,11/04/2022,"3,415.58"
Education & Skills,SEND (0-25),Third Party Payments,DSG - High Needs Block,Cicely Haughton School,11/04/2022,"12,148.98"
Education & Skills,SEND (0-25),Third Party Payments,DSG - High Needs Block,POWYS COUNTY COUNCIL,21/04/2022,"28,152.62"
Education & Skills,SEND (0-25),Third Party Payments,DSG - High Needs Block,CITY OF WOLVERHAMPTON COUNCIL,21/04/2022,"2,060.88"
Education & Skills,SEND (0-25),Third Party Payments,DSG - High Needs Block,CITY OF WOLVERHAMPTON COUNCIL,21/04/2022,"7,257.09"
Education & Skills,SEND (0-25),Third Party Payments,DSG - High Needs Block,CITY OF WOLVERHAMPTON COUNCIL,21/04/2022,"2,354.49"
Education & Skills,SEND (0-25),Third Party Payments,DSG - High Needs Block,LITTLE CHICKS PRE-SCHOOL LTD,11/04/2022,343.51
Education & Skills,SEND (0-25),Third Party Payments,DSG - High Needs Block,CHIPMUNKS NURSERY,11/04/2022,103.05
Education & Skills,SEND (0-25),Third Party Payments,DSG - High Needs Block,Apley Village Day Nursery,11/04/2022,309.16
Education & Skills,SEND (0-25),Third Party Payments,DSG - High Needs Block,Little Green House Nursery,21/04/2022,"1,356.66"
Education & Skills,SEND (0-25),Third Party Payments,DSG - High Needs Block,PRIORSLEE ACADEMY,25/04/2022,"1,021.95"
Education & Skills,SEND (0-25),Third Party Payments,DSG - High Needs Block,Wrekin View Primary School,25/04/2022,"1,328.25"
Education & Skills,SEND (0-25),Third Party Payments,DSG - High Needs Block,Telford Park School,25/04/2022,"1,196.57"
Education & Skills,SEND (0-25),Third Party Payments,DSG - High Needs Block,Hadley Learning Community Academy,25/04/2022,503.82
Education & Skills,SEND (0-25),Third Party Payments,DSG - High Needs Block,Ercall Wood Academy,25/04/2022,206.11
Education & Skills,SEND (0-25),Third Party Payments,DSG - High Needs Block,MADELEY ACADEMY TRUST LTD,25/04/2022,618.32
Education & Skills,SEND (0-25),Third Party Payments,DSG - High Needs Block,Windmill Primary School Academy,25/04/2022,"1,442.75"
Education & Skills,SEND (0-25),Third Party Payments,DSG - High Needs Block,HRP Education,11/04/2022,294.00
Education & Skills,SEND (0-25),Third Party Payments,DSG - High Needs Block,HRP Education,11/04/2022,343.00
Education & Skills,SEND (0-25),Third Party Payments,DSG - High Needs Block,HRP Education,11/04/2022,245.00
Education & Skills,SEND (0-25),Third Party Payments,DSG - High Needs Block,HRP Education,11/04/2022,980.00
Education & Skills,SEND (0-25),Third Party Payments,DSG - High Needs Block,HRP Education,11/04/2022,980.00
Education & Skills,SEND (0-25),Third Party Payments,DSG - High Needs Block,HRP Education,11/04/2022,294.00
Education & Skills,SEND (0-25),Third Party Payments,DSG - High Needs Block,HRP Education,11/04/2022,294.00
Education & Skills,SEND (0-25),Third Party Payments,DSG - High Needs Block,HRP Education,11/04/2022,294.00
Education & Skills,SEND (0-25),Third Party Payments,DSG - High Needs Block,HRP Education,11/04/2022,245.00
Education & Skills,SEND (0-25),Third Party Payments,DSG - High Needs Block,HRP Education,11/04/2022,735.00
Education & Skills,SEND (0-25),Third Party Payments,DSG - High Needs Block,HRP Education,11/04/2022,735.00
Education & Skills,SEND (0-25),Third Party Payments,DSG - High Needs Block,HRP Education,11/04/2022,735.00
Education & Skills,SEND (0-25),Third Party Payments,DSG - High Needs Block,HRP Education,11/04/2022,294.00
Education & Skills,SEND (0-25),Third Party Payments,DSG - High Needs Block,HRP Education,11/04/2022,245.00
Education & Skills,SEND (0-25),Third Party Payments,DSG - High Needs Block,HRP Education,11/04/2022,245.00
Education & Skills,SEND (0-25),Third Party Payments,DSG - High Needs Block,HRP Education,11/04/2022,588.00
Education & Skills,SEND (0-25),Third Party Payments,DSG - High Needs Block,HRP Education,11/04/2022,980.00
Education & Skills,SEND (0-25),Third Party Payments,DSG - High Needs Block,HRP Education,21/04/2022,245.00
Education & Skills,SEND (0-25),Third Party Payments,Health Funded Services,SHROPSHIRE COMMUNITY HEALTH NHS TRUST,11/04/2022,"3,373.00"
Education & Skills,SEND (0-25),Third Party Payments,DSG - High Needs Block,PRIORSLEE ACADEMY,21/04/2022,416.94
Education & Skills,SEND (0-25),Third Party Payments,DSG - High Needs Block,Hadley Learning Community Academy,21/04/2022,568.22
Education & Skills,SEND (0-25),Third Party Payments,DSG - High Needs Block,Hadley Learning Community Academy,21/04/2022,158.02
Education & Skills,SEND (0-25),Third Party Payments,DSG - High Needs Block,Redhill Primary Academy,21/04/2022,671.33
Education & Skills,SEND (0-25),Third Party Payments,DSG - High Needs Block,ABRAHAM DARBY ACADEMY ,21/04/2022,304.58
Education & Skills,SEND (0-25),Third Party Payments,DSG - High Needs Block,MADELEY ACADEMY TRUST LTD,21/04/2022,814.51
Education & Skills,SEND (0-25),Third Party Payments,DSG - High Needs Block,Lawley Village Academy,21/04/2022,219.94
Education & Skills,SEND (0-25),Third Party Payments,DSG - High Needs Block,LANDAU LTD,01/04/2022,"92,841.33"
Education & Skills,SEND (0-25),Third Party Payments,DSG - High Needs Block,LANDAU LTD,01/04/2022,"92,841.33"
Education & Skills,SEND (0-25),Third Party Payments,DSG - High Needs Block,CONDOVER COLLEGE LTD,11/04/2022,"9,056.15"
Education & Skills,SEND (0-25),Third Party Payments,DSG - High Needs Block,NOVA TRAINING LTD,11/04/2022,"4,817.97"
Education & Skills,SEND (0-25),Third Party Payments,DSG - High Needs Block,RED G RURAL SKILLS PROJECT,11/04/2022,250.00
Education & Skills,SEND (0-25),Third Party Payments,DSG - High Needs Block,RED G RURAL SKILLS PROJECT,11/04/2022,800.00
Education & Skills,SEND (0-25),Third Party Payments,DSG - High Needs Block,Nisai Virtual Academy Limited,11/04/2022,"2,166.67"
Education & Skills,SEND (0-25),Third Party Payments,DSG - High Needs Block,Headstart School Limited  ,21/04/2022,"15,000.00"
Education & Skills,SEND (0-25),Third Party Payments,DSG - High Needs Block,TELFORD COLLEGE,01/04/2022,"360,092.33"
Education & Skills,SEND (0-25),Transport-Related Expenditure,Taxi Costs,Telford and Wrekin Community Enterprise LTD,11/04/2022,749.70
Education & Skills,SEND (0-25),Transport-Related Expenditure,Taxi Costs,ULTIMATE TAXIS LTD,11/04/2022,720.00
Education & Skills,SEND (0-25),Transport-Related Expenditure,Taxi Costs,ULTIMATE TAXIS LTD,11/04/2022,"1,680.00"
Education & Skills,SEND (0-25),Transport-Related Expenditure,Taxi Costs,A-STAR TRANSPORT MIDLANDS LTD,11/04/2022,"2,254.00"
Education & Skills,SEND (0-25),Transport-Related Expenditure,Taxi Costs,Telford Taxi Hire Limited,11/04/2022,"1,200.00"
Education & Skills,SEND (0-25),Transport-Related Expenditure,Transport Contractors,Telford Taxi Hire Limited,11/04/2022,"2,250.00"
Education & Skills,SEND (0-25),Transport-Related Expenditure,Taxi Costs,Telford Taxi Hire Limited,11/04/2022,"2,300.00"
Education & Skills,SEND (0-25),Transport-Related Expenditure,Transport Contractors,Telford Taxi Hire Limited,11/04/2022,"5,520.00"
Education & Skills,SEND (0-25),Transport-Related Expenditure,Taxi Costs,Telford Taxi Hire Limited,11/04/2022,"1,540.00"
Education & Skills,SEND (0-25),Transport-Related Expenditure,Transport Contractors,Telford Taxi Hire Limited,11/04/2022,"3,300.00"
Education & Skills,SEND (0-25),Transport-Related Expenditure,Taxi Costs,Telford Taxi Hire Limited,11/04/2022,"2,530.00"
Education & Skills,SEND (0-25),Transport-Related Expenditure,Taxi Costs,24X7 Ltd,11/04/2022,"1,611.84"
Education & Skills,SEND (0-25),Transport-Related Expenditure,Parents Reimbursements,REDSCTED PERSONAL INFORMATION,21/04/2022,204.18
Education & Skills,SEND (0-25),Transport-Related Expenditure,Season Tickets,ARRIVA MIDLANDS LTD,21/04/2022,"1,110.00"
Education & Skills,SEND (0-25),Transport-Related Expenditure,Season Tickets,ARRIVA MIDLANDS LTD,21/04/2022,555.00
Education & Skills,SEND (0-25),Transport-Related Expenditure,Taxi Costs,Go Carz,21/04/2022,"5,520.00"
Education & Skills,SEND (0-25),Transport-Related Expenditure,Taxi Costs,Go Carz,21/04/2022,"1,484.00"
Education & Skills,SEND (0-25),Transport-Related Expenditure,Taxi Costs,Go Carz,21/04/2022,"1,130.00"
Education & Skills,SEND (0-25),Transport-Related Expenditure,Taxi Costs,Go Carz,21/04/2022,160.00
Education & Skills,SEND (0-25),Transport-Related Expenditure,Taxi Costs,Go Carz,21/04/2022,576.00
Education & Skills,SEND (0-25),Transport-Related Expenditure,Taxi Costs,Go Carz,21/04/2022,621.60
Education & Skills,SEND (0-25),Transport-Related Expenditure,Taxi Costs,Go Carz,21/04/2022,"1,793.00"
Education & Skills,SEND (0-25),Transport-Related Expenditure,Taxi Costs,Go Carz,21/04/2022,"1,060.00"
Education & Skills,SEND (0-25),Transport-Related Expenditure,Taxi Costs,Go Carz,21/04/2022,384.00
Education & Skills,SEND (0-25),Transport-Related Expenditure,Taxi Costs,A2B Transports,25/04/2022,"4,356.00"
Education & Skills,SEND (0-25),Transport-Related Expenditure,Taxi Costs,A2B Transports,25/04/2022,"3,427.00"
Education & Skills,SEND (0-25),Transport-Related Expenditure,Taxi Costs,A2B Transports,25/04/2022,"1,157.00"
Education & Skills,SEND (0-25),Transport-Related Expenditure,Taxi Costs,A2B Transports,25/04/2022,"2,182.50"
Education & Skills,SEND (0-25),Transport-Related Expenditure,Taxi Costs,A2B Transports,25/04/2022,"1,650.00"
Education & Skills,Skills,Employees,Course Fees,QUALSAFE.COM,26/04/2022,162.50
Education & Skills,Skills,Premises-Related Expenditure,Hire Of Rooms,Brookside Central,06/04/2022,198.00
Education & Skills,Skills,Premises-Related Expenditure,Hire Of Rooms,Brookside Central,06/04/2022,396.00
Education & Skills,Skills,Premises-Related Expenditure,Hire Of Rooms,AFC Telford Holdings Limited,13/04/2022,170.00
Education & Skills,Skills,Premises-Related Expenditure,Hire Of Rooms,TELFORD MIND,06/04/2022,"8,000.00"
Education & Skills,Skills,Supplies & Services,Exam Fees,OPEN COLLEGE NETWORK WEST MIDLANDS REGION,06/04/2022,246.00
Education & Skills,Skills,Supplies & Services,Sub Contractors,PROSPECTS SERVICES LTD,13/04/2022,122.10
Education & Skills,Skills,Supplies & Services,Sub Contractors,PROSPECTS SERVICES LTD,14/04/2022,122.10
Finance & Human Resources,Finance,Supplies & Services,Other Services,ALLPAY.NET LIMITED,11/04/2022,"1,099.55"
Finance & Human Resources,Finance,Supplies & Services,Other Services,ALLPAY.NET LIMITED,11/04/2022,135.76
Finance & Human Resources,Finance Manager (Corporate & Capital),Employees,Staff Training,CIPFA BUSINESS LTD,05/04/2022,345.00
Finance & Human Resources,Finance Manager (Corporate & Capital),Supplies & Services,Subscriptions,CIPFA BUSINESS LTD,04/04/2022,"4,685.00"
Finance & Human Resources,Finance Manager (Corporate & Capital),Supplies & Services,Subscriptions,LG Futures,06/04/2022,"10,085.00"
Finance & Human Resources,Human Resources,Employees,Criminal Records Bureau Checks,Capita Recruitment Vetting Service ,04/04/2022,493.40
Finance & Human Resources,Human Resources,Employees,Criminal Records Bureau Checks,DISCLOSURE & BARRING SERVICE,25/04/2022,"11,526.00"
Finance & Human Resources,Revenues,Employees,Off site processing,NEC Software Solutions UK Ltd,14/04/2022,688.88
Finance & Human Resources,Revenues,Employees,Off site processing,NEC Software Solutions UK Ltd,14/04/2022,"4,142.00"
Finance & Human Resources,Revenues,Supplies & Services,Printing - Other,Visual Print & Design,04/04/2022,"2,115.00"
Finance & Human Resources,Revenues,Supplies & Services,Printing - Other,MARKETING AT THE MILL,05/04/2022,145.00
Finance & Human Resources,Revenues,Supplies & Services,Stationery,PREMIER PAPER GROUP LTD,07/04/2022,166.07
Finance & Human Resources,Revenues,Supplies & Services,Printing - Other,TUDOR PRINT & SIGNS,13/04/2022,185.00
Finance & Human Resources,Revenues,Supplies & Services,Stationery,Antalis Limited,13/04/2022,686.20
Finance & Human Resources,Revenues,Supplies & Services,Printing - Other,MARKETING AT THE MILL,20/04/2022,170.00
Finance & Human Resources,Revenues,Supplies & Services,Printing - Other,Visual Print & Design,21/04/2022,290.00
Finance & Human Resources,Revenues,Supplies & Services,Printing - Other,Visual Print & Design,21/04/2022,145.00
Finance & Human Resources,Revenues,Supplies & Services,Printing - Other,MARKETING AT THE MILL,21/04/2022,115.00
Finance & Human Resources,Revenues,Supplies & Services,Franking Machine Service,RICOH UK LIMITED,28/04/2022,"8,829.91"
Finance & Human Resources,Revenues,Supplies & Services,Stationery,MARKETING AT THE MILL,28/04/2022,265.00
Finance & Human Resources,Revenues,Supplies & Services,Postages,ROYAL MAIL GROUP PLC,25/04/2022,188.10
Finance & Human Resources,Revenues,Supplies & Services,Postages,ROYAL MAIL GROUP PLC ,08/04/2022,"-6,864.77"
Finance & Human Resources,Revenues,Supplies & Services,Postages,ROYAL MAIL GROUP PLC ,08/04/2022,"2,958.12"
Finance & Human Resources,Revenues,Supplies & Services,Postages,ROYAL MAIL GROUP PLC ,08/04/2022,"5,539.06"
Finance & Human Resources,Revenues,Supplies & Services,Postages,ROYAL MAIL GROUP PLC ,12/04/2022,-711.11
Finance & Human Resources,Revenues,Supplies & Services,Franking Machine Service,FRANCOTYP-POSTALIA LTD,12/04/2022,"1,000.00"
Finance & Human Resources,Revenues,Supplies & Services,Postages,ROYAL MAIL GROUP PLC ,19/04/2022,"1,667.09"
Finance & Human Resources,Revenues,Supplies & Services,Postages,ROYAL MAIL GROUP PLC,25/04/2022,"1,028.10"
Finance & Human Resources,Revenues,Supplies & Services,Postages,ROYAL MAIL GROUP PLC,25/04/2022,727.00
Finance & Human Resources,Revenues,Supplies & Services,IT Services,Zellis UK Ltd,11/04/2022,524.00
Finance & Human Resources,Revenues,Supplies & Services,NDR (COVID19 GRANTS) Discretionary Payments,COVID19 GRANT PAYMENTS,06/04/2022,"1,200.00"
Finance & Human Resources,Revenues,Supplies & Services,NDR (COVID19 GRANTS) Discretionary Payments,COVID19 GRANT PAYMENTS,06/04/2022,107.00
Finance & Human Resources,Revenues,Supplies & Services,NDR (COVID19 GRANTS) Discretionary Payments,COVID19 GRANT PAYMENTS,19/04/2022,533.40
Finance & Human Resources,Revenues,Supplies & Services,NDR (COVID19 GRANTS) Discretionary Payments,COVID19 GRANT PAYMENTS,19/04/2022,533.40
Finance & Human Resources,Revenues,Supplies & Services,NDR (COVID19 GRANTS) Discretionary Payments,COVID19 GRANT PAYMENTS,19/04/2022,107.00
Finance & Human Resources,Revenues,Supplies & Services,NDR (COVID19 GRANTS) Discretionary Payments,COVID19 GRANT PAYMENTS,19/04/2022,107.00
Finance & Human Resources,Revenues,Supplies & Services,Postages,Financial Data Management plc,01/04/2022,427.96
Finance & Human Resources,Revenues,Supplies & Services,Postages,Financial Data Management plc,01/04/2022,282.69
Finance & Human Resources,Revenues,Supplies & Services,Energy rebate support,Airey Consultancy Services Ltd.,04/04/2022,475.00
Finance & Human Resources,Revenues,Supplies & Services,Postages,Financial Data Management plc,08/04/2022,143.25
Finance & Human Resources,Revenues,Supplies & Services,Postages,Financial Data Management plc,08/04/2022,196.15
Finance & Human Resources,Revenues,Supplies & Services,Printing - Other,Financial Data Management plc,08/04/2022,152.09
Finance & Human Resources,Revenues,Supplies & Services,Printing - Other,Financial Data Management plc,08/04/2022,393.29
Finance & Human Resources,Revenues,Supplies & Services,Postages,Financial Data Management plc,12/04/2022,"19,509.42"
Finance & Human Resources,Revenues,Supplies & Services,Postages,Financial Data Management plc,12/04/2022,968.33
Finance & Human Resources,Revenues,Supplies & Services,Printing - Other,Financial Data Management plc,12/04/2022,470.02
Finance & Human Resources,Revenues,Supplies & Services,Printing - Other,Financial Data Management plc,12/04/2022,183.16
Finance & Human Resources,Revenues,Supplies & Services,Printing - Other,Financial Data Management plc,12/04/2022,"2,340.00"
Finance & Human Resources,Revenues,Supplies & Services,Legal Expenses,J F L Limited,12/04/2022,"2,250.00"
Finance & Human Resources,Revenues,Supplies & Services,Comp Software (Purch / Hire),NEC Software Solutions UK Ltd,19/04/2022,"6,500.00"
Finance & Human Resources,Revenues,Supplies & Services,Comp Software (Purch / Hire),NEC Software Solutions UK Ltd,19/04/2022,800.00
Finance & Human Resources,Revenues,Supplies & Services,Postages,Financial Data Management plc,26/04/2022,330.94
Finance & Human Resources,Revenues,Supplies & Services,Postages,Financial Data Management plc,26/04/2022,116.34
Finance & Human Resources,Revenues,Third Party Payments,Collection Agents,Newlyn Plc,12/04/2022,-135.00
Finance & Human Resources,Revenues,Third Party Payments,Collection Agents,ROSSENDALES LTD,26/04/2022,506.56
Health & Wellbeing,Consultant in Public Health,Supplies & Services,Sub Contractors,West Mercia Women�s Aid,27/04/2022,"5,000.00"
Health & Wellbeing,Consultant in Public Health,Supplies & Services,Sub Contractors,West Mercia Women�s Aid,27/04/2022,"5,000.00"
Health & Wellbeing,Consultant in Public Health,Supplies & Services,Sub Contractors,Alere Uk Holdings Ltd,05/04/2022,349.57
Health & Wellbeing,Consultant in Public Health,Supplies & Services,Sub Contractors,Alere Uk Holdings Ltd,07/04/2022,825.00
Health & Wellbeing,Consultant in Public Health,Supplies & Services,Sub Contractors,Alere Uk Holdings Ltd,26/04/2022,127.07
Health & Wellbeing,Consultant in Public Health,Supplies & Services,Service Contracts,Midlands Partnership NHS Trust,08/04/2022,"72,750.00"
Health & Wellbeing,Consultant in Public Health,Supplies & Services,Service Contracts,Midlands Partnership NHS Trust,11/04/2022,"4,267.25"
Health & Wellbeing,Consultant in Public Health,Supplies & Services,Sub Contractors,"NHS Shropshire, Telford and Wrekin CCG",04/04/2022,"24,648.44"
Health & Wellbeing,Consultant in Public Health,Supplies & Services,Sub Contractors,Boots UK Ltd Pharmacy Services,13/04/2022,160.00
Health & Wellbeing,Consultant in Public Health,Supplies & Services,Sub Contractors,Boots UK Ltd Pharmacy Services,13/04/2022,171.70
Health & Wellbeing,Consultant in Public Health,Supplies & Services,Sub Contractors,Boots UK Ltd Pharmacy Services,13/04/2022,240.00
Health & Wellbeing,Consultant in Public Health,Supplies & Services,Sub Contractors,Boots UK Ltd Pharmacy Services,13/04/2022,222.15
Health & Wellbeing,Consultant in Public Health,Supplies & Services,Sub Contractors,Lloyds Pharmacy,13/04/2022,160.00
Health & Wellbeing,Consultant in Public Health,Supplies & Services,Sub Contractors,Lloyds Pharmacy,13/04/2022,207.10
Health & Wellbeing,Consultant in Public Health,Supplies & Services,Sub Contractors,Lloyds Pharmacy,13/04/2022,120.64
Health & Wellbeing,Consultant in Public Health,Supplies & Services,Sub Contractors,Donnington Pharmacy,13/04/2022,390.00
Health & Wellbeing,Consultant in Public Health,Supplies & Services,Sub Contractors,Donnington Pharmacy,13/04/2022,432.90
Health & Wellbeing,Consultant in Public Health,Supplies & Services,Sub Contractors,Late Night High Street Pharmacy,13/04/2022,337.16
Health & Wellbeing,Consultant in Public Health,Supplies & Services,Sub Contractors,Superdrug Stores,14/04/2022,110.00
Health & Wellbeing,Consultant in Public Health,Supplies & Services,Sub Contractors,Walsall Healthcare NHS Trust,14/04/2022,146.00
Health & Wellbeing,Consultant in Public Health,Supplies & Services,Sub Contractors,Dudley Taylor Pharmacies Ltd,14/04/2022,117.60
Health & Wellbeing,Consultant in Public Health,Supplies & Services,Comp Software (Purch / Hire),SHROPSHIRE COUNCIL,04/04/2022,"1,265.29"
Health & Wellbeing,Consultant in Public Health,Supplies & Services,Consultancy,Vivid Resourcing,04/04/2022,717.30
Health & Wellbeing,Consultant in Public Health,Supplies & Services,Consultancy,Vivid Resourcing,04/04/2022,"1,678.23"
Health & Wellbeing,Consultant in Public Health,Supplies & Services,Consultancy,Vivid Resourcing,08/04/2022,844.40
Health & Wellbeing,Consultant in Public Health,Supplies & Services,Other Services,SHROPSHIRE COMMUNITY HEALTH NHS TRUST,08/04/2022,"-701,208.25"
Health & Wellbeing,Consultant in Public Health,Supplies & Services,Other Services,Central Health Solutions Ltd,08/04/2022,588.00
Health & Wellbeing,Health Improvement,Supplies & Services,Other Grants (Expenses),TELFORD MIND,01/04/2022,"32,500.00"
Health & Wellbeing,Health Improvement,Supplies & Services,Public Participation,Lifestyle Connect,01/04/2022,"4,475.00"
Health & Wellbeing,Health Improvement,Supplies & Services,Public Participation,Brookside Central,01/04/2022,"2,160.00"
Health & Wellbeing,Health Improvement,Supplies & Services,Public Participation,PARK LANE CENTRE,04/04/2022,"4,800.00"
Health & Wellbeing,Health Improvement,Supplies & Services,Public Participation,All Nations Church,04/04/2022,"1,160.00"
Health & Wellbeing,Health Improvement,Supplies & Services,Other Grants (Expenses),Guru Nanak Darbar Gurdwara,04/04/2022,"1,650.00"
Health & Wellbeing,Health Improvement,Supplies & Services,Other Grants (Expenses),Sangat Purchar Sabha,04/04/2022,"1,905.00"
Health & Wellbeing,Health Improvement,Supplies & Services,Other Grants (Expenses),Nasara Telford Group,04/04/2022,"1,837.00"
Health & Wellbeing,Health Improvement,Supplies & Services,Other Grants (Expenses),Nasara Telford Group,20/04/2022,"3,061.00"
Health & Wellbeing,Health Improvement,Supplies & Services,Other Grants (Expenses),STUWA,25/04/2022,"3,061.00"
Health & Wellbeing,Health Improvement,Supplies & Services,Other Grants (Expenses),MEETING POINT TRUST LTD,04/04/2022,"1,051.00"
Health & Wellbeing,Health Improvement,Supplies & Services,Libraries Book Fund,Askews & Holts Library Services Ltd,09/04/2022,339.69
Health & Wellbeing,Health Improvement,Supplies & Services,Libraries Book Fund,Askews & Holts Library Services Ltd,22/04/2022,-103.14
Health & Wellbeing,Health Improvement,Supplies & Services,Computer Software (Maint),Bibliotheca,14/04/2022,"5,098.71"
Health & Wellbeing,Health Improvement,Third Party Payments,Interpreters Fees,VISS Sign Language Interpreting Service,20/04/2022,115.00
Health & Wellbeing,Health Improvement,Third Party Payments,Interpreters Fees,VISS Sign Language Interpreting Service,20/04/2022,115.00
Health & Wellbeing,Health Improvement,Third Party Payments,Interpreters Fees,VISS Sign Language Interpreting Service,20/04/2022,115.00
Health & Wellbeing,Health Protection,Supplies & Services,Provisions,BIKOLD,01/04/2022,138.18
Health & Wellbeing,Health Protection,Supplies & Services,Provisions,BIKOLD,01/04/2022,100.10
Health & Wellbeing,Health Protection,Supplies & Services,Advertising,EPS TRAINING AND EVENTS LTD,08/04/2022,399.00
Health & Wellbeing,Health Protection,Supplies & Services,Consultancy,Vivid Resourcing,04/04/2022,"2,000.50"
Health & Wellbeing,Health Protection,Supplies & Services,Consultancy,Vivid Resourcing,22/04/2022,"2,000.50"
Health & Wellbeing,Health Protection,Supplies & Services,Consultancy,Vivid Resourcing,04/04/2022,"1,971.00"
Health & Wellbeing,Health Protection,Supplies & Services,Consultancy,G2 Recruitment Solutions,12/04/2022,768.00
Health & Wellbeing,Health Protection,Supplies & Services,Consultancy,Vivid Resourcing,12/04/2022,"1,971.00"
Health & Wellbeing,Health Protection,Supplies & Services,Consultancy,Vivid Resourcing,12/04/2022,"1,486.34"
Health & Wellbeing,Health Protection,Supplies & Services,Consultancy,Vivid Resourcing,12/04/2022,675.52
Health & Wellbeing,Health Protection,Supplies & Services,Consultancy,Vivid Resourcing,12/04/2022,"1,461.65"
Health & Wellbeing,Health Protection,Supplies & Services,Consultancy,Vivid Resourcing,12/04/2022,"1,978.40"
Health & Wellbeing,Health Protection,Supplies & Services,Consultancy,Vivid Resourcing,12/04/2022,"1,434.60"
Health & Wellbeing,Health Protection,Supplies & Services,Consultancy,Vivid Resourcing,21/04/2022,"1,971.00"
Health & Wellbeing,Health Protection,Supplies & Services,Consultancy,Vivid Resourcing,25/04/2022,"1,734.48"
"Housing, Employment & Infrastructure",Inward Investment & Business Support,Capital Expenditure,Payments to Contractor,THE SIGN SHOP,05/04/2022,590.00
"Housing, Employment & Infrastructure",Inward Investment & Business Support,Supplies & Services,Other Grants (Expenses),ibd Business Advice Group Ltd,13/04/2022,"3,119.38"
"Housing, Employment & Infrastructure",Inward Investment & Business Support,Supplies & Services,Other Grants (Expenses),Good2Great Ltd,24/04/2022,"11,586.60"
"Housing, Employment & Infrastructure",Inward Investment & Business Support,Supplies & Services,Consultancy,Elkro Limited,05/04/2022,618.33
"Housing, Employment & Infrastructure",Inward Investment & Business Support,Supplies & Services,Consultancy,Fraggle Works Limited,01/04/2022,625.00
"Housing, Employment & Infrastructure",Inward Investment & Business Support,Supplies & Services,Consultancy,Fraggle Works Limited,01/04/2022,875.00
"Housing, Employment & Infrastructure",Inward Investment & Business Support,Supplies & Services,Consultancy,Fraggle Works Limited,01/04/2022,"1,500.00"
"Housing, Employment & Infrastructure",Inward Investment & Business Support,Supplies & Services,Consultancy,Fraggle Works Limited,01/04/2022,625.00
"Housing, Employment & Infrastructure",Inward Investment & Business Support,Supplies & Services,Consultancy,Fraggle Works Limited,01/04/2022,750.00
"Housing, Employment & Infrastructure",Local Plan,Supplies & Services,Subscriptions,HAYMARKET BUSINESS MEDIA,04/04/2022,395.00
"Housing, Employment & Infrastructure",Local Plan,Supplies & Services,Advertising,ELONEX SPORTS PLC,01/04/2022,"14,800.00"
"Housing, Employment & Infrastructure",Private Sector Housing & Enforcement,Capital Expenditure,Expenditure on loans & other financial assistance,Marches Energy Agency,01/04/2022,"-4,506.27"
"Housing, Employment & Infrastructure",Private Sector Housing & Enforcement,Capital Expenditure,Expenditure on loans & other financial assistance,Marches Energy Agency,01/04/2022,-788.60
"Housing, Employment & Infrastructure",Private Sector Housing & Enforcement,Employees,Agency Supply Costs,The Oyster Partnership Ltd,05/04/2022,"1,480.00"
"Housing, Employment & Infrastructure",Private Sector Housing & Enforcement,Employees,Agency Supply Costs,The Oyster Partnership Ltd,05/04/2022,"1,190.00"
"Housing, Employment & Infrastructure",Private Sector Housing & Enforcement,Employees,Agency Supply Costs,The Oyster Partnership Ltd,05/04/2022,"1,155.00"
"Housing, Employment & Infrastructure",Private Sector Housing & Enforcement,Employees,Agency Supply Costs,The Oyster Partnership Ltd,05/04/2022,"1,155.00"
"Housing, Employment & Infrastructure",Private Sector Housing & Enforcement,Employees,Agency Supply Costs,The Oyster Partnership Ltd,05/04/2022,"1,240.00"
"Housing, Employment & Infrastructure",Private Sector Housing & Enforcement,Employees,Agency Supply Costs,The Oyster Partnership Ltd,05/04/2022,"1,190.00"
"Housing, Employment & Infrastructure",Private Sector Housing & Enforcement,Employees,Staff Training,Intqual-pro,05/04/2022,"2,160.00"
"Housing, Employment & Infrastructure",Private Sector Housing & Enforcement,Premises-Related Expenditure,R&M -Buildings DLO Charge,A1 Glass & Glazing (Shropshire) Limited,12/04/2022,300.00
"Housing, Employment & Infrastructure",Private Sector Housing & Enforcement,Supplies & Services,Research Surveys,Building Research Establishment Ltd,13/04/2022,"5,000.00"
"Housing, Employment & Infrastructure",Private Sector Housing & Enforcement,Supplies & Services,Research Surveys,Building Research Establishment Ltd,13/04/2022,"20,000.00"
Neighbourhood & Enforcement Services,Highways and Network Management,Capital Expenditure,Payments to Contractor,Morris Property Ltd,04/04/2022,"3,000.00"
Neighbourhood & Enforcement Services,Highways and Network Management,Capital Expenditure,Payments to Contractor,Amey OW Ltd,04/04/2022,543.91
Neighbourhood & Enforcement Services,Highways and Network Management,Capital Expenditure,Payments to Contractor,Amey OW Ltd,04/04/2022,"1,865.84"
Neighbourhood & Enforcement Services,Highways and Network Management,Capital Expenditure,Payments to Contractor,Amey OW Ltd,04/04/2022,"9,543.14"
Neighbourhood & Enforcement Services,Highways and Network Management,Capital Expenditure,Payments to Contractor,Amey OW Ltd,06/04/2022,169.34
Neighbourhood & Enforcement Services,Highways and Network Management,Capital Expenditure,Payments to Contractor,GROUND INVESTIGATION & PILING LTD,28/04/2022,"1,100.00"
Neighbourhood & Enforcement Services,Highways and Network Management,Capital Expenditure,Payments to Contractor,Security Wise Ltd,04/04/2022,"5,503.00"
Neighbourhood & Enforcement Services,Highways and Network Management,Capital Expenditure,Payments to Contractor,MSM Plant Limited,20/04/2022,652.24
Neighbourhood & Enforcement Services,Highways and Network Management,Capital Expenditure,Payments to Contractor,R Hand Services Limited ,19/04/2022,"1,200.00"
Neighbourhood & Enforcement Services,Highways and Network Management,Capital Expenditure,Payments to Contractor,GW MARINE SYSTEMS LTD,05/04/2022,625.00
Neighbourhood & Enforcement Services,Highways and Network Management,Capital Expenditure,Payments to Contractor,MSM Hire Ltd,05/04/2022,"10,775.72"
Neighbourhood & Enforcement Services,Highways and Network Management,Capital Expenditure,Payments to Contractor,The Tree Man,19/04/2022,"1,550.00"
Neighbourhood & Enforcement Services,Highways and Network Management,Capital Expenditure,Payments to Contractor,WELLINGTON INSULATION CO. LTD,28/04/2022,650.00
Neighbourhood & Enforcement Services,Highways and Network Management,Capital Expenditure,Payments to Contractor,Amey OW Ltd,28/04/2022,"27,416.43"
Neighbourhood & Enforcement Services,Highways and Network Management,Premises-Related Expenditure,Electricity,West Mercia Energy (WME),21/04/2022,"48,573.37"
Neighbourhood & Enforcement Services,Highways and Network Management,Premises-Related Expenditure,Electricity,West Mercia Energy (WME),21/04/2022,271.10
Neighbourhood & Enforcement Services,Highways and Network Management,Premises-Related Expenditure,Electricity,West Mercia Energy (WME),21/04/2022,343.23
Neighbourhood & Enforcement Services,Highways and Network Management,Premises-Related Expenditure,Lift Maintenance,STANNAH LIFT SERVICES LTD,19/04/2022,287.42
Neighbourhood & Enforcement Services,Highways and Network Management,Premises-Related Expenditure,Lift Maintenance,STANNAH LIFT SERVICES LTD,19/04/2022,"1,524.34"
Neighbourhood & Enforcement Services,Highways and Network Management,Supplies & Services,Fees,Sharpe Pritchard LLP,28/04/2022,"2,034.00"
Neighbourhood & Enforcement Services,Highways and Network Management,Supplies & Services,Protective Clothing,ARCO LIMITED,04/04/2022,102.66
Neighbourhood & Enforcement Services,Highways and Network Management,Supplies & Services,Equipment - Hire,STANFORD MARSH FINANCE LTD,05/04/2022,277.48
Neighbourhood & Enforcement Services,Highways and Network Management,Supplies & Services,Computer Consumables,Computer and Design Services Ltd,05/04/2022,335.00
Neighbourhood & Enforcement Services,Highways and Network Management,Supplies & Services,Computer Consumables,STANFORD MARSH FINANCE LTD,12/04/2022,215.46
Neighbourhood & Enforcement Services,Highways and Network Management,Supplies & Services,Consultancy,W Aspen,19/04/2022,"6,587.52"
Neighbourhood & Enforcement Services,Highways and Network Management,Supplies & Services,Consultancy,W Aspen,19/04/2022,"3,312.96"
Neighbourhood & Enforcement Services,Highways and Network Management,Supplies & Services,Consultancy,W Aspen,19/04/2022,"7,217.76"
Neighbourhood & Enforcement Services,Highways and Network Management,Supplies & Services,Consultancy,W Aspen,19/04/2022,"3,400.61"
Neighbourhood & Enforcement Services,Highways and Network Management,Supplies & Services,Consultancy,W Aspen,19/04/2022,"8,592.76"
Neighbourhood & Enforcement Services,Highways and Network Management,Supplies & Services,Consultancy,W Aspen,19/04/2022,"7,615.03"
Neighbourhood & Enforcement Services,Highways and Network Management,Supplies & Services,Consultancy,W Aspen,19/04/2022,"3,130.24"
Neighbourhood & Enforcement Services,Highways and Network Management,Supplies & Services,Consultancy,W Aspen,19/04/2022,221.85
Neighbourhood & Enforcement Services,Highways and Network Management,Supplies & Services,Consultancy,W Aspen,19/04/2022,"2,983.49"
Neighbourhood & Enforcement Services,Highways and Network Management,Supplies & Services,Consultancy,W Aspen,19/04/2022,"3,419.64"
Neighbourhood & Enforcement Services,Highways and Network Management,Supplies & Services,Consultancy,W Aspen,19/04/2022,"3,115.20"
Neighbourhood & Enforcement Services,Highways and Network Management,Supplies & Services,Consultancy,W Aspen,19/04/2022,"4,900.69"
Neighbourhood & Enforcement Services,Highways and Network Management,Supplies & Services,Consultancy,W Aspen,19/04/2022,"2,681.92"
Neighbourhood & Enforcement Services,Highways and Network Management,Supplies & Services,Consultancy,W Aspen,19/04/2022,"2,322.82"
Neighbourhood & Enforcement Services,Highways and Network Management,Supplies & Services,Consultancy,W Aspen,19/04/2022,"6,228.80"
Neighbourhood & Enforcement Services,Highways and Network Management,Supplies & Services,Comp Software (Purch / Hire),YOTTA ,28/04/2022,"2,600.00"
Neighbourhood & Enforcement Services,Highways and Network Management,Supplies & Services,Other Services,PP ELECTRICAL SERVICES (Shropshire) Ltd,01/04/2022,200.00
Neighbourhood & Enforcement Services,Highways and Network Management,Third Party Payments,Highways Contract - BBLP,Balfour Beatty Civils Limited,19/04/2022,"1,968,182.10"
Neighbourhood & Enforcement Services,Neighbourhood & Enforcement Services,Premises-Related Expenditure,R&M -Buildings DLO Charge,Security Wise Ltd,14/04/2022,190.00
Neighbourhood & Enforcement Services,Neighbourhood & Enforcement Services,Premises-Related Expenditure,Hire Of Rooms,KETLEY PARISH COUNCIL,04/04/2022,305.00
Neighbourhood & Enforcement Services,Neighbourhood & Enforcement Services,Premises-Related Expenditure,General Rents,THE WREKIN HOUSING TRUST,04/04/2022,169.41
Neighbourhood & Enforcement Services,Neighbourhood & Enforcement Services,Premises-Related Expenditure,Leasehold Rents,THE WREKIN HOUSING TRUST ,19/04/2022,"1,773.59"
Neighbourhood & Enforcement Services,Neighbourhood & Enforcement Services,Premises-Related Expenditure,Leasehold Rents,Northwood (Hereford) Ltd,20/04/2022,610.00
Neighbourhood & Enforcement Services,Neighbourhood & Enforcement Services,Premises-Related Expenditure,General Rents,THE WREKIN HOUSING TRUST ,29/04/2022,"2,542.09"
Neighbourhood & Enforcement Services,Neighbourhood & Enforcement Services,Premises-Related Expenditure,R&M -Buildings DLO Charge,W and P Building Contractors Ltd,20/04/2022,"24,500.04"
Neighbourhood & Enforcement Services,Neighbourhood & Enforcement Services,Supplies & Services,Other Services,LOUDMOUTH EDUCATION & TRAINING LTD,01/04/2022,695.00
Neighbourhood & Enforcement Services,Neighbourhood & Enforcement Services,Supplies & Services,Other Services,LOUDMOUTH EDUCATION & TRAINING LTD,01/04/2022,695.00
Neighbourhood & Enforcement Services,Neighbourhood & Enforcement Services,Supplies & Services,Other Services,LOUDMOUTH EDUCATION & TRAINING LTD,11/04/2022,"1,490.00"
Neighbourhood & Enforcement Services,Neighbourhood & Enforcement Services,Supplies & Services,Consultancy,EMERGE DESIGN LTD,20/04/2022,101.20
Neighbourhood & Enforcement Services,Neighbourhood & Enforcement Services,Supplies & Services,Security Services,Security Wise Ltd,22/04/2022,"2,100.00"
Neighbourhood & Enforcement Services,Neighbourhood & Enforcement Services,Supplies & Services,Other Services,Donnington Sports & Social ABC,01/04/2022,"1,985.00"
Neighbourhood & Enforcement Services,Neighbourhood & Enforcement Services,Supplies & Services,Grants To Voluntary Organis,Brookside Central,28/04/2022,"28,000.00"
Neighbourhood & Enforcement Services,Neighbourhood & Enforcement Services,Third Party Payments,Private Contractors,EMERGE DESIGN LTD,26/04/2022,264.00
Neighbourhood & Enforcement Services,Neighbourhood & Environmental Services,Employees,Recruitment Advertising,Working Planet Ltd,21/04/2022,479.00
Neighbourhood & Enforcement Services,Neighbourhood & Environmental Services,Premises-Related Expenditure,Grounds Maintenance - Misc,Green-Tech Ltd,28/04/2022,395.00
Neighbourhood & Enforcement Services,Neighbourhood & Environmental Services,Supplies & Services,Materials,Great Dawley Town Council,04/04/2022,773.76
Neighbourhood & Enforcement Services,Neighbourhood & Environmental Services,Supplies & Services,Other Materials,LUBBE & SONS LTD,07/04/2022,500.00
Neighbourhood & Enforcement Services,Neighbourhood & Environmental Services,Supplies & Services,Other Materials,Green-Tech Ltd,07/04/2022,237.50
Neighbourhood & Enforcement Services,Neighbourhood & Environmental Services,Supplies & Services,Stationery,NEWPORT ENGRAVERS,12/04/2022,165.00
Neighbourhood & Enforcement Services,Neighbourhood & Environmental Services,Supplies & Services,Equipment - Purchase,MARMAX PRODUCTS LTD,19/04/2022,357.00
Neighbourhood & Enforcement Services,Neighbourhood & Environmental Services,Supplies & Services,Miscellaneous Insurance,Friends of Apley Woods,19/04/2022,282.21
Neighbourhood & Enforcement Services,Neighbourhood & Environmental Services,Supplies & Services,Sport Equip - Purchase,Concrete Sports Ltd,21/04/2022,125.00
Neighbourhood & Enforcement Services,Neighbourhood & Environmental Services,Supplies & Services,Other Services,Red Kite Network Limited,21/04/2022,800.00
Neighbourhood & Enforcement Services,Neighbourhood & Environmental Services,Supplies & Services,Sport Equip - Purchase,MSM Hire Ltd,05/04/2022,874.00
Neighbourhood & Enforcement Services,Neighbourhood & Environmental Services,Supplies & Services,Other Grants (Expenses),SHROPSHIRE WILDLIFE TRUST,11/04/2022,"3,000.00"
Neighbourhood & Enforcement Services,Neighbourhood & Environmental Services,Third Party Payments,Contractor Recharge,Id verde,11/04/2022,"538,429.56"
Neighbourhood & Enforcement Services,Public Protection,Employees,Cont Prof Development,INSTITUTE OF LICENSING LTD ,11/04/2022,130.00
Neighbourhood & Enforcement Services,Public Protection,Premises-Related Expenditure,Preventative Maintenance,METRIC GROUP LTD,05/04/2022,389.00
Neighbourhood & Enforcement Services,Public Protection,Premises-Related Expenditure,Sewage Charges,WATER PLUS FORMERLY SEVERN TRENT WATER LTD,15/04/2022,476.86
Neighbourhood & Enforcement Services,Public Protection,Premises-Related Expenditure,Sewage Charges,WATER PLUS FORMERLY SEVERN TRENT WATER LTD,15/04/2022,283.18
Neighbourhood & Enforcement Services,Public Protection,Premises-Related Expenditure,Sewage Charges,WATER PLUS FORMERLY SEVERN TRENT WATER LTD,15/04/2022,920.31
Neighbourhood & Enforcement Services,Public Protection,Premises-Related Expenditure,Sewage Charges,WATER PLUS FORMERLY SEVERN TRENT WATER LTD,15/04/2022,108.97
Neighbourhood & Enforcement Services,Public Protection,Premises-Related Expenditure,Sewage Charges,WATER PLUS FORMERLY SEVERN TRENT WATER LTD,25/04/2022,283.33
Neighbourhood & Enforcement Services,Public Protection,Premises-Related Expenditure,Sewage Charges,WATER PLUS FORMERLY SEVERN TRENT WATER LTD,25/04/2022,477.10
Neighbourhood & Enforcement Services,Public Protection,Premises-Related Expenditure,Sewage Charges,WATER PLUS FORMERLY SEVERN TRENT WATER LTD,25/04/2022,164.96
Neighbourhood & Enforcement Services,Public Protection,Premises-Related Expenditure,Sewage Charges,WATER PLUS FORMERLY SEVERN TRENT WATER LTD,25/04/2022,477.10
Neighbourhood & Enforcement Services,Public Protection,Premises-Related Expenditure,Sewage Charges,WATER PLUS FORMERLY SEVERN TRENT WATER LTD,25/04/2022,147.76
Neighbourhood & Enforcement Services,Public Protection,Premises-Related Expenditure,Sewage Charges,WATER PLUS FORMERLY SEVERN TRENT WATER LTD,25/04/2022,108.97
Neighbourhood & Enforcement Services,Public Protection,Supplies & Services,Consultancy,Vivid Resourcing,04/04/2022,350.00
Neighbourhood & Enforcement Services,Public Protection,Supplies & Services,Consultancy,Vivid Resourcing,12/04/2022,375.00
Neighbourhood & Enforcement Services,Public Protection,Supplies & Services,Consultancy,Vivid Resourcing,21/04/2022,375.00
Neighbourhood & Enforcement Services,Public Protection,Supplies & Services,Consultancy,Vivid Resourcing,27/04/2022,358.25
Neighbourhood & Enforcement Services,Public Protection,Supplies & Services,Consultancy,Vivid Resourcing,04/04/2022,"1,290.19"
Neighbourhood & Enforcement Services,Public Protection,Supplies & Services,Consultancy,The Oyster Partnership Ltd,11/04/2022,495.00
Neighbourhood & Enforcement Services,Public Protection,Supplies & Services,Consultancy,The Oyster Partnership Ltd,11/04/2022,495.00
Neighbourhood & Enforcement Services,Public Protection,Supplies & Services,Consultancy,Vivid Resourcing,12/04/2022,"1,063.54"
Neighbourhood & Enforcement Services,Public Protection,Supplies & Services,Consultancy,The Oyster Partnership Ltd,21/04/2022,495.00
Neighbourhood & Enforcement Services,Public Protection,Supplies & Services,Consultancy,The Oyster Partnership Ltd,21/04/2022,854.64
Neighbourhood & Enforcement Services,Public Protection,Supplies & Services,Consultancy,The Oyster Partnership Ltd,21/04/2022,796.25
Neighbourhood & Enforcement Services,Public Protection,Supplies & Services,Equipment - Purchase,VIP-SYSTEMS LIMITED,27/04/2022,702.14
Neighbourhood & Enforcement Services,Public Protection,Supplies & Services,Subscriptions,THE INST OF LICENSING LTD ,28/04/2022,465.00
Neighbourhood & Enforcement Services,Public Protection,Supplies & Services,Consultancy,The Oyster Partnership Ltd,12/04/2022,"4,747.50"
Neighbourhood & Enforcement Services,Public Protection,Supplies & Services,Security Services,Security Wise Ltd,21/04/2022,"4,391.00"
Neighbourhood & Enforcement Services,Public Protection,Supplies & Services,Security Services,Security Wise Ltd,21/04/2022,"4,391.00"
Neighbourhood & Enforcement Services,Public Protection,Supplies & Services,Security Services,Security Wise Ltd,05/04/2022,"5,292.00"
Neighbourhood & Enforcement Services,Public Protection,Supplies & Services,Consultancy,Austin Mix Ltd,15/04/2022,"1,429.00"
Neighbourhood & Enforcement Services,Public Protection,Supplies & Services,Security Services,METRIC GROUP LTD,29/04/2022,"1,112.00"
Neighbourhood & Enforcement Services,Public Protection,Supplies & Services,Security Services,D H Communications Ltd,05/04/2022,"6,550.95"
Neighbourhood & Enforcement Services,Public Protection,Supplies & Services,Security Services,Security Wise Ltd,25/04/2022,150.00
Neighbourhood & Enforcement Services,Public Protection,Supplies & Services,Security Services,Security Wise Ltd,28/04/2022,"5,071.00"
Neighbourhood & Enforcement Services,Public Protection,Supplies & Services,Security Services,Chipside Ltd,11/04/2022,260.16
Neighbourhood & Enforcement Services,Public Protection,Supplies & Services,Security Services,BT PLC,25/04/2022,"2,295.00"
Neighbourhood & Enforcement Services,Public Protection,Supplies & Services,Security Services,BT PLC,25/04/2022,"1,039.35"
Neighbourhood & Enforcement Services,Public Protection,Supplies & Services,Security Services,NSL Limited ,27/04/2022,"2,728.67"
Neighbourhood & Enforcement Services,Public Protection,Transport-Related Expenditure,Vehicle Parts,Shropshire Alloys,15/04/2022,240.00
Neighbourhood & Enforcement Services,Public Protection,Transport-Related Expenditure,Vehicle Parts,Shropshire Alloys,15/04/2022,241.00
Neighbourhood & Enforcement Services,Public Protection,Transport-Related Expenditure,Vehicle Parts,Shropshire Alloys,25/04/2022,285.63
Neighbourhood & Enforcement Services,Strategic Transport,Capital Expenditure,Payments to Contractor,Nationwide Data Collection,04/04/2022,380.00
Neighbourhood & Enforcement Services,Strategic Transport,Capital Expenditure,Payments to Contractor,Nationwide Data Collection,04/04/2022,190.00
Neighbourhood & Enforcement Services,Strategic Transport,Capital Expenditure,Payments to Contractor,Nationwide Data Collection,04/04/2022,190.00
Neighbourhood & Enforcement Services,Strategic Transport,Capital Expenditure,Payments to Contractor,Nationwide Data Collection,04/04/2022,190.00
Neighbourhood & Enforcement Services,Strategic Transport,Capital Expenditure,Payments to Contractor,Nationwide Data Collection,04/04/2022,380.00
Neighbourhood & Enforcement Services,Strategic Transport,Capital Expenditure,Marketing / Advertising,THE MIDLAND NEWS ASSOCIATION LTD,19/04/2022,693.00
Neighbourhood & Enforcement Services,Strategic Transport,Capital Expenditure,Payments to Contractor,21st Century Passenger Systems Ltd,22/04/2022,"2,948.00"
Neighbourhood & Enforcement Services,Strategic Transport,Capital Expenditure,Payments to Contractor,Dynniq UK Limited,22/04/2022,"3,030.91"
Neighbourhood & Enforcement Services,Strategic Transport,Capital Expenditure,Legal Fees,THE MIDLAND NEWS ASSOCIATION LTD,26/04/2022,831.60
Neighbourhood & Enforcement Services,Strategic Transport,Capital Expenditure,Payments to Contractor,Dynniq UK Limited,26/04/2022,348.34
Neighbourhood & Enforcement Services,Strategic Transport,Capital Expenditure,Payments to Contractor,Dynniq UK Limited,26/04/2022,"1,475.86"
Neighbourhood & Enforcement Services,Strategic Transport,Capital Expenditure,Payments to Contractor,21st Century Passenger Systems Ltd,04/04/2022,"5,474.00"
Neighbourhood & Enforcement Services,Strategic Transport,Capital Expenditure,Payments to Contractor,21st Century Passenger Systems Ltd,04/04/2022,620.00
Neighbourhood & Enforcement Services,Strategic Transport,Capital Expenditure,Payments to Contractor,Amey OW Ltd,04/04/2022,731.68
Neighbourhood & Enforcement Services,Strategic Transport,Capital Expenditure,Payments to Contractor,ATKINS LIMITED,04/04/2022,"1,590.00"
Neighbourhood & Enforcement Services,Strategic Transport,Capital Expenditure,Payments to Contractor,Amey OW Ltd,12/04/2022,"1,218.50"
Neighbourhood & Enforcement Services,Strategic Transport,Capital Expenditure,Payments to Contractor,Amey OW Ltd,12/04/2022,"8,119.19"
Neighbourhood & Enforcement Services,Strategic Transport,Capital Expenditure,Payments to Contractor,21st Century Passenger Systems Ltd,12/04/2022,"6,387.50"
